Workbook

Sheet Main
B10: 2024-08-14
B12: Sheet No. | C12: Template Name | D12: Summary
B13: 1 | C13: Future Intra | D13: For Intraday trading in F&O segment
B14: 2 | C14: Cash Intra | D14: For Intraday trading in cash market segment
B15: 3 | C15: Mid-cap Intra | D15: For Intraday trading in Mid-cap stocks
B16: 4 | C16: Bulk Deals | D16: Reveals Bulk Deals carried on NSE & BSE
B17: 5 | C17: Call Tracker
K27: `

Sheet Future Intra
M5: Back to Main Page
A6: FOR INTRA DAY TRADING | L6: =Main!B10 -> 2024-08-14
A9: Sr.no | B9: Sector | C9: Scrip | D9: Expiry Date | E9: CLOSE RATE | F9: Pivot Point | G9: Supports | J9: Resistances
E10: Point | F10: Point | G10: S1 | H10: S2 | I10: S3 | J10: R1 | K10: R2 | L10: R3 | M10: HIGH | N10: LOW | O10: OI | P10: % Change in OI
A11: 1 | B11: Index | C11: NIFTY | D11: 2024-08-29 | E11: 24161.00 | F11: 24225.45 | G11: 24060.90 | H11: 23960.80 | I11: 23796.25 | J11: 24325.55 | K11: 24490.10 | L11: 24590.20 | M11: 24390 | N11: 24125.35 | O11: 13891000 | P11: 3.82%
A12: 2 | B12: Index | C12: BANKNIFTY | D12: 2024-08-28 | E12: 50052.00 | F12: 50267.93 | G12: 49789.77 | H12: 49527.53 | I12: 49049.37 | J12: 50530.17 | K12: 51008.33 | L12: 51270.57 | M12: 50746.1 | N12: 50005.7 | O12: 3802320 | P12: 21.38%
A13: 3 | B13: Index | C13: FINNIFTY | D13: 2024-08-27 | E13: 22700.80 | F13: 22810.25 | G13: 22564.55 | H13: 22428.30 | I13: 22182.60 | J13: 22946.50 | K13: 23192.20 | L13: 23328.45 | M13: 23055.95 | N13: 22674 | O13: 129650 | P13: 94.96%
A14: 4 | B14: Index | C14: MIDCPNIFTY | D14: 2024-08-26 | E14: 12591.45 | F14: 12621.13 | G14: 12524.67 | H14: 12457.88 | I14: 12361.42 | J14: 12687.92 | K14: 12784.38 | L14: 12851.17 | M14: 12717.6 | N14: 12554.35 | O14: 2330800 | P14: -1.17%
A15: 5 | B15: Index | C15: NIFTYNXT50 | D15: 2024-08-30 | E15: 71815.25 | F15: 72095.38 | G15: 71415.82 | H15: 71016.38 | I15: 70336.82 | J15: 72494.82 | K15: 73174.38 | L15: 73573.82 | M15: 72774.95 | N15: 71695.95 | O15: 13220 | P15: 8.27%
A16: 6 | B16: Chemicals | C16: AARTIIND | D16: 2024-08-29 | E16: 621.60 | F16: 652.28 | G16: 584.57 | H16: 547.53 | I16: 479.82 | J16: 689.32 | K16: 757.03 | L16: 794.07 | M16: 720 | N16: 615.25 | O16: 20074000 | P16: 33.77%
A17: 7 | B17: Capital_Goods | C17: ABB | D17: 2024-08-29 | E17: 7560.10 | F17: 7624.80 | G17: 7471.95 | H17: 7383.80 | I17: 7230.95 | J17: 7712.95 | K17: 7865.80 | L17: 7953.95 | M17: 7777.65 | N17: 7536.65 | O17: 1948875 | P17: 3.35%
A18: 8 | B18: Pharma | C18: ABBOTINDIA | D18: 2024-08-29 | E18: 27417.05 | F18: 27310.67 | G18: 27071.33 | H18: 26725.62 | I18: 26486.28 | J18: 27656.38 | K18: 27895.72 | L18: 28241.43 | M18: 27550 | N18: 26964.95 | O18: 151360 | P18: -3.26%
A19: 9 | B19: Finance | C19: ABCAPITAL | D19: 2024-08-29 | E19: 207.20 | F19: 209.20 | G19: 203.51 | H19: 199.81 | I19: 194.12 | J19: 212.90 | K19: 218.59 | L19: 222.29 | M19: 214.9 | N19: 205.51 | O19: 79984800 | P19: -1.73%
A20: 10 | B20: Textile | C20: ABFRL | D20: 2024-08-29 | E20: 316.35 | F20: 318.35 | G20: 312.05 | H20: 307.75 | I20: 301.45 | J20: 322.65 | K20: 328.95 | L20: 333.25 | M20: 324.65 | N20: 314.05 | O20: 48958000 | P20: -1.67%
A21: 11 | B21: Cement | C21: ACC | D21: 2024-08-29 | E21: 2306.90 | F21: 2327.72 | G21: 2281.78 | H21: 2256.67 | I21: 2210.73 | J21: 2352.83 | K21: 2398.77 | L21: 2423.88 | M21: 2373.65 | N21: 2302.6 | O21: 5169600 | P21: 3.19%
A22: 12 | B22: Infrastructure | C22: ADANIENT | D22: 2024-08-29 | E22: 3095.15 | F22: 3122.32 | G22: 3058.28 | H22: 3021.42 | I22: 2957.38 | J22: 3159.18 | K22: 3223.22 | L22: 3260.08 | M22: 3186.35 | N22: 3085.45 | O22: 21314100 | P22: -0.69%
A23: 13 | B23: Infrastructure | C23: ADANIPORTS | D23: 2024-08-29 | E23: 1484.50 | F23: 1496.18 | G23: 1469.47 | H23: 1454.43 | I23: 1427.72 | J23: 1511.22 | K23: 1537.93 | L23: 1552.97 | M23: 1522.9 | N23: 1481.15 | O23: 30157600 | P23: 2.19%
A24: 14 | B24: Pharma | C24: ALKEM | D24: 2024-08-29 | E24: 5720.80 | F24: 5741.87 | G24: 5663.73 | H24: 5606.67 | I24: 5528.53 | J24: 5798.93 | K24: 5877.07 | L24: 5934.13 | M24: 5820 | N24: 5684.8 | O24: 2090500 | P24: -0.97%
A25: 15 | B25: Cement | C25: AMBUJACEM | D25: 2024-08-29 | E25: 624.60 | F25: 629.37 | G25: 618.28 | H25: 611.97 | I25: 600.88 | J25: 635.68 | K25: 646.77 | L25: 653.08 | M25: 640.45 | N25: 623.05 | O25: 32631300 | P25: 0.34%
A26: 16 | B26: Pharma | C26: APOLLOHOSP | D26: 2024-08-29 | E26: 6603.75 | F26: 6607.25 | G26: 6551.70 | H26: 6499.65 | I26: 6444.10 | J26: 6659.30 | K26: 6714.85 | L26: 6766.90 | M26: 6662.8 | N26: 6555.2 | O26: 1516625 | P26: 0.77%
A27: 17 | B27: Automobile | C27: APOLLOTYRE | D27: 2024-08-29 | E27: 483.40 | F27: 485.57 | G27: 478.53 | H27: 473.67 | I27: 466.63 | J27: 490.43 | K27: 497.47 | L27: 502.33 | M27: 492.6 | N27: 480.7 | O27: 16036100 | P27: 1.47%
A28: 18 | B28: Automobile | C28: ASHOKLEY | D28: 2024-08-29 | E28: 251.80 | F28: 252.88 | G28: 250.12 | H28: 248.43 | I28: 245.67 | J28: 254.57 | K28: 257.33 | L28: 259.02 | M28: 255.65 | N28: 251.2 | O28: 55505000 | P28: -1.60%
A29: 19 | B29: FMCG | C29: ASIANPAINT | D29: 2024-08-29 | E29: 3026.35 | F29: 3032.15 | G29: 3011.35 | H29: 2996.35 | I29: 2975.55 | J29: 3047.15 | K29: 3067.95 | L29: 3082.95 | M29: 3052.95 | N29: 3017.15 | O29: 10965600 | P29: -1.31%
A30: 20 | B30: Capital_Goods | C30: ASTRAL | D30: 2024-08-29 | E30: 1910.40 | F30: 1930.00 | G30: 1885.20 | H30: 1860.00 | I30: 1815.20 | J30: 1955.20 | K30: 2000.00 | L30: 2025.20 | M30: 1974.8 | N30: 1904.8 | O30: 4438498 | P30: 6.31%
A31: 21 | B31: Chemicals | C31: ATUL | D31: 2024-08-29 | E31: 7647.95 | F31: 7712.73 | G31: 7550.32 | H31: 7452.68 | I31: 7290.27 | J31: 7810.37 | K31: 7972.78 | L31: 8070.42 | M31: 7875.15 | N31: 7615.1 | O31: 841900 | P31: 2.93%
A32: 22 | B32: Banking | C32: AUBANK | D32: 2024-08-29 | E32: 613.25 | F32: 613.30 | G32: 608.95 | H32: 604.65 | I32: 600.30 | J32: 617.60 | K32: 621.95 | L32: 626.25 | M32: 617.65 | N32: 609 | O32: 25234000 | P32: 2.61%
A33: 23 | B33: Pharma | C33: AUROPHARMA | D33: 2024-08-29 | E33: 1508.90 | F33: 1503.27 | G33: 1472.43 | H33: 1435.97 | I33: 1405.13 | J33: 1539.73 | K33: 1570.57 | L33: 1607.03 | M33: 1534.1 | N33: 1466.8 | O33: 12321100 | P33: 2.20%
A34: 24 | B34: Banking | C34: AXISBANK | D34: 2024-08-29 | E34: 1163.45 | F34: 1168.00 | G34: 1154.40 | H34: 1145.35 | I34: 1131.75 | J34: 1177.05 | K34: 1190.65 | L34: 1199.70 | M34: 1181.6 | N34: 1158.95 | O34: 57760000 | P34: 5.41%
A35: 25 | B35: Automobile | C35: BAJAJ-AUTO | D35: 2024-08-29 | E35: 9703.55 | F35: 9736.52 | G35: 9647.03 | H35: 9590.52 | I35: 9501.03 | J35: 9793.03 | K35: 9882.52 | L35: 9939.03 | M35: 9826 | N35: 9680 | O35: 1381950 | P35: 2.92%
A36: 26 | B36: Finance | C36: BAJAJFINSV | D36: 2024-08-29 | E36: 1545.65 | F36: 1552.17 | G36: 1533.28 | H36: 1520.92 | I36: 1502.03 | J36: 1564.53 | K36: 1583.42 | L36: 1595.78 | M36: 1571.05 | N36: 1539.8 | O36: 13175500 | P36: -0.52%
A37: 27 | B37: Finance | C37: BAJFINANCE | D37: 2024-08-29 | E37: 6488.90 | F37: 6537.57 | G37: 6422.33 | H37: 6355.77 | I37: 6240.53 | J37: 6604.13 | K37: 6719.37 | L37: 6785.93 | M37: 6652.8 | N37: 6471 | O37: 10396000 | P37: 4.57%
A38: 28 | B38: Automobile | C38: BALKRISIND | D38: 2024-08-29 | E38: 2782.55 | F38: 2799.48 | G38: 2743.27 | H38: 2703.98 | I38: 2647.77 | J38: 2838.77 | K38: 2894.98 | L38: 2934.27 | M38: 2855.7 | N38: 2760.2 | O38: 2151000 | P38: -2.18%
A39: 29 | B39: FMCG | C39: BALRAMCHIN | D39: 2024-08-29 | E39: 512.00 | F39: 510.50 | G39: 498.00 | H39: 484.00 | I39: 471.50 | J39: 524.50 | K39: 537.00 | L39: 551.00 | M39: 523 | N39: 496.5 | O39: 7884800 | P39: -11.84%
A40: 30 | B40: Banking | C40: BANDHANBNK | D40: 2024-08-29 | E40: 193.96 | F40: 194.29 | G40: 191.42 | H40: 188.88 | I40: 186.01 | J40: 196.83 | K40: 199.70 | L40: 202.24 | M40: 197.16 | N40: 191.75 | O40: 105851200 | P40: -2.49%
A41: 31 | B41: Banking | C41: BANKBARODA | D41: 2024-08-29 | E41: 242.30 | F41: 243.78 | G41: 240.07 | H41: 237.83 | I41: 234.12 | J41: 246.02 | K41: 249.73 | L41: 251.97 | M41: 247.5 | N41: 241.55 | O41: 186951375 | P41: -0.31%
A42: 32 | B42: FMCG | C42: BATAINDIA | D42: 2024-08-29 | E42: 1381.90 | F42: 1389.33 | G42: 1370.67 | H42: 1359.43 | I42: 1340.77 | J42: 1400.57 | K42: 1419.23 | L42: 1430.47 | M42: 1408 | N42: 1378.1 | O42: 4161375 | P42: 8.42%
A43: 33 | B43: Capital_Goods | C43: BEL | D43: 2024-08-29 | E43: 295.85 | F43: 297.97 | G43: 293.03 | H43: 290.22 | I43: 285.28 | J43: 300.78 | K43: 305.72 | L43: 308.53 | M43: 302.9 | N43: 295.15 | O43: 152848350 | P43: -2.70%
A44: 34 | B44: FMCG | C44: BERGEPAINT | D44: 2024-08-29 | E44: 535.55 | F44: 531.68 | G44: 525.97 | H44: 516.38 | I44: 510.67 | J44: 541.27 | K44: 546.98 | L44: 556.57 | M44: 537.4 | N44: 522.1 | O44: 16506600 | P44: -1.71%
A45: 35 | B45: Automobile | C45: BHARATFORG | D45: 2024-08-29 | E45: 1582.50 | F45: 1595.05 | G45: 1565.45 | H45: 1548.40 | I45: 1518.80 | J45: 1612.10 | K45: 1641.70 | L45: 1658.75 | M45: 1624.65 | N45: 1578 | O45: 8016000 | P45: -0.46%
A46: 36 | B46: Telecom | C46: BHARTIARTL | D46: 2024-08-29 | E46: 1462.00 | F46: 1465.53 | G46: 1450.07 | H46: 1438.13 | I46: 1422.67 | J46: 1477.47 | K46: 1492.93 | L46: 1504.87 | M46: 1481 | N46: 1453.6 | O46: 41042375 | P46: 1.67%
A47: 37 | B47: Capital_Goods | C47: BHEL | D47: 2024-08-29 | E47: 290.80 | F47: 294.32 | G47: 286.13 | H47: 281.47 | I47: 273.28 | J47: 298.98 | K47: 307.17 | L47: 311.83 | M47: 302.5 | N47: 289.65 | O47: 79015125 | P47: 0.90%
A48: 38 | B48: Pharma | C48: BIOCON | D48: 2024-08-29 | E48: 337.45 | F48: 338.30 | G48: 334.25 | H48: 331.05 | I48: 327.00 | J48: 341.50 | K48: 345.55 | L48: 348.75 | M48: 342.35 | N48: 335.1 | O48: 46507500 | P48: -2.79%
A49: 39 | B49: Automobile | C49: BOSCHLTD | D49: 2024-08-29 | E49: 31554.00 | F49: 31637.97 | G49: 31350.93 | H49: 31147.87 | I49: 30860.83 | J49: 31841.03 | K49: 32128.07 | L49: 32331.13 | M49: 31925 | N49: 31434.9 | O49: 335000 | P49: 0.53%
A50: 40 | B50: Oil_Gas | C50: BPCL | D50: 2024-08-29 | E50: 322.50 | F50: 325.87 | G50: 317.78 | H50: 313.07 | I50: 304.98 | J50: 330.58 | K50: 338.67 | L50: 343.38 | M50: 333.95 | N50: 321.15 | O50: 65284200 | P50: -1.29%
A51: 41 | B51: FMCG | C51: BRITANNIA | D51: 2024-08-29 | E51: 5673.30 | F51: 5673.77 | G51: 5625.53 | H51: 5577.77 | I51: 5529.53 | J51: 5721.53 | K51: 5769.77 | L51: 5817.53 | M51: 5722 | N51: 5626 | O51: 2509800 | P51: 2.04%
A52: 42 | B52: Technology | C52: BSOFT | D52: 2024-08-29 | E52: 569.55 | F52: 575.57 | G52: 559.03 | H52: 548.52 | I52: 531.98 | J52: 586.08 | K52: 602.62 | L52: 613.13 | M52: 592.1 | N52: 565.05 | O52: 12369000 | P52: -0.97%
A53: 43 | B53: Banking | C53: CANBK | D53: 2024-08-29 | E53: 106.94 | F53: 107.97 | G53: 105.45 | H53: 103.95 | I53: 101.43 | J53: 109.47 | K53: 111.99 | L53: 113.49 | M53: 110.5 | N53: 106.48 | O53: 294023250 | P53: -0.80%
A54: 44 | B54: Finance | C54: CANFINHOME | D54: 2024-08-29 | E54: 790.35 | F54: 798.17 | G54: 778.58 | H54: 766.82 | I54: 747.23 | J54: 809.93 | K54: 829.52 | L54: 841.28 | M54: 817.75 | N54: 786.4 | O54: 5512650 | P54: -3.23%
A55: 45 | B55: Chemicals | C55: CHAMBLFERT | D55: 2024-08-29 | E55: 490.45 | F55: 503.33 | G55: 475.12 | H55: 459.78 | I55: 431.57 | J55: 518.67 | K55: 546.88 | L55: 562.22 | M55: 531.55 | N55: 488 | O55: 14493200 | P55: 11.46%
A56: 46 | B56: Finance | C56: CHOLAFIN | D56: 2024-08-29 | E56: 1317.05 | F56: 1330.75 | G56: 1294.45 | H56: 1271.85 | I56: 1235.55 | J56: 1353.35 | K56: 1389.65 | L56: 1412.25 | M56: 1367.05 | N56: 1308.15 | O56: 10626875 | P56: 3.62%
A57: 47 | B57: Pharma | C57: CIPLA | D57: 2024-08-29 | E57: 1585.45 | F57: 1592.43 | G57: 1575.92 | H57: 1566.38 | I57: 1549.87 | J57: 1601.97 | K57: 1618.48 | L57: 1628.02 | M57: 1608.95 | N57: 1582.9 | O57: 9934600 | P57: -1.69%
A58: 48 | B58: Metals | C58: COALINDIA | D58: 2024-08-29 | E58: 517.70 | F58: 520.05 | G58: 513.75 | H58: 509.80 | I58: 503.50 | J58: 524.00 | K58: 530.30 | L58: 534.25 | M58: 526.35 | N58: 516.1 | O58: 55704600 | P58: 1.64%
A59: 49 | B59: Technology | C59: COFORGE | D59: 2024-08-29 | E59: 5869.20 | F59: 5893.62 | G59: 5814.18 | H59: 5759.17 | I59: 5679.73 | J59: 5948.63 | K59: 6028.07 | L59: 6083.08 | M59: 5973.05 | N59: 5838.6 | O59: 1934700 | P59: 0.05%
A60: 50 | B60: FMCG | C60: COLPAL | D60: 2024-08-29 | E60: 3460.20 | F60: 3468.95 | G60: 3441.95 | H60: 3423.70 | I60: 3396.70 | J60: 3487.20 | K60: 3514.20 | L60: 3532.45 | M60: 3495.95 | N60: 3450.7 | O60: 2874200 | P60: -2.68%
A61: 51 | B61: Infrastructure | C61: CONCOR | D61: 2024-08-29 | E61: 956.95 | F61: 966.32 | G61: 945.33 | H61: 933.72 | I61: 912.73 | J61: 977.93 | K61: 998.92 | L61: 1010.53 | M61: 987.3 | N61: 954.7 | O61: 23900000 | P61: 0.57%
A62: 52 | B62: Chemicals | C62: COROMANDEL | D62: 2024-08-29 | E62: 1719.35 | F62: 1723.28 | G62: 1706.57 | H62: 1693.78 | I62: 1677.07 | J62: 1736.07 | K62: 1752.78 | L62: 1765.57 | M62: 1740 | N62: 1710.5 | O62: 4921700 | P62: 1.21%
A63: 53 | B63: Capital_Goods | C63: CROMPTON | D63: 2024-08-29 | E63: 436.60 | F63: 436.58 | G63: 429.22 | H63: 421.83 | I63: 414.47 | J63: 443.97 | K63: 451.33 | L63: 458.72 | M63: 443.95 | N63: 429.2 | O63: 19825200 | P63: -2.20%
A64: 54 | B64: Banking | C64: CUB | D64: 2024-08-29 | E64: 162.11 | F64: 163.15 | G64: 160.39 | H64: 158.67 | I64: 155.91 | J64: 164.87 | K64: 167.63 | L64: 169.35 | M64: 165.91 | N64: 161.43 | O64: 30470000 | P64: -0.70%
A65: 55 | B65: Capital_Goods | C65: CUMMINSIND | D65: 2024-08-29 | E65: 3710.40 | F65: 3722.22 | G65: 3654.23 | H65: 3598.07 | I65: 3530.08 | J65: 3778.38 | K65: 3846.37 | L65: 3902.53 | M65: 3790.2 | N65: 3666.05 | O65: 4508400 | P65: -1.35%
A66: 56 | B66: FMCG | C66: DABUR | D66: 2024-08-29 | E66: 607.85 | F66: 612.75 | G66: 600.10 | H66: 592.35 | I66: 579.70 | J66: 620.50 | K66: 633.15 | L66: 640.90 | M66: 625.4 | N66: 605 | O66: 17782500 | P66: 5.25%
A67: 57 | B67: Cement | C67: DALBHARAT | D67: 2024-08-29 | E67: 1736.55 | F67: 1736.72 | G67: 1721.88 | H67: 1707.22 | I67: 1692.38 | J67: 1751.38 | K67: 1766.22 | L67: 1780.88 | M67: 1751.55 | N67: 1722.05 | O67: 4747050 | P67: 1.01%
A68: 58 | B68: Chemicals | C68: DEEPAKNTR | D68: 2024-08-29 | E68: 2854.50 | F68: 2908.97 | G68: 2792.13 | H68: 2729.77 | I68: 2612.93 | J68: 2971.33 | K68: 3088.17 | L68: 3150.53 | M68: 3025.8 | N68: 2846.6 | O68: 2078400 | P68: 2.93%
A69: 59 | B69: Pharma | C69: DIVISLAB | D69: 2024-08-29 | E69: 4862.55 | F69: 4861.52 | G69: 4811.03 | H69: 4759.52 | I69: 4709.03 | J69: 4913.03 | K69: 4963.52 | L69: 5015.03 | M69: 4912 | N69: 4810 | O69: 2831200 | P69: -2.08%
A70: 60 | B70: Capital_Goods | C70: DIXON | D70: 2024-08-29 | E70: 11992.45 | F70: 11933.67 | G70: 11767.78 | H70: 11543.12 | I70: 11377.23 | J70: 12158.33 | K70: 12324.22 | L70: 12548.88 | M70: 12099.55 | N70: 11709 | O70: 2028300 | P70: -4.24%
A71: 61 | B71: Realty | C71: DLF | D71: 2024-08-29 | E71: 814.60 | F71: 821.65 | G71: 803.40 | H71: 792.20 | I71: 773.95 | J71: 832.85 | K71: 851.10 | L71: 862.30 | M71: 839.9 | N71: 810.45 | O71: 39144600 | P71: 2.06%
A72: 62 | B72: Pharma | C72: DRREDDY | D72: 2024-08-29 | E72: 6952.60 | F72: 6940.55 | G72: 6892.10 | H72: 6831.60 | I72: 6783.15 | J72: 7001.05 | K72: 7049.50 | L72: 7110.00 | M72: 6989 | N72: 6880.05 | O72: 2436625 | P72: -2.84%
A73: 63 | B73: Automobile | C73: EICHERMOT | D73: 2024-08-29 | E73: 4810.10 | F73: 4822.77 | G73: 4790.53 | H73: 4770.97 | I73: 4738.73 | J73: 4842.33 | K73: 4874.57 | L73: 4894.13 | M73: 4855 | N73: 4803.2 | O73: 3902850 | P73: -1.50%
A74: 64 | B74: Automobile | C74: ESCORTS | D74: 2024-08-29 | E74: 3717.75 | F74: 3737.38 | G74: 3690.77 | H74: 3663.78 | I74: 3617.17 | J74: 3764.37 | K74: 3810.98 | L74: 3837.97 | M74: 3784 | N74: 3710.4 | O74: 2034175 | P74: -2.56%
A75: 65 | B75: Automobile | C75: EXIDEIND | D75: 2024-08-29 | E75: 493.70 | F75: 498.00 | G75: 487.80 | H75: 481.90 | I75: 471.70 | J75: 503.90 | K75: 514.10 | L75: 520.00 | M75: 508.2 | N75: 492.1 | O75: 33606000 | P75: -0.89%
A76: 66 | B76: Banking | C76: FEDERALBNK | D76: 2024-08-29 | E76: 201.69 | F76: 202.96 | G76: 199.68 | H76: 197.68 | I76: 194.40 | J76: 204.96 | K76: 208.24 | L76: 210.24 | M76: 206.23 | N76: 200.95 | O76: 89130000 | P76: -2.55%
A77: 67 | B77: Oil_Gas | C77: GAIL | D77: 2024-08-29 | E77: 227.46 | F77: 229.64 | G77: 224.82 | H77: 222.19 | I77: 217.37 | J77: 232.27 | K77: 237.09 | L77: 239.72 | M77: 234.45 | N77: 227 | O77: 116868375 | P77: -0.11%
A78: 68 | B78: Pharma | C78: GLENMARK | D78: 2024-08-29 | E78: 1483.85 | F78: 1490.82 | G78: 1457.78 | H78: 1431.72 | I78: 1398.68 | J78: 1516.88 | K78: 1549.92 | L78: 1575.98 | M78: 1523.85 | N78: 1464.75 | O78: 5365000 | P78: 0.83%
A79: 69 | B79: Infrastructure | C79: GMRINFRA | D79: 2024-08-29 | E79: 95.14 | F79: 96.27 | G79: 93.66 | H79: 92.18 | I79: 89.57 | J79: 97.75 | K79: 100.36 | L79: 101.84 | M79: 98.88 | N79: 94.79 | O79: 228240000 | P79: 1.32%
A80: 70 | B80: Chemicals | C80: GNFC | D80: 2024-08-29 | E80: 659.35 | F80: 665.67 | G80: 649.23 | H80: 639.12 | I80: 622.68 | J80: 675.78 | K80: 692.22 | L80: 702.33 | M80: 682.1 | N80: 655.55 | O80: 8096400 | P80: 7.18%
A81: 71 | B81: FMCG | C81: GODREJCP | D81: 2024-08-29 | E81: 1386.30 | F81: 1389.23 | G81: 1376.52 | H81: 1366.73 | I81: 1354.02 | J81: 1399.02 | K81: 1411.73 | L81: 1421.52 | M81: 1401.95 | N81: 1379.45 | O81: 9509500 | P81: 2.04%
A82: 72 | B82: Realty | C82: GODREJPROP | D82: 2024-08-29 | E82: 2907.05 | F82: 2926.38 | G82: 2881.72 | H82: 2856.38 | I82: 2811.72 | J82: 2951.72 | K82: 2996.38 | L82: 3021.72 | M82: 2971.05 | N82: 2901.05 | O82: 5260275 | P82: 0.45%
A83: 73 | B83: Pharma | C83: GRANULES | D83: 2024-08-29 | E83: 675.05 | F83: 677.90 | G83: 668.15 | H83: 661.25 | I83: 651.50 | J83: 684.80 | K83: 694.55 | L83: 701.45 | M83: 687.65 | N83: 671 | O83: 9180000 | P83: -1.88%
A84: 74 | B84: Cement | C84: GRASIM | D84: 2024-08-29 | E84: 2526.45 | F84: 2544.78 | G84: 2502.32 | H84: 2478.18 | I84: 2435.72 | J84: 2568.92 | K84: 2611.38 | L84: 2635.52 | M84: 2587.25 | N84: 2520.65 | O84: 8882500 | P84: 2.18%
A85: 75 | B85: Oil_Gas | C85: GUJGASLTD | D85: 2024-08-29 | E85: 594.85 | F85: 601.50 | G85: 585.25 | H85: 575.65 | I85: 559.40 | J85: 611.10 | K85: 627.35 | L85: 636.95 | M85: 617.75 | N85: 591.9 | O85: 11231250 | P85: 3.39%
A86: 76 | B86: Capital_Goods | C86: HAL | D86: 2024-08-29 | E86: 4695.20 | F86: 4717.77 | G86: 4659.53 | H86: 4623.87 | I86: 4565.63 | J86: 4753.43 | K86: 4811.67 | L86: 4847.33 | M86: 4776 | N86: 4682.1 | O86: 13763100 | P86: 0.41%
A87: 77 | B87: Capital_Goods | C87: HAVELLS | D87: 2024-08-29 | E87: 1830.10 | F87: 1830.68 | G87: 1809.47 | H87: 1788.83 | I87: 1767.62 | J87: 1851.32 | K87: 1872.53 | L87: 1893.17 | M87: 1851.9 | N87: 1810.05 | O87: 8027000 | P87: -1.62%
A88: 78 | B88: Technology | C88: HCLTECH | D88: 2024-08-29 | E88: 1593.60 | F88: 1596.92 | G88: 1579.48 | H88: 1565.37 | I88: 1547.93 | J88: 1611.03 | K88: 1628.47 | L88: 1642.58 | M88: 1614.35 | N88: 1582.8 | O88: 13059200 | P88: 1.58%
A89: 79 | B89: Finance | C89: HDFCAMC | D89: 2024-08-29 | E89: 4154.75 | F89: 4185.57 | G89: 4103.18 | H89: 4051.62 | I89: 3969.23 | J89: 4237.13 | K89: 4319.52 | L89: 4371.08 | M89: 4267.95 | N89: 4134 | O89: 2972100 | P89: -3.23%
A90: 80 | B90: Banking | C90: HDFCBANK | D90: 2024-08-29 | E90: 1606.50 | F90: 1615.30 | G90: 1594.80 | H90: 1583.10 | I90: 1562.60 | J90: 1627.00 | K90: 1647.50 | L90: 1659.20 | M90: 1635.8 | N90: 1603.6 | O90: 196831800 | P90: 5.94%
A91: 81 | B91: Finance | C91: HDFCLIFE | D91: 2024-08-29 | E91: 685.75 | F91: 691.30 | G91: 673.50 | H91: 661.25 | I91: 643.45 | J91: 703.55 | K91: 721.35 | L91: 733.60 | M91: 709.1 | N91: 679.05 | O91: 26811400 | P91: -1.44%
A92: 82 | B92: Automobile | C92: HEROMOTOCO | D92: 2024-08-29 | E92: 5250.35 | F92: 5297.43 | G92: 5178.07 | H92: 5105.78 | I92: 4986.42 | J92: 5369.72 | K92: 5489.08 | L92: 5561.37 | M92: 5416.8 | N92: 5225.15 | O92: 4589250 | P92: 2.28%
A93: 83 | B93: Metals | C93: HINDALCO | D93: 2024-08-29 | E93: 623.35 | F93: 626.97 | G93: 617.88 | H93: 612.42 | I93: 603.33 | J93: 632.43 | K93: 641.52 | L93: 646.98 | M93: 636.05 | N93: 621.5 | O93: 43444800 | P93: 2.03%
A94: 84 | B94: Metals | C94: HINDCOPPER | D94: 2024-08-29 | E94: 313.25 | F94: 313.17 | G94: 306.93 | H94: 300.62 | I94: 294.38 | J94: 319.48 | K94: 325.72 | L94: 332.03 | M94: 319.4 | N94: 306.85 | O94: 33432400 | P94: -6.40%
A95: 85 | B95: Oil_Gas | C95: HINDPETRO | D95: 2024-08-29 | E95: 371.65 | F95: 371.32 | G95: 364.63 | H95: 357.62 | I95: 350.93 | J95: 378.33 | K95: 385.02 | L95: 392.03 | M95: 378 | N95: 364.3 | O95: 54709425 | P95: -6.99%
A96: 86 | B96: FMCG | C96: HINDUNILVR | D96: 2024-08-29 | E96: 2743.80 | F96: 2748.62 | G96: 2730.23 | H96: 2716.67 | I96: 2698.28 | J96: 2762.18 | K96: 2780.57 | L96: 2794.13 | M96: 2767 | N96: 2735.05 | O96: 14809200 | P96: -0.90%
A97: 87 | B97: Banking | C97: ICICIBANK | D97: 2024-08-29 | E97: 1172.70 | F97: 1177.18 | G97: 1162.82 | H97: 1152.93 | I97: 1138.57 | J97: 1187.07 | K97: 1201.43 | L97: 1211.32 | M97: 1191.55 | N97: 1167.3 | O97: 97419000 | P97: 7.45%
A98: 88 | B98: Finance | C98: ICICIGI | D98: 2024-08-29 | E98: 1950.75 | F98: 1960.87 | G98: 1927.88 | H98: 1905.02 | I98: 1872.03 | J98: 1983.73 | K98: 2016.72 | L98: 2039.58 | M98: 1993.85 | N98: 1938 | O98: 4098500 | P98: -1.86%
A99: 89 | B99: Finance | C99: ICICIPRULI | D99: 2024-08-29 | E99: 725.85 | F99: 728.95 | G99: 718.45 | H99: 711.05 | I99: 700.55 | J99: 736.35 | K99: 746.85 | L99: 754.25 | M99: 739.45 | N99: 721.55 | O99: 10617000 | P99: 3.34%
A100: 90 | B100: Telecom | C100: IDEA | D100: 2024-08-29 | E100: 15.51 | F100: 15.74 | G100: 15.21 | H100: 14.90 | I100: 14.37 | J100: 16.05 | K100: 16.58 | L100: 16.89 | M100: 16.28 | N100: 15.44 | O100: 4779520000 | P100: 0.32%
A101: 91 | B101: Finance | C101: IDFC | D101: 2024-08-29 | E101: 106.49 | F101: 106.93 | G101: 105.16 | H101: 103.83 | I101: 102.06 | J101: 108.26 | K101: 110.03 | L101: 111.36 | M101: 108.7 | N101: 105.6 | O101: 131530000 | P101: 1.06%
A102: 92 | B102: Banking | C102: IDFCFIRSTB | D102: 2024-08-29 | E102: 71.29 | F102: 71.65 | G102: 70.65 | H102: 70.02 | I102: 69.02 | J102: 72.28 | K102: 73.28 | L102: 73.91 | M102: 72.64 | N102: 71.01 | O102: 518512500 | P102: 1.09%
A103: 93 | B103: Power | C103: IEX | D103: 2024-08-29 | E103: 188.19 | F103: 190.59 | G103: 185.20 | H103: 182.21 | I103: 176.82 | J103: 193.58 | K103: 198.97 | L103: 201.96 | M103: 195.98 | N103: 187.6 | O103: 72862500 | P103: -2.94%
A104: 94 | B104: Oil_Gas | C104: IGL | D104: 2024-08-29 | E104: 542.35 | F104: 545.55 | G104: 537.80 | H104: 533.25 | I104: 525.50 | J104: 550.10 | K104: 557.85 | L104: 562.40 | M104: 553.3 | N104: 541 | O104: 11621500 | P104: -1.03%
A105: 95 | B105: Infrastructure | C105: INDHOTEL | D105: 2024-08-29 | E105: 613.30 | F105: 615.57 | G105: 608.38 | H105: 603.47 | I105: 596.28 | J105: 620.48 | K105: 627.67 | L105: 632.58 | M105: 622.75 | N105: 610.65 | O105: 19912000 | P105: 0.27%
A106: 96 | B106: Cement | C106: INDIACEM | D106: 2024-08-29 | E106: 365.10 | F106: 365.67 | G106: 363.03 | H106: 360.97 | I106: 358.33 | J106: 367.73 | K106: 370.37 | L106: 372.43 | M106: 368.3 | N106: 363.6 | O106: 21404900 | P106: -1.93%
A107: 97 | B107: FMCG | C107: INDIAMART | D107: 2024-08-29 | E107: 2645.95 | F107: 2667.10 | G107: 2584.20 | H107: 2522.45 | I107: 2439.55 | J107: 2728.85 | K107: 2811.75 | L107: 2873.50 | M107: 2750 | N107: 2605.35 | O107: 1768800 | P107: -1.82%
A108: 98 | B108: Infrastructure | C108: INDIGO | D108: 2024-08-29 | E108: 4234.35 | F108: 4261.63 | G108: 4196.27 | H108: 4158.18 | I108: 4092.82 | J108: 4299.72 | K108: 4365.08 | L108: 4403.17 | M108: 4327 | N108: 4223.55 | O108: 6412800 | P108: 1.02%
A109: 99 | B109: Banking | C109: INDUSINDBK | D109: 2024-08-29 | E109: 1355.55 | F109: 1360.42 | G109: 1343.33 | H109: 1331.12 | I109: 1314.03 | J109: 1372.63 | K109: 1389.72 | L109: 1401.93 | M109: 1377.5 | N109: 1348.2 | O109: 33251000 | P109: 2.54%
A110: 100 | B110: Telecom | C110: INDUSTOWER | D110: 2024-08-29 | E110: 406.35 | F110: 409.75 | G110: 400.60 | H110: 394.85 | I110: 385.70 | J110: 415.50 | K110: 424.65 | L110: 430.40 | M110: 418.9 | N110: 404 | O110: 85404600 | P110: -1.46%
A111: 101 | B111: Technology | C111: INFY | D111: 2024-08-29 | E111: 1800.35 | F111: 1801.78 | G111: 1791.77 | H111: 1783.18 | I111: 1773.17 | J111: 1810.37 | K111: 1820.38 | L111: 1828.97 | M111: 1811.8 | N111: 1793.2 | O111: 43415600 | P111: -0.00%
A112: 102 | B112: Oil_Gas | C112: IOC | D112: 2024-08-29 | E112: 164.23 | F112: 165.83 | G112: 161.91 | H112: 159.60 | I112: 155.68 | J112: 168.14 | K112: 172.06 | L112: 174.37 | M112: 169.74 | N112: 163.51 | O112: 202219875 | P112: 2.13%
A113: 103 | B113: Pharma | C113: IPCALAB | D113: 2024-08-29 | E113: 1390.90 | F113: 1385.28 | G113: 1360.67 | H113: 1330.43 | I113: 1305.82 | J113: 1415.52 | K113: 1440.13 | L113: 1470.37 | M113: 1409.9 | N113: 1355.05 | O113: 2471300 | P113: -0.42%
A114: 104 | B114: Infrastructure | C114: IRCTC | D114: 2024-08-29 | E114: 915.75 | F114: 917.72 | G114: 906.58 | H114: 897.42 | I114: 886.28 | J114: 926.88 | K114: 938.02 | L114: 947.18 | M114: 928.85 | N114: 908.55 | O114: 23102625 | P114: 3.33%
A115: 105 | B115: FMCG | C115: ITC | D115: 2024-08-29 | E115: 491.70 | F115: 493.70 | G115: 488.55 | H115: 485.40 | I115: 480.25 | J115: 496.85 | K115: 502.00 | L115: 505.15 | M115: 498.85 | N115: 490.55 | O115: 111294400 | P115: 0.86%
A116: 106 | B116: Metals | C116: JINDALSTEL | D116: 2024-08-29 | E116: 907.95 | F116: 912.92 | G116: 900.08 | H116: 892.22 | I116: 879.38 | J116: 920.78 | K116: 933.62 | L116: 941.48 | M116: 925.75 | N116: 905.05 | O116: 15975000 | P116: -3.23%
A117: 107 | B117: Cement | C117: JKCEMENT | D117: 2024-08-29 | E117: 4107.70 | F117: 4137.62 | G117: 4065.28 | H117: 4022.87 | I117: 3950.53 | J117: 4180.03 | K117: 4252.37 | L117: 4294.78 | M117: 4209.95 | N117: 4095.2 | O117: 813375 | P117: 1.56%
A118: 108 | B118: Metals | C118: JSWSTEEL | D118: 2024-08-29 | E118: 908.85 | F118: 915.53 | G118: 900.22 | H118: 891.58 | I118: 876.27 | J118: 924.17 | K118: 939.48 | L118: 948.12 | M118: 930.85 | N118: 906.9 | O118: 20315475 | P118: 0.57%
A119: 109 | B119: FMCG | C119: JUBLFOOD | D119: 2024-08-29 | E119: 645.65 | F119: 646.47 | G119: 640.63 | H119: 635.62 | I119: 629.78 | J119: 651.48 | K119: 657.32 | L119: 662.33 | M119: 652.3 | N119: 641.45 | O119: 22280000 | P119: -3.66%
A120: 110 | B120: Banking | C120: KOTAKBANK | D120: 2024-08-29 | E120: 1755.50 | F120: 1768.02 | G120: 1738.03 | H120: 1720.57 | I120: 1690.58 | J120: 1785.48 | K120: 1815.47 | L120: 1832.93 | M120: 1798 | N120: 1750.55 | O120: 35850800 | P120: 6.19%
A121: 111 | B121: Finance | C121: LTF | D121: 2024-08-29 | E121: 162.55 | F121: 164.25 | G121: 160.60 | H121: 158.65 | I121: 155.00 | J121: 166.20 | K121: 169.85 | L121: 171.80 | M121: 167.9 | N121: 162.3 | O121: 74319072 | P121: 1.31%
A122: 112 | B122: Pharma | C122: LALPATHLAB | D122: 2024-08-29 | E122: 3188.40 | F122: 3208.65 | G122: 3138.30 | H122: 3088.20 | I122: 3017.85 | J122: 3258.75 | K122: 3329.10 | L122: 3379.20 | M122: 3279 | N122: 3158.55 | O122: 1238700 | P122: 2.66%
A123: 113 | B123: Pharma | C123: LAURUSLABS | D123: 2024-08-29 | E123: 420.60 | F123: 424.47 | G123: 415.53 | H123: 410.47 | I123: 401.53 | J123: 429.53 | K123: 438.47 | L123: 443.53 | M123: 433.4 | N123: 419.4 | O123: 22013300 | P123: 0.88%
A124: 114 | B124: Finance | C124: LICHSGFIN | D124: 2024-08-29 | E124: 634.80 | F124: 638.08 | G124: 626.72 | H124: 618.63 | I124: 607.27 | J124: 646.17 | K124: 657.53 | L124: 665.62 | M124: 649.45 | N124: 630 | O124: 32085000 | P124: -0.73%
A125: 115 | B125: Capital_Goods | C125: LT | D125: 2024-08-29 | E125: 3555.50 | F125: 3574.17 | G125: 3531.33 | H125: 3507.17 | I125: 3464.33 | J125: 3598.33 | K125: 3641.17 | L125: 3665.33 | M125: 3617 | N125: 3550 | O125: 17018100 | P125: 0.21%
A126: 116 | B126: Technology | C126: LTIM | D126: 2024-08-29 | E126: 5389.75 | F126: 5366.68 | G126: 5313.42 | H126: 5237.08 | I126: 5183.82 | J126: 5443.02 | K126: 5496.28 | L126: 5572.62 | M126: 5419.95 | N126: 5290.35 | O126: 3165450 | P126: -2.77%
A127: 117 | B127: Technology | C127: LTTS | D127: 2024-08-29 | E127: 4773.70 | F127: 4788.72 | G127: 4733.48 | H127: 4693.27 | I127: 4638.03 | J127: 4828.93 | K127: 4884.17 | L127: 4924.38 | M127: 4843.95 | N127: 4748.5 | O127: 1711900 | P127: 0.09%
A128: 118 | B128: Pharma | C128: LUPIN | D128: 2024-08-29 | E128: 2104.50 | F128: 2112.62 | G128: 2086.53 | H128: 2068.57 | I128: 2042.48 | J128: 2130.58 | K128: 2156.67 | L128: 2174.63 | M128: 2138.7 | N128: 2094.65 | O128: 13897500 | P128: -0.87%
A129: 119 | B129: Automobile | C129: M&M | D129: 2024-08-29 | E129: 2721.35 | F129: 2726.43 | G129: 2704.92 | H129: 2688.48 | I129: 2666.97 | J129: 2742.87 | K129: 2764.38 | L129: 2780.82 | M129: 2747.95 | N129: 2710 | O129: 14602350 | P129: 0.38%
A130: 120 | B130: Finance | C130: M&MFIN | D130: 2024-08-29 | E130: 288.50 | F130: 291.80 | G130: 284.20 | H130: 279.90 | I130: 272.30 | J130: 296.10 | K130: 303.70 | L130: 308.00 | M130: 299.4 | N130: 287.5 | O130: 43386000 | P130: 2.07%
A131: 121 | B131: Finance | C131: MANAPPURAM | D131: 2024-08-29 | E131: 205.49 | F131: 205.69 | G131: 199.80 | H131: 194.12 | I131: 188.23 | J131: 211.37 | K131: 217.26 | L131: 222.94 | M131: 211.57 | N131: 200 | O131: 69678000 | P131: -3.44%
A132: 122 | B132: FMCG | C132: MARICO | D132: 2024-08-29 | E132: 652.65 | F132: 650.97 | G132: 642.68 | H132: 632.72 | I132: 624.43 | J132: 660.93 | K132: 669.22 | L132: 679.18 | M132: 659.25 | N132: 641 | O132: 14010000 | P132: 5.35%
A133: 123 | B133: Automobile | C133: MARUTI | D133: 2024-08-29 | E133: 12182.65 | F133: 12231.90 | G133: 12091.90 | H133: 12001.15 | I133: 11861.15 | J133: 12322.65 | K133: 12462.65 | L133: 12553.40 | M133: 12371.9 | N133: 12141.15 | O133: 3224350 | P133: 3.40%
A134: 124 | B134: FMCG | C134: UNITDSPR | D134: 2024-08-29 | E134: 1407.55 | F134: 1421.98 | G134: 1389.92 | H134: 1372.28 | I134: 1340.22 | J134: 1439.62 | K134: 1471.68 | L134: 1489.32 | M134: 1454.05 | N134: 1404.35 | O134: 10478300 | P134: -0.89%
A135: 125 | B135: Technology | C135: MCX | D135: 2024-08-29 | E135: 4365.35 | F135: 4382.78 | G135: 4333.37 | H135: 4301.38 | I135: 4251.97 | J135: 4414.77 | K135: 4464.18 | L135: 4496.17 | M135: 4432.2 | N135: 4350.8 | O135: 2348800 | P135: -3.09%
A136: 126 | B136: Pharma | C136: METROPOLIS | D136: 2024-08-29 | E136: 2011.25 | F136: 2028.73 | G136: 1988.97 | H136: 1966.68 | I136: 1926.92 | J136: 2051.02 | K136: 2090.78 | L136: 2113.07 | M136: 2068.5 | N136: 2006.45 | O136: 1573600 | P136: -0.61%
A137: 127 | B137: Finance | C137: MFSL | D137: 2024-08-29 | E137: 1052.20 | F137: 1060.55 | G137: 1036.40 | H137: 1020.60 | I137: 996.45 | J137: 1076.35 | K137: 1100.50 | L137: 1116.30 | M137: 1084.7 | N137: 1044.75 | O137: 3722400 | P137: -1.11%
A138: 128 | B138: Oil_Gas | C138: MGL | D138: 2024-08-29 | E138: 1778.40 | F138: 1794.32 | G138: 1758.13 | H138: 1737.87 | I138: 1701.68 | J138: 1814.58 | K138: 1850.77 | L138: 1871.03 | M138: 1830.5 | N138: 1774.05 | O138: 2184400 | P138: -9.68%
A139: 129 | B139: Automobile | C139: MOTHERSON | D139: 2024-08-29 | E139: 179.99 | F139: 182.10 | G139: 174.89 | H139: 169.80 | I139: 162.59 | J139: 187.19 | K139: 194.40 | L139: 199.49 | M139: 189.3 | N139: 177 | O139: 139358800 | P139: -0.24%
A140: 130 | B140: Technology | C140: MPHASIS | D140: 2024-08-29 | E140: 2700.55 | F140: 2707.88 | G140: 2681.77 | H140: 2662.98 | I140: 2636.87 | J140: 2726.67 | K140: 2752.78 | L140: 2771.57 | M140: 2734 | N140: 2689.1 | O140: 4350775 | P140: -2.24%
A141: 131 | B141: Automobile | C141: MRF | D141: 2024-08-29 | E141: 138063.05 | F141: 138220.50 | G141: 137363.40 | H141: 136663.75 | I141: 135806.65 | J141: 138920.15 | K141: 139777.25 | L141: 140476.90 | M141: 139077.6 | N141: 137520.85 | O141: 64850 | P141: -1.96%
A142: 132 | B142: Finance | C142: MUTHOOTFIN | D142: 2024-08-29 | E142: 1857.85 | F142: 1871.95 | G142: 1836.90 | H142: 1815.95 | I142: 1780.90 | J142: 1892.90 | K142: 1927.95 | L142: 1948.90 | M142: 1907 | N142: 1851 | O142: 4817450 | P142: 1.99%
A143: 133 | B143: Metals | C143: NATIONALUM | D143: 2024-08-29 | E143: 169.82 | F143: 171.65 | G143: 167.41 | H143: 165.01 | I143: 160.77 | J143: 174.05 | K143: 178.29 | L143: 180.69 | M143: 175.88 | N143: 169.24 | O143: 68981250 | P143: -5.04%
A144: 134 | B144: Technology | C144: NAUKRI | D144: 2024-08-29 | E144: 7111.90 | F144: 7166.05 | G144: 7007.15 | H144: 6902.40 | I144: 6743.50 | J144: 7270.80 | K144: 7429.70 | L144: 7534.45 | M144: 7324.95 | N144: 7061.3 | O144: 1355700 | P144: 3.33%
A145: 135 | B145: Chemicals | C145: NAVINFLUOR | D145: 2024-08-29 | E145: 3283.00 | F145: 3341.42 | G145: 3214.63 | H145: 3146.27 | I145: 3019.48 | J145: 3409.78 | K145: 3536.57 | L145: 3604.93 | M145: 3468.2 | N145: 3273.05 | O145: 2114875 | P145: 5.03%
A146: 136 | B146: FMCG | C146: NESTLEIND | D146: 2024-08-29 | E146: 2488.25 | F146: 2488.33 | G146: 2477.37 | H146: 2466.48 | I146: 2455.52 | J146: 2499.22 | K146: 2510.18 | L146: 2521.07 | M146: 2499.3 | N146: 2477.45 | O146: 6420800 | P146: -0.43%
A147: 137 | B147: Metals | C147: NMDC | D147: 2024-08-29 | E147: 224.25 | F147: 227.30 | G147: 220.13 | H147: 216.02 | I147: 208.85 | J147: 231.41 | K147: 238.58 | L147: 242.69 | M147: 234.46 | N147: 223.18 | O147: 97888500 | P147: 3.69%
A148: 138 | B148: Power | C148: NTPC | D148: 2024-08-29 | E148: 397.55 | F148: 399.98 | G148: 393.87 | H148: 390.18 | I148: 384.07 | J148: 403.67 | K148: 409.78 | L148: 413.47 | M148: 406.1 | N148: 396.3 | O148: 87700500 | P148: -1.23%
A149: 139 | B149: Realty | C149: OBEROIRLTY | D149: 2024-08-29 | E149: 1747.30 | F149: 1762.53 | G149: 1725.07 | H149: 1702.83 | I149: 1665.37 | J149: 1784.77 | K149: 1822.23 | L149: 1844.47 | M149: 1800 | N149: 1740.3 | O149: 7087500 | P149: 0.67%
A150: 140 | B150: Technology | C150: OFSS | D150: 2024-08-29 | E150: 10738.30 | F150: 10772.23 | G150: 10574.27 | H150: 10410.23 | I150: 10212.27 | J150: 10936.27 | K150: 11134.23 | L150: 11298.27 | M150: 10970.2 | N150: 10608.2 | O150: 1704500 | P150: -4.26%
A151: 141 | B151: Oil_Gas | C151: ONGC | D151: 2024-08-29 | E151: 334.00 | F151: 335.97 | G151: 328.93 | H151: 323.87 | I151: 316.83 | J151: 341.03 | K151: 348.07 | L151: 353.13 | M151: 343 | N151: 330.9 | O151: 127735300 | P151: -2.42%
A152: 142 | B152: Textile | C152: PAGEIND | D152: 2024-08-29 | E152: 40890.60 | F152: 40863.58 | G152: 40347.17 | H152: 39803.73 | I152: 39287.32 | J152: 41407.02 | K152: 41923.43 | L152: 42466.87 | M152: 41380 | N152: 40320.15 | O152: 183855 | P152: -2.63%
A153: 143 | B153: Pharma | C153: PEL | D153: 2024-08-29 | E153: 988.95 | F153: 990.82 | G153: 970.73 | H153: 952.52 | I153: 932.43 | J153: 1009.03 | K153: 1029.12 | L153: 1047.33 | M153: 1010.9 | N153: 972.6 | O153: 10644750 | P153: -6.49%
A154: 144 | B154: Technology | C154: PERSISTENT | D154: 2024-08-29 | E154: 4720.85 | F154: 4731.63 | G154: 4669.27 | H154: 4617.68 | I154: 4555.32 | J154: 4783.22 | K154: 4845.58 | L154: 4897.17 | M154: 4794 | N154: 4680.05 | O154: 2366000 | P154: -3.37%
A155: 145 | B155: Oil_Gas | C155: PETRONET | D155: 2024-08-29 | E155: 368.70 | F155: 370.50 | G155: 365.80 | H155: 362.90 | I155: 358.20 | J155: 373.40 | K155: 378.10 | L155: 381.00 | M155: 375.2 | N155: 367.6 | O155: 25545000 | P155: -1.57%
A156: 146 | B156: Finance | C156: PFC | D156: 2024-08-29 | E156: 483.10 | F156: 487.67 | G156: 476.78 | H156: 470.47 | I156: 459.58 | J156: 493.98 | K156: 504.87 | L156: 511.18 | M156: 498.55 | N156: 481.35 | O156: 52117000 | P156: 0.32%
A157: 147 | B157: FMCG | C157: PIDILITIND | D157: 2024-08-29 | E157: 3050.45 | F157: 3052.55 | G157: 3025.10 | H157: 2999.75 | I157: 2972.30 | J157: 3077.90 | K157: 3105.35 | L157: 3130.70 | M157: 3080 | N157: 3027.2 | O157: 2848000 | P157: 2.34%
A158: 148 | B158: Chemicals | C158: PIIND | D158: 2024-08-29 | E158: 4379.15 | F158: 4403.60 | G158: 4340.90 | H158: 4302.65 | I158: 4239.95 | J158: 4441.85 | K158: 4504.55 | L158: 4542.80 | M158: 4466.3 | N158: 4365.35 | O158: 1958500 | P158: -2.28%
A159: 149 | B159: Banking | C159: PNB | D159: 2024-08-29 | E159: 114.65 | F159: 115.04 | G159: 113.40 | H159: 112.14 | I159: 110.50 | J159: 116.30 | K159: 117.94 | L159: 119.20 | M159: 116.69 | N159: 113.79 | O159: 280512000 | P159: -1.66%
A160: 150 | B160: Capital_Goods | C160: POLYCAB | D160: 2024-08-29 | E160: 6423.60 | F160: 6482.18 | G160: 6328.37 | H160: 6233.13 | I160: 6079.32 | J160: 6577.42 | K160: 6731.23 | L160: 6826.47 | M160: 6636 | N160: 6386.95 | O160: 3132500 | P160: 1.94%
A161: 151 | B161: Power | C161: POWERGRID | D161: 2024-08-29 | E161: 335.15 | F161: 336.57 | G161: 332.13 | H161: 329.12 | I161: 324.68 | J161: 339.58 | K161: 344.02 | L161: 347.03 | M161: 341 | N161: 333.55 | O161: 71924400 | P161: 1.70%
A162: 152 | B162: Media | C162: PVRINOX | D162: 2024-08-29 | E162: 1458.90 | F162: 1469.90 | G162: 1444.15 | H162: 1429.40 | I162: 1403.65 | J162: 1484.65 | K162: 1510.40 | L162: 1525.15 | M162: 1495.65 | N162: 1455.15 | O162: 4506711 | P162: 1.31%
A163: 153 | B163: Cement | C163: RAMCOCEM | D163: 2024-08-29 | E163: 790.55 | F163: 794.82 | G163: 784.13 | H163: 777.72 | I163: 767.03 | J163: 801.23 | K163: 811.92 | L163: 818.33 | M163: 805.5 | N163: 788.4 | O163: 9353400 | P163: 0.31%
A164: 154 | B164: Banking | C164: RBLBANK | D164: 2024-08-29 | E164: 214.53 | F164: 215.02 | G164: 213.35 | H164: 212.17 | I164: 210.50 | J164: 216.20 | K164: 217.87 | L164: 219.05 | M164: 216.69 | N164: 213.84 | O164: 70790000 | P164: -0.46%
A165: 155 | B165: Finance | C165: RECLTD | D165: 2024-08-29 | E165: 570.15 | F165: 573.98 | G165: 564.27 | H165: 558.38 | I165: 548.67 | J165: 579.87 | K165: 589.58 | L165: 595.47 | M165: 583.7 | N165: 568.1 | O165: 49168000 | P165: -2.05%
A166: 156 | B166: Oil_Gas | C166: RELIANCE | D166: 2024-08-29 | E166: 2924.90 | F166: 2927.58 | G166: 2913.67 | H166: 2902.43 | I166: 2888.52 | J166: 2938.82 | K166: 2952.73 | L166: 2963.97 | M166: 2941.5 | N166: 2916.35 | O166: 45183500 | P166: -1.14%
A167: 157 | B167: Metals | C167: SAIL | D167: 2024-08-29 | E167: 127.91 | F167: 129.15 | G167: 126.31 | H167: 124.70 | I167: 121.86 | J167: 130.76 | K167: 133.60 | L167: 135.21 | M167: 132 | N167: 127.55 | O167: 143668000 | P167: -2.37%
A168: 158 | B168: Finance | C168: SBICARD | D168: 2024-08-29 | E168: 689.75 | F168: 692.82 | G168: 684.78 | H168: 679.82 | I168: 671.78 | J168: 697.78 | K168: 705.82 | L168: 710.78 | M168: 700.85 | N168: 687.85 | O168: 27576000 | P168: 2.44%
A169: 159 | B169: Finance | C169: SBILIFE | D169: 2024-08-29 | E169: 1686.00 | F169: 1694.47 | G169: 1666.08 | H169: 1646.17 | I169: 1617.78 | J169: 1714.38 | K169: 1742.77 | L169: 1762.68 | M169: 1722.85 | N169: 1674.55 | O169: 6424500 | P169: -2.97%
A170: 160 | B170: Banking | C170: SBIN | D170: 2024-08-29 | E170: 800.10 | F170: 806.93 | G170: 790.97 | H170: 781.83 | I170: 765.87 | J170: 816.07 | K170: 832.03 | L170: 841.17 | M170: 822.9 | N170: 797.8 | O170: 99977250 | P170: 9.48%
A171: 161 | B171: Cement | C171: SHREECEM | D171: 2024-08-29 | E171: 24250.00 | F171: 24402.53 | G171: 24064.42 | H171: 23878.83 | I171: 23540.72 | J171: 24588.12 | K171: 24926.23 | L171: 25111.82 | M171: 24740.65 | N171: 24216.95 | O171: 315925 | P171: -0.66%
A172: 162 | B172: Capital_Goods | C172: SIEMENS | D172: 2024-08-29 | E172: 6991.05 | F172: 6976.28 | G172: 6879.77 | H172: 6768.48 | I172: 6671.97 | J172: 7087.57 | K172: 7184.08 | L172: 7295.37 | M172: 7072.8 | N172: 6865 | O172: 2401950 | P172: -6.13%
A173: 163 | B173: Textile | C173: SRF | D173: 2024-08-29 | E173: 2524.60 | F173: 2538.78 | G173: 2504.72 | H173: 2484.83 | I173: 2450.77 | J173: 2558.67 | K173: 2592.73 | L173: 2612.62 | M173: 2572.85 | N173: 2518.9 | O173: 5221500 | P173: 0.99%
A174: 164 | B174: Finance | C174: SHRIRAMFIN | D174: 2024-08-29 | E174: 2895.80 | F174: 2920.87 | G174: 2839.78 | H174: 2783.77 | I174: 2702.68 | J174: 2976.88 | K174: 3057.97 | L174: 3113.98 | M174: 3001.95 | N174: 2864.85 | O174: 6724200 | P174: 0.84%
A175: 165 | B175: Pharma | C175: SUNPHARMA | D175: 2024-08-29 | E175: 1739.40 | F175: 1738.60 | G175: 1725.60 | H175: 1711.80 | I175: 1698.80 | J175: 1752.40 | K175: 1765.40 | L175: 1779.20 | M175: 1751.6 | N175: 1724.8 | O175: 16335200 | P175: 4.29%
A176: 166 | B176: Media | C176: SUNTV | D176: 2024-08-29 | E176: 813.40 | F176: 802.83 | G176: 785.67 | H176: 757.93 | I176: 740.77 | J176: 830.57 | K176: 847.73 | L176: 875.47 | M176: 820 | N176: 775.1 | O176: 9936000 | P176: -9.71%
A177: 167 | B177: Pharma | C177: SYNGENE | D177: 2024-08-29 | E177: 824.15 | F177: 826.97 | G177: 819.43 | H177: 814.72 | I177: 807.18 | J177: 831.68 | K177: 839.22 | L177: 843.93 | M177: 834.5 | N177: 822.25 | O177: 5887000 | P177: -0.67%
A178: 168 | B178: Chemicals | C178: TATACHEM | D178: 2024-08-29 | E178: 1028.55 | F178: 1035.90 | G178: 1018.90 | H178: 1009.25 | I178: 992.25 | J178: 1045.55 | K178: 1062.55 | L178: 1072.20 | M178: 1052.9 | N178: 1026.25 | O178: 9571650 | P178: 1.79%
A179: 169 | B179: Telecom | C179: TATACOMM | D179: 2024-08-29 | E179: 1853.50 | F179: 1865.83 | G179: 1835.22 | H179: 1816.93 | I179: 1786.32 | J179: 1884.12 | K179: 1914.73 | L179: 1933.02 | M179: 1896.45 | N179: 1847.55 | O179: 6746000 | P179: -0.79%
A180: 170 | B180: FMCG | C180: TATACONSUM | D180: 2024-08-29 | E180: 1180.45 | F180: 1177.98 | G180: 1171.32 | H180: 1162.18 | I180: 1155.52 | J180: 1187.12 | K180: 1193.78 | L180: 1202.92 | M180: 1184.65 | N180: 1168.85 | O180: 11637120 | P180: -0.23%
A181: 171 | B181: Automobile | C181: TATAMOTORS | D181: 2024-08-29 | E181: 1052.60 | F181: 1057.63 | G181: 1044.27 | H181: 1035.93 | I181: 1022.57 | J181: 1065.97 | K181: 1079.33 | L181: 1087.67 | M181: 1071 | N181: 1049.3 | O181: 67808950 | P181: 1.42%
A182: 172 | B182: Power | C182: TATAPOWER | D182: 2024-08-29 | E182: 408.50 | F182: 412.12 | G182: 403.33 | H182: 398.17 | I182: 389.38 | J182: 417.28 | K182: 426.07 | L182: 431.23 | M182: 420.9 | N182: 406.95 | O182: 100542600 | P182: 1.17%
A183: 173 | B183: Metals | C183: TATASTEEL | D183: 2024-08-29 | E183: 148.96 | F183: 150.35 | G183: 147.20 | H183: 145.44 | I183: 142.29 | J183: 152.11 | K183: 155.26 | L183: 157.02 | M183: 153.5 | N183: 148.59 | O183: 292594500 | P183: 1.29%
A184: 174 | B184: Technology | C184: TCS | D184: 2024-08-29 | E184: 4206.30 | F184: 4214.67 | G184: 4184.68 | H184: 4163.07 | I184: 4133.08 | J184: 4236.28 | K184: 4266.27 | L184: 4287.88 | M184: 4244.65 | N184: 4193.05 | O184: 13715625 | P184: 0.51%
A185: 175 | B185: Technology | C185: TECHM | D185: 2024-08-29 | E185: 1505.00 | F185: 1509.87 | G185: 1492.23 | H185: 1479.47 | I185: 1461.83 | J185: 1522.63 | K185: 1540.27 | L185: 1553.03 | M185: 1527.5 | N185: 1497.1 | O185: 12630600 | P185: -2.32%
A186: 176 | B186: FMCG | C186: TITAN | D186: 2024-08-29 | E186: 3387.80 | F186: 3373.57 | G186: 3330.13 | H186: 3272.47 | I186: 3229.03 | J186: 3431.23 | K186: 3474.67 | L186: 3532.33 | M186: 3417 | N186: 3315.9 | O186: 9825725 | P186: -0.88%
A187: 177 | B187: Pharma | C187: TORNTPHARM | D187: 2024-08-29 | E187: 3351.70 | F187: 3346.90 | G187: 3321.80 | H187: 3291.90 | I187: 3266.80 | J187: 3376.80 | K187: 3401.90 | L187: 3431.80 | M187: 3372 | N187: 3317 | O187: 2116500 | P187: 10.32%
A188: 178 | B188: Textile | C188: TRENT | D188: 2024-08-29 | E188: 6395.90 | F188: 6403.82 | G188: 6342.63 | H188: 6289.37 | I188: 6228.18 | J188: 6457.08 | K188: 6518.27 | L188: 6571.53 | M188: 6465 | N188: 6350.55 | O188: 3342600 | P188: -2.57%
A189: 179 | B189: Automobile | C189: TVSMOTOR | D189: 2024-08-29 | E189: 2637.60 | F189: 2615.78 | G189: 2574.82 | H189: 2512.03 | I189: 2471.07 | J189: 2678.57 | K189: 2719.53 | L189: 2782.32 | M189: 2656.75 | N189: 2553 | O189: 5415550 | P189: 1.86%
A190: 180 | B190: FMCG | C190: UBL | D190: 2024-08-29 | E190: 1911.60 | F190: 1919.20 | G190: 1901.40 | H190: 1891.20 | I190: 1873.40 | J190: 1929.40 | K190: 1947.20 | L190: 1957.40 | M190: 1937 | N190: 1909 | O190: 2348000 | P190: -2.41%
A191: 181 | B191: Cement | C191: ULTRACEMCO | D191: 2024-08-29 | E191: 11263.85 | F191: 11306.10 | G191: 11198.10 | H191: 11132.35 | I191: 11024.35 | J191: 11371.85 | K191: 11479.85 | L191: 11545.60 | M191: 11414.1 | N191: 11240.35 | O191: 2260600 | P191: 1.61%
A192: 182 | B192: Chemicals | C192: UPL | D192: 2024-08-29 | E192: 552.70 | F192: 557.13 | G192: 547.07 | H192: 541.43 | I192: 531.37 | J192: 562.77 | K192: 572.83 | L192: 578.47 | M192: 567.2 | N192: 551.5 | O192: 36349300 | P192: 0.39%
A193: 183 | B193: Metals | C193: VEDL | D193: 2024-08-29 | E193: 423.45 | F193: 426.90 | G193: 418.30 | H193: 413.15 | I193: 404.55 | J193: 432.05 | K193: 440.65 | L193: 445.80 | M193: 435.5 | N193: 421.75 | O193: 158279100 | P193: -0.71%
A194: 184 | B194: Capital_Goods | C194: VOLTAS | D194: 2024-08-29 | E194: 1579.50 | F194: 1585.45 | G194: 1569.05 | H194: 1558.60 | I194: 1542.20 | J194: 1595.90 | K194: 1612.30 | L194: 1622.75 | M194: 1601.85 | N194: 1575 | O194: 10480200 | P194: -3.58%
A195: 185 | B195: Technology | C195: WIPRO | D195: 2024-08-29 | E195: 492.25 | F195: 491.80 | G195: 488.90 | H195: 485.55 | I195: 482.65 | J195: 495.15 | K195: 498.05 | L195: 501.40 | M195: 494.7 | N195: 488.45 | O195: 55227000 | P195: -0.32%
A196: 186 | B196: Pharma | C196: ZYDUSLIFE | D196: 2024-08-29 | E196: 1176.50 | F196: 1203.78 | G196: 1142.87 | H196: 1109.23 | I196: 1048.32 | J196: 1237.42 | K196: 1298.33 | L196: 1331.97 | M196: 1264.7 | N196: 1170.15 | O196: 19928700 | P196: -0.48%
A210: Pivot Point: This is trigger point for intra day buy/sell based on the price range of the previous day
A211: As per the tool,the trader should take BUY position just above Pivot and keep the stop loss of pivot point and the first target would be Resistance 1(R1)
A212: If R1 is crossed then R2 becomes the next target with stop loss of at R1
A213: Similarly if price goes below pivot point then the trader should sell and keep a stop loss of pivot point and the first target would be S1
A214: If S1 is crossed then S2 becomes the next target with stop loss of at S1
A216: Disclaimer:
A217: This document has been prepared by the Retail Research Desk of Asit C Mehta
A218: Investment Intermediates Ltd. and is meant for use of the recipient only
A219: and is not for circulation. This document is not to be reported or
A220: copied or made available to others. It should not be considered to be
... 5 more rows

Sheet Cash Intra
M5: Back to Main Page
A6: FOR INTRA DAY TRADING | K6: =Main!B10 -> 2024-08-14
A8: Sr.no | C8: CLOSE RATE | D8: Pivot Point | E8: Supports | H8: Resistances
E9: S1 | F9: S2 | G9: S3 | H9: R1 | I9: R2 | J9: R3 | K9: HIGH | L9: LOW | M9: Total Trade Quanity in Lakhs
A10: 1 | B10: Nifty 50 | C10: 24139.00 | D10: 24205.15 | E10: 24050.35 | F10: 23961.70 | G10: 23806.90 | H10: 24293.80 | I10: 24448.60 | J10: 24537.25 | K10: 24359.95 | L10: 24116.50
A11: 2 | B11: Nifty Bank | C11: 49831.85 | D11: 50058.73 | E11: 49558.22 | F11: 49284.58 | G11: 48784.07 | H11: 50332.37 | I11: 50832.88 | J11: 51106.52 | K11: 50559.25 | L11: 49785.10
A12: 3 | B12: Nifty CPSE | C12: 7306.90 | D12: 7341.75 | E12: 7248.90 | F12: 7190.90 | G12: 7098.05 | H12: 7399.75 | I12: 7492.60 | J12: 7550.60 | K12: 7434.60 | L12: 7283.75
A13: 4 | B13: Nifty Infra | C13: 9052.95 | D13: 9081.55 | E13: 9009.25 | F13: 8965.55 | G13: 8893.25 | H13: 9125.25 | I13: 9197.55 | J13: 9241.25 | K13: 9153.85 | L13: 9037.85
A14: 5 | B14: Nifty IT | C14: 39114.85 | D14: 39156.95 | E14: 38930.60 | F14: 38746.35 | G14: 38520.00 | H14: 39341.20 | I14: 39567.55 | J14: 39751.80 | K14: 39383.30 | L14: 38972.70
A15: 6 | B15: Nifty PSE | C15: 11092.15 | D15: 11154.80 | E15: 11001.60 | F15: 10911.05 | G15: 10757.85 | H15: 11245.35 | I15: 11398.55 | J15: 11489.10 | K15: 11308.00 | L15: 11064.25
A16: 7 | B16: Nifty Midcap 50 | C16: 16055.35 | D16: 16127.52 | E16: 15959.73 | F16: 15864.12 | G16: 15696.33 | H16: 16223.13 | I16: 16390.92 | J16: 16486.53 | K16: 16295.30 | L16: 16031.90
A17: 8 | B17: ABB | C17: 7544.8 | D17: 7619.52 | E17: 7450.28 | F17: 7355.77 | G17: 7186.53 | H17: 7714.03 | I17: 7883.27 | J17: 7977.78 | K17: 7788.75 | L17: 7525 | M17: 4.85092
A18: 9 | B18: ACC | C18: 2304.8 | D18: 2323.68 | E18: 2281.17 | F18: 2257.53 | G18: 2215.02 | H18: 2347.32 | I18: 2389.83 | J18: 2413.47 | K18: 2366.2 | L18: 2300.05 | M18: 3.47684
A19: 10 | B19: APLAPOLLO | C19: 1411.25 | D19: 1420.02 | E19: 1395.83 | F19: 1380.42 | G19: 1356.23 | H19: 1435.43 | I19: 1459.62 | J19: 1475.03 | K19: 1444.2 | L19: 1404.6 | M19: 2.17949
A20: 11 | B20: AUBANK | C20: 611.95 | D20: 611.43 | E20: 607.42 | F20: 602.88 | G20: 598.87 | H20: 615.97 | I20: 619.98 | J20: 624.52 | K20: 615.45 | L20: 606.9 | M20: 23.26446
A21: 12 | B21: ADANIENSOL | C21: 1071.25 | D21: 1088.75 | E21: 1047.60 | F21: 1023.95 | G21: 982.80 | H21: 1112.40 | I21: 1153.55 | J21: 1177.20 | K21: 1129.9 | L21: 1065.1 | M21: 58.08191
A22: 13 | B22: ADANIENT | C22: 3092.2 | D22: 3117.35 | E22: 3056.60 | F22: 3021.00 | G22: 2960.25 | H22: 3152.95 | I22: 3213.70 | J22: 3249.30 | K22: 3178.1 | L22: 3081.75 | M22: 21.92588
A23: 14 | B23: ADANIGREEN | C23: 1825.65 | D23: 1827.40 | E23: 1807.40 | F23: 1789.15 | G23: 1769.15 | H23: 1845.65 | I23: 1865.65 | J23: 1883.90 | K23: 1847.4 | L23: 1809.15 | M23: 13.03132
A24: 15 | B24: ADANIPORTS | C24: 1483.45 | D24: 1493.47 | E24: 1469.48 | F24: 1455.52 | G24: 1431.53 | H24: 1507.43 | I24: 1531.42 | J24: 1545.38 | K24: 1517.45 | L24: 1479.5 | M24: 24.85446
A25: 16 | B25: ADANIPOWER | C25: 689.5 | D25: 692.67 | E25: 682.83 | F25: 676.17 | G25: 666.33 | H25: 699.33 | I25: 709.17 | J25: 715.83 | K25: 702.5 | L25: 686 | M25: 147.72732
A26: 17 | B26: ATGL | C26: 851.35 | D26: 854.68 | E26: 841.62 | F26: 831.88 | G26: 818.82 | H26: 864.42 | I26: 877.48 | J26: 887.22 | K26: 867.75 | L26: 844.95 | M26: 50.9854
A27: 18 | B27: AWL | C27: 360.4 | D27: 365.17 | E27: 353.43 | F27: 346.47 | G27: 334.73 | H27: 372.13 | I27: 383.87 | J27: 390.83 | K27: 376.9 | L27: 358.2 | M27: 45.96839
A28: 19 | B28: ABCAPITAL | C28: 207.69 | D28: 209.54 | E28: 204.55 | F28: 201.42 | G28: 196.43 | H28: 212.67 | I28: 217.66 | J28: 220.79 | K28: 214.52 | L28: 206.4 | M28: 40.09584
A29: 20 | B29: ABFRL | C29: 312.7 | D29: 315.70 | E29: 306.40 | F29: 300.10 | G29: 290.80 | H29: 322.00 | I29: 331.30 | J29: 337.60 | K29: 325 | L29: 309.4 | M29: 22.52914
A30: 21 | B30: ALKEM | C30: 5709.4 | D30: 5725.53 | E30: 5655.87 | F30: 5602.33 | G30: 5532.67 | H30: 5779.07 | I30: 5848.73 | J30: 5902.27 | K30: 5795.2 | L30: 5672 | M30: 3.05322
A31: 22 | B31: AMBUJACEM | C31: 624.4 | D31: 628.48 | E31: 618.02 | F31: 611.63 | G31: 601.17 | H31: 634.87 | I31: 645.33 | J31: 651.72 | K31: 638.95 | L31: 622.1 | M31: 13.79099
A32: 23 | B32: APOLLOHOSP | C32: 6589.4 | D32: 6580.57 | E32: 6519.13 | F32: 6448.87 | G32: 6387.43 | H32: 6650.83 | I32: 6712.27 | J32: 6782.53 | K32: 6642 | L32: 6510.3 | M32: 4.00126
A33: 24 | B33: APOLLOTYRE | C33: 485.4 | D33: 487.98 | E33: 480.22 | F33: 475.03 | G33: 467.27 | H33: 493.17 | I33: 500.93 | J33: 506.12 | K33: 495.75 | L33: 482.8 | M33: 14.43176
A34: 25 | B34: ASHOKLEY | C34: 251.7 | D34: 252.67 | E34: 250.08 | F34: 248.47 | G34: 245.88 | H34: 254.28 | I34: 256.87 | J34: 258.48 | K34: 255.25 | L34: 251.05 | M34: 81.15854
A35: 26 | B35: ASIANPAINT | C35: 3023.55 | D35: 3032.12 | E35: 3004.43 | F35: 2985.32 | G35: 2957.63 | H35: 3051.23 | I35: 3078.92 | J35: 3098.03 | K35: 3059.8 | L35: 3013 | M35: 5.0226
A36: 27 | B36: ASTRAL | C36: 1910.35 | D36: 1924.28 | E36: 1889.57 | F36: 1868.78 | G36: 1834.07 | H36: 1945.07 | I36: 1979.78 | J36: 2000.57 | K36: 1959 | L36: 1903.5 | M36: 6.0177
A37: 28 | B37: AUROPHARMA | C37: 1505.8 | D37: 1500.27 | E37: 1467.33 | F37: 1428.87 | G37: 1395.93 | H37: 1538.73 | I37: 1571.67 | J37: 1610.13 | K37: 1533.2 | L37: 1461.8 | M37: 38.67134
A38: 29 | B38: DMART | C38: 4929.5 | D38: 4961.00 | E38: 4874.00 | F38: 4818.50 | G38: 4731.50 | H38: 5016.50 | I38: 5103.50 | J38: 5159.00 | K38: 5048 | L38: 4905.5 | M38: 1.38438
A39: 30 | B39: AXISBANK | C39: 1159.6 | D39: 1164.87 | E39: 1150.13 | F39: 1140.67 | G39: 1125.93 | H39: 1174.33 | I39: 1189.07 | J39: 1198.53 | K39: 1179.6 | L39: 1155.4 | M39: 61.80463
A40: 31 | B40: BAJAJ-AUTO | C40: 9671.6 | D40: 9703.82 | E40: 9617.78 | F40: 9563.97 | G40: 9477.93 | H40: 9757.63 | I40: 9843.67 | J40: 9897.48 | K40: 9789.85 | L40: 9650 | M40: 1.61706
A41: 32 | B41: BAJFINANCE | C41: 6465.05 | D41: 6520.73 | E41: 6396.52 | F41: 6327.98 | G41: 6203.77 | H41: 6589.27 | I41: 6713.48 | J41: 6782.02 | K41: 6644.95 | L41: 6452.2 | M41: 10.72327
A42: 33 | B42: BAJAJFINSV | C42: 1543.35 | D42: 1549.80 | E42: 1530.60 | F42: 1517.85 | G42: 1498.65 | H42: 1562.55 | I42: 1581.75 | J42: 1594.50 | K42: 1569 | L42: 1537.05 | M42: 18.17066
A43: 34 | B43: BAJAJHLDNG | C43: 9148.9 | D43: 9239.30 | E43: 9030.60 | F43: 8912.30 | G43: 8703.60 | H43: 9357.60 | I43: 9566.30 | J43: 9684.60 | K43: 9448 | L43: 9121 | M43: 0.38083
A44: 35 | B44: BALKRISIND | C44: 2780.8 | D44: 2802.87 | E44: 2738.93 | F44: 2697.07 | G44: 2633.13 | H44: 2844.73 | I44: 2908.67 | J44: 2950.53 | K44: 2866.8 | L44: 2761 | M44: 3.89574
A45: 36 | B45: BANDHANBNK | C45: 192.6 | D45: 193.91 | E45: 190.01 | F45: 187.41 | G45: 183.51 | H45: 196.51 | I45: 200.41 | J45: 203.01 | K45: 197.82 | L45: 191.32 | M45: 149.75254
A46: 37 | B46: BANKBARODA | C46: 241.75 | D46: 243.10 | E46: 239.65 | F46: 237.55 | G46: 234.10 | H46: 245.20 | I46: 248.65 | J46: 250.75 | K46: 246.55 | L46: 241 | M46: 105.27254
A47: 38 | B47: BANKINDIA | C47: 115.73 | D47: 116.50 | E47: 114.24 | F47: 112.76 | G47: 110.50 | H47: 117.98 | I47: 120.24 | J47: 121.72 | K47: 118.75 | L47: 115.01 | M47: 89.49764
A48: 39 | B48: BATAINDIA | C48: 1402.8 | D48: 1409.25 | E48: 1393.55 | F48: 1384.30 | G48: 1368.60 | H48: 1418.50 | I48: 1434.20 | J48: 1443.45 | K48: 1424.95 | L48: 1400 | M48: 3.54487
A49: 40 | B49: BERGEPAINT | C49: 534.85 | D49: 530.85 | E49: 525.00 | F49: 515.15 | G49: 509.30 | H49: 540.70 | I49: 546.55 | J49: 556.40 | K49: 536.7 | L49: 521 | M49: 18.06393
A50: 41 | B50: BDL | C50: 1335.65 | D50: 1338.62 | E50: 1319.28 | F50: 1302.92 | G50: 1283.58 | H50: 1354.98 | I50: 1374.32 | J50: 1390.68 | K50: 1357.95 | L50: 1322.25 | M50: 12.15844
A51: 42 | B51: BEL | C51: 296.15 | D51: 298.07 | E51: 293.48 | F51: 290.82 | G51: 286.23 | H51: 300.73 | I51: 305.32 | J51: 307.98 | K51: 302.65 | L51: 295.4 | M51: 147.46085
A52: 43 | B52: BHARATFORG | C52: 1581.05 | D52: 1587.43 | E52: 1569.87 | F52: 1558.68 | G52: 1541.12 | H52: 1598.62 | I52: 1616.18 | J52: 1627.37 | K52: 1605 | L52: 1576.25 | M52: 4.79156
A53: 44 | B53: BHEL | C53: 289.95 | D53: 293.43 | E53: 285.52 | F53: 281.08 | G53: 273.17 | H53: 297.87 | I53: 305.78 | J53: 310.22 | K53: 301.35 | L53: 289 | M53: 114.61814
A54: 45 | B54: BPCL | C54: 321.7 | D54: 325.15 | E54: 317.55 | F54: 313.40 | G54: 305.80 | H54: 329.30 | I54: 336.90 | J54: 341.05 | K54: 332.75 | L54: 321 | M54: 97.57429
A55: 46 | B55: BHARTIARTL | C55: 1459.7 | D55: 1462.82 | E55: 1447.23 | F55: 1434.77 | G55: 1419.18 | H55: 1475.28 | I55: 1490.87 | J55: 1503.33 | K55: 1478.4 | L55: 1450.35 | M55: 44.95208
A56: 47 | B56: BIOCON | C56: 337.1 | D56: 337.72 | E56: 333.43 | F56: 329.77 | G56: 325.48 | H56: 341.38 | I56: 345.67 | J56: 349.33 | K56: 342 | L56: 334.05 | M56: 33.6038
A57: 48 | B57: BOSCHLTD | C57: 31593.85 | D57: 31614.48 | E57: 31348.97 | F57: 31104.08 | G57: 30838.57 | H57: 31859.37 | I57: 32124.88 | J57: 32369.77 | K57: 31880 | L57: 31369.6 | M57: 0.1681
A58: 49 | B58: BRITANNIA | C58: 5666.5 | D58: 5666.17 | E58: 5617.38 | F58: 5568.27 | G58: 5519.48 | H58: 5715.28 | I58: 5764.07 | J58: 5813.18 | K58: 5714.95 | L58: 5617.05 | M58: 2.36505
A59: 50 | B59: CGPOWER | C59: 692.9 | D59: 697.18 | E59: 681.47 | F59: 670.03 | G59: 654.32 | H59: 708.62 | I59: 724.33 | J59: 735.77 | K59: 712.9 | L59: 685.75 | M59: 11.24143
A60: 51 | B60: CANBK | C60: 106.69 | D60: 107.69 | E60: 105.25 | F60: 103.80 | G60: 101.36 | H60: 109.14 | I60: 111.58 | J60: 113.03 | K60: 110.14 | L60: 106.25 | M60: 199.54825
A61: 52 | B61: CHOLAFIN | C61: 1314.9 | D61: 1327.78 | E61: 1289.62 | F61: 1264.33 | G61: 1226.17 | H61: 1353.07 | I61: 1391.23 | J61: 1416.52 | K61: 1365.95 | L61: 1302.5 | M61: 31.86664
A62: 53 | B62: CIPLA | C62: 1583.45 | D62: 1590.05 | E62: 1573.40 | F62: 1563.35 | G62: 1546.70 | H62: 1600.10 | I62: 1616.75 | J62: 1626.80 | K62: 1606.7 | L62: 1580 | M62: 22.81463
A63: 54 | B63: COALINDIA | C63: 521.75 | D63: 523.88 | E63: 517.87 | F63: 513.98 | G63: 507.97 | H63: 527.77 | I63: 533.78 | J63: 537.67 | K63: 529.9 | L63: 520 | M63: 52.01294
A64: 55 | B64: COFORGE | C64: 5847.75 | D64: 5870.03 | E64: 5792.27 | F64: 5736.78 | G64: 5659.02 | H64: 5925.52 | I64: 6003.28 | J64: 6058.77 | K64: 5947.8 | L64: 5814.55 | M64: 1.69097
A65: 56 | B65: COLPAL | C65: 3457.35 | D65: 3464.15 | E65: 3438.90 | F65: 3420.45 | G65: 3395.20 | H65: 3482.60 | I65: 3507.85 | J65: 3526.30 | K65: 3489.4 | L65: 3445.7 | M65: 2.57752
A66: 57 | B66: CONCOR | C66: 956.75 | D66: 965.57 | E66: 945.18 | F66: 933.62 | G66: 913.23 | H66: 977.13 | I66: 997.52 | J66: 1009.08 | K66: 985.95 | L66: 954 | M66: 17.67025
A67: 58 | B67: COROMANDEL | C67: 1716.9 | D67: 1720.57 | E67: 1701.68 | F67: 1686.47 | G67: 1667.58 | H67: 1735.78 | I67: 1754.67 | J67: 1769.88 | K67: 1739.45 | L67: 1705.35 | M67: 2.84601
A68: 59 | B68: CROMPTON | C68: 436.25 | D68: 435.80 | E68: 428.45 | F68: 420.65 | G68: 413.30 | H68: 443.60 | I68: 450.95 | J68: 458.75 | K68: 443.15 | L68: 428 | M68: 27.55107
A69: 60 | B69: CUMMINSIND | C69: 3705.2 | D69: 3706.70 | E69: 3658.85 | F69: 3612.50 | G69: 3564.65 | H69: 3753.05 | I69: 3800.90 | J69: 3847.25 | K69: 3754.55 | L69: 3660.35 | M69: 4.17701
A70: 61 | B70: DLF | C70: 813.85 | D70: 820.47 | E70: 803.43 | F70: 793.02 | G70: 775.98 | H70: 830.88 | I70: 847.92 | J70: 858.33 | K70: 837.5 | L70: 810.05 | M70: 14.33125
A71: 62 | B71: DABUR | C71: 605.85 | D71: 610.93 | E71: 597.62 | F71: 589.38 | G71: 576.07 | H71: 619.17 | I71: 632.48 | J71: 640.72 | K71: 624.25 | L71: 602.7 | M71: 26.91122
A72: 63 | B72: DALBHARAT | C72: 1735.25 | D72: 1733.80 | E72: 1720.65 | F72: 1706.05 | G72: 1692.90 | H72: 1748.40 | I72: 1761.55 | J72: 1776.15 | K72: 1746.95 | L72: 1719.2 | M72: 3.26808
A73: 64 | B73: DEEPAKNTR | C73: 2847.8 | D73: 2901.13 | E73: 2786.67 | F73: 2725.53 | G73: 2611.07 | H73: 2962.27 | I73: 3076.73 | J73: 3137.87 | K73: 3015.6 | L73: 2840 | M73: 6.82293
A74: 65 | B74: DELHIVERY | C74: 408.1 | D74: 407.20 | E74: 403.00 | F74: 397.90 | G74: 393.70 | H74: 412.30 | I74: 416.50 | J74: 421.60 | K74: 411.4 | L74: 402.1 | M74: 19.16788
A75: 66 | B75: DEVYANI | C75: 167.68 | D75: 169.23 | E75: 165.47 | F75: 163.25 | G75: 159.49 | H75: 171.45 | I75: 175.21 | J75: 177.43 | K75: 173 | L75: 167.02 | M75: 6.51473
A76: 67 | B76: DIVISLAB | C76: 4861.8 | D76: 4861.60 | E76: 4803.25 | F76: 4744.70 | G76: 4686.35 | H76: 4920.15 | I76: 4978.50 | J76: 5037.05 | K76: 4919.95 | L76: 4803.05 | M76: 2.03334
A77: 68 | B77: DIXON | C77: 11986.15 | D77: 11938.65 | E77: 11785.30 | F77: 11584.45 | G77: 11431.10 | H77: 12139.50 | I77: 12292.85 | J77: 12493.70 | K77: 12092 | L77: 11737.8 | M77: 7.32893
A78: 69 | B78: LALPATHLAB | C78: 3256.6 | D78: 3252.40 | E78: 3198.40 | F78: 3140.20 | G78: 3086.20 | H78: 3310.60 | I78: 3364.60 | J78: 3422.80 | K78: 3306.4 | L78: 3194.2 | M78: 2.15201
A79: 70 | B79: DRREDDY | C79: 6948.4 | D79: 6920.63 | E79: 6879.02 | F79: 6809.63 | G79: 6768.02 | H79: 6990.02 | I79: 7031.63 | J79: 7101.02 | K79: 6962.25 | L79: 6851.25 | M79: 2.43465
A80: 71 | B80: EICHERMOT | C80: 4802.25 | D80: 4809.08 | E80: 4783.27 | F80: 4764.28 | G80: 4738.47 | H80: 4828.07 | I80: 4853.88 | J80: 4872.87 | K80: 4834.9 | L80: 4790.1 | M80: 1.94849
A81: 72 | B81: ESCORTS | C81: 3704.1 | D81: 3722.08 | E81: 3675.67 | F81: 3647.23 | G81: 3600.82 | H81: 3750.52 | I81: 3796.93 | J81: 3825.37 | K81: 3768.5 | L81: 3693.65 | M81: 1.79475
A82: 73 | B82: NYKAA | C82: 187.26 | D82: 187.61 | E82: 182.42 | F82: 177.58 | G82: 172.39 | H82: 192.45 | I82: 197.64 | J82: 202.48 | K82: 192.8 | L82: 182.77 | M82: 85.58006
A83: 74 | B83: FEDERALBNK | C83: 202.2 | D83: 203.45 | E83: 200.32 | F83: 198.43 | G83: 195.30 | H83: 205.34 | I83: 208.47 | J83: 210.36 | K83: 206.59 | L83: 201.57 | M83: 126.10913
A84: 75 | B84: FACT | C84: 960.95 | D84: 961.75 | E84: 919.50 | F84: 878.05 | G84: 835.80 | H84: 1003.20 | I84: 1045.45 | J84: 1086.90 | K84: 1004 | L84: 920.3 | M84: 10.612
A85: 76 | B85: FORTIS | C85: 517.1 | D85: 517.30 | E85: 499.80 | F85: 482.50 | G85: 465.00 | H85: 534.60 | I85: 552.10 | J85: 569.40 | K85: 534.8 | L85: 500 | M85: 50.74475
A86: 77 | B86: GAIL | C86: 227.16 | D86: 229.12 | E86: 224.14 | F86: 221.12 | G86: 216.14 | H86: 232.14 | I86: 237.12 | J86: 240.14 | K86: 234.1 | L86: 226.1 | M86: 125.65171
A87: 78 | B87: GLAND | C87: 1969.4 | D87: 2000.63 | E87: 1931.27 | F87: 1893.13 | G87: 1823.77 | H87: 2038.77 | I87: 2108.13 | J87: 2146.27 | K87: 2070 | L87: 1962.5 | M87: 1.95503
A88: 79 | B88: GODREJCP | C88: 1388.5 | D88: 1390.98 | E88: 1380.02 | F88: 1371.53 | G88: 1360.57 | H88: 1399.47 | I88: 1410.43 | J88: 1418.92 | K88: 1401.95 | L88: 1382.5 | M88: 6.12043
A89: 80 | B89: GODREJPROP | C89: 2900 | D89: 2917.23 | E89: 2874.47 | F89: 2848.93 | G89: 2806.17 | H89: 2942.77 | I89: 2985.53 | J89: 3011.07 | K89: 2960 | L89: 2891.7 | M89: 2.79671
A90: 81 | B90: GRASIM | C90: 2519.25 | D90: 2536.93 | E90: 2494.47 | F90: 2469.68 | G90: 2427.22 | H90: 2561.72 | I90: 2604.18 | J90: 2628.97 | K90: 2579.4 | L90: 2512.15 | M90: 7.84848
A91: 82 | B91: FLUOROCHEM | C91: 3330.4 | D91: 3365.83 | E91: 3275.67 | F91: 3220.93 | G91: 3130.77 | H91: 3420.57 | I91: 3510.73 | J91: 3565.47 | K91: 3456 | L91: 3311.1 | M91: 2.42051
A92: 83 | B92: GUJGASLTD | C92: 595.75 | D92: 604.78 | E92: 584.62 | F92: 573.48 | G92: 553.32 | H92: 615.92 | I92: 636.08 | J92: 647.22 | K92: 624.95 | L92: 593.65 | M92: 6.60439
A93: 84 | B93: HCLTECH | C93: 1592.65 | D93: 1592.90 | E93: 1577.40 | F93: 1562.15 | G93: 1546.65 | H93: 1608.15 | I93: 1623.65 | J93: 1638.90 | K93: 1608.4 | L93: 1577.65 | M93: 19.73825
A94: 85 | B94: HDFCAMC | C94: 4142.05 | D94: 4174.47 | E94: 4093.73 | F94: 4045.42 | G94: 3964.68 | H94: 4222.78 | I94: 4303.52 | J94: 4351.83 | K94: 4255.2 | L94: 4126.15 | M94: 5.25596
A95: 86 | B95: HDFCBANK | C95: 1603.2 | D95: 1612.25 | E95: 1592.10 | F95: 1581.00 | G95: 1560.85 | H95: 1623.35 | I95: 1643.50 | J95: 1654.60 | K95: 1632.4 | L95: 1601.15 | M95: 270.27521
A96: 87 | B96: HDFCLIFE | C96: 685 | D96: 689.93 | E96: 672.57 | F96: 660.13 | G96: 642.77 | H96: 702.37 | I96: 719.73 | J96: 732.17 | K96: 707.3 | L96: 677.5 | M96: 57.41391
A97: 88 | B97: HAVELLS | C97: 1825.55 | D97: 1824.77 | E97: 1804.58 | F97: 1783.62 | G97: 1763.43 | H97: 1845.73 | I97: 1865.92 | J97: 1886.88 | K97: 1844.95 | L97: 1803.8 | M97: 8.10978
A98: 89 | B98: HEROMOTOCO | C98: 5245.5 | D98: 5289.60 | E98: 5171.90 | F98: 5098.30 | G98: 4980.60 | H98: 5363.20 | I98: 5480.90 | J98: 5554.50 | K98: 5407.3 | L98: 5216 | M98: 10.42924
A99: 90 | B99: HINDALCO | C99: 621.4 | D99: 625.00 | E99: 615.60 | F99: 609.80 | G99: 600.40 | H99: 630.80 | I99: 640.20 | J99: 646.00 | K99: 634.4 | L99: 619.2 | M99: 67.93767
A100: 91 | B100: HAL | C100: 4701.35 | D100: 4720.15 | E100: 4666.20 | F100: 4631.05 | G100: 4577.10 | H100: 4755.30 | I100: 4809.25 | J100: 4844.40 | K100: 4774.1 | L100: 4685 | M100: 14.65327
A101: 92 | B101: HINDPETRO | C101: 371.35 | D101: 370.97 | E101: 364.33 | F101: 357.32 | G101: 350.68 | H101: 377.98 | I101: 384.62 | J101: 391.63 | K101: 377.6 | L101: 363.95 | M101: 144.26819
A102: 93 | B102: HINDUNILVR | C102: 2741.4 | D102: 2743.05 | E102: 2728.45 | F102: 2715.50 | G102: 2700.90 | H102: 2756.00 | I102: 2770.60 | J102: 2783.55 | K102: 2757.65 | L102: 2730.1 | M102: 10.51237
A103: 94 | B103: ICICIBANK | C103: 1168.35 | D103: 1173.73 | E103: 1158.22 | F103: 1148.08 | G103: 1132.57 | H103: 1183.87 | I103: 1199.38 | J103: 1209.52 | K103: 1189.25 | L103: 1163.6 | M103: 131.17927
A104: 95 | B104: ICICIGI | C104: 1947.25 | D104: 1956.20 | E104: 1921.05 | F104: 1894.85 | G104: 1859.70 | H104: 1982.40 | I104: 2017.55 | J104: 2043.75 | K104: 1991.35 | L104: 1930 | M104: 9.74239
A105: 96 | B105: ICICIPRULI | C105: 724.3 | D105: 727.97 | E105: 716.63 | F105: 708.97 | G105: 697.63 | H105: 735.63 | I105: 746.97 | J105: 754.63 | K105: 739.3 | L105: 720.3 | M105: 11.66273
A106: 97 | B106: IDFCFIRSTB | C106: 71.37 | D106: 71.64 | E106: 70.83 | F106: 70.30 | G106: 69.49 | H106: 72.17 | I106: 72.98 | J106: 73.51 | K106: 72.44 | L106: 71.1 | M106: 192.18547
A107: 98 | B107: ITC | C107: 490 | D107: 492.03 | E107: 486.22 | F107: 482.43 | G107: 476.62 | H107: 495.82 | I107: 501.63 | J107: 505.42 | K107: 497.85 | L107: 488.25 | M107: 77.57706
A108: 99 | B108: INDIANB | C108: 550.3 | D108: 554.53 | E108: 543.07 | F108: 535.83 | G108: 524.37 | H108: 561.77 | I108: 573.23 | J108: 580.47 | K108: 566 | L108: 547.3 | M108: 10.52887
A109: 100 | B109: INDHOTEL | C109: 610.75 | D109: 613.70 | E109: 606.15 | F109: 601.55 | G109: 594.00 | H109: 618.30 | I109: 625.85 | J109: 630.45 | K109: 621.25 | L109: 609.1 | M109: 17.41167
A110: 101 | B110: IOC | C110: 164.12 | D110: 165.27 | E110: 161.86 | F110: 159.59 | G110: 156.18 | H110: 167.54 | I110: 170.95 | J110: 173.22 | K110: 168.69 | L110: 163.01 | M110: 166.2016
A111: 102 | B111: IRCTC | C111: 918.45 | D111: 920.40 | E111: 909.35 | F111: 900.25 | G111: 889.20 | H111: 929.50 | I111: 940.55 | J111: 949.65 | K111: 931.45 | L111: 911.3 | M111: 19.73513
A112: 103 | B112: IRFC | C112: 181.65 | D112: 183.70 | E112: 177.95 | F112: 174.25 | G112: 168.50 | H112: 187.40 | I112: 193.15 | J112: 196.85 | K112: 189.45 | L112: 180 | M112: 458.99363
A113: 104 | B113: IGL | C113: 540.65 | D113: 543.57 | E113: 536.13 | F113: 531.62 | G113: 524.18 | H113: 548.08 | I113: 555.52 | J113: 560.03 | K113: 551 | L113: 539.05 | M113: 11.47785
A114: 105 | B114: INDUSTOWER | C114: 405.3 | D114: 408.83 | E114: 399.67 | F114: 394.03 | G114: 384.87 | H114: 414.47 | I114: 423.63 | J114: 429.27 | K114: 418 | L114: 403.2 | M114: 70.84701
A115: 106 | B115: INDUSINDBK | C115: 1350.6 | D115: 1355.25 | E115: 1338.85 | F115: 1327.10 | G115: 1310.70 | H115: 1367.00 | I115: 1383.40 | J115: 1395.15 | K115: 1371.65 | L115: 1343.5 | M115: 39.05817
A116: 107 | B116: NAUKRI | C116: 7098.35 | D116: 7144.13 | E116: 6993.27 | F116: 6888.18 | G116: 6737.32 | H116: 7249.22 | I116: 7400.08 | J116: 7505.17 | K116: 7295 | L116: 7039.05 | M116: 2.31157
A117: 108 | B117: INFY | C117: 1797.45 | D117: 1798.83 | E117: 1787.67 | F117: 1777.88 | G117: 1766.72 | H117: 1808.62 | I117: 1819.78 | J117: 1829.57 | K117: 1810 | L117: 1789.05 | M117: 41.76918
A118: 109 | B118: INDIGO | C118: 4227.4 | D118: 4255.57 | E118: 4191.28 | F118: 4155.17 | G118: 4090.88 | H118: 4291.68 | I118: 4355.97 | J118: 4392.08 | K118: 4319.85 | L118: 4219.45 | M118: 5.08342
A119: 110 | B119: IPCALAB | C119: 1396.85 | D119: 1389.38 | E119: 1365.07 | F119: 1333.28 | G119: 1308.97 | H119: 1421.17 | I119: 1445.48 | J119: 1477.27 | K119: 1413.7 | L119: 1357.6 | M119: 14.19861
A120: 111 | B120: JSWENERGY | C120: 672.55 | D120: 678.25 | E120: 664.30 | F120: 656.05 | G120: 642.10 | H120: 686.50 | I120: 700.45 | J120: 708.70 | K120: 692.2 | L120: 670 | M120: 17.68877
A121: 112 | B121: JSWSTEEL | C121: 907.85 | D121: 913.45 | E121: 899.40 | F121: 890.95 | G121: 876.90 | H121: 921.90 | I121: 935.95 | J121: 944.40 | K121: 927.5 | L121: 905 | M121: 13.29629
A122: 113 | B122: JINDALSTEL | C122: 908.95 | D122: 913.93 | E122: 900.02 | F122: 891.08 | G122: 877.17 | H122: 922.87 | I122: 936.78 | J122: 945.72 | K122: 927.85 | L122: 905 | M122: 14.49141
A123: 114 | B123: JUBLFOOD | C123: 644.2 | D123: 645.70 | E123: 638.30 | F123: 632.40 | G123: 625.00 | H123: 651.60 | I123: 659.00 | J123: 664.90 | K123: 653.1 | L123: 639.8 | M123: 35.10842
A124: 115 | B124: KPITTECH | C124: 1748.65 | D124: 1770.22 | E124: 1718.93 | F124: 1689.22 | G124: 1637.93 | H124: 1799.93 | I124: 1851.22 | J124: 1880.93 | K124: 1821.5 | L124: 1740.5 | M124: 5.3772
A125: 116 | B125: KOTAKBANK | C125: 1752.05 | D125: 1763.22 | E125: 1734.93 | F125: 1717.82 | G125: 1689.53 | H125: 1780.33 | I125: 1808.62 | J125: 1825.73 | K125: 1791.5 | L125: 1746.1 | M125: 35.30319
A126: 117 | B126: LTF | C126: 162.34 | D126: 164.15 | E126: 160.21 | F126: 158.07 | G126: 154.13 | H126: 166.29 | I126: 170.23 | J126: 172.37 | K126: 168.1 | L126: 162.02 | M126: 41.98056
A127: 118 | B127: LTTS | C127: 4823.45 | D127: 4835.15 | E127: 4791.30 | F127: 4759.15 | G127: 4715.30 | H127: 4867.30 | I127: 4911.15 | J127: 4943.30 | K127: 4879 | L127: 4803 | M127: 0.49821
A128: 119 | B128: LICHSGFIN | C128: 641.7 | D128: 644.97 | E128: 635.38 | F128: 629.07 | G128: 619.48 | H128: 651.28 | I128: 660.87 | J128: 667.18 | K128: 654.55 | L128: 638.65 | M128: 38.57891
A129: 120 | B129: LTIM | C129: 5384.9 | D129: 5364.53 | E129: 5323.17 | F129: 5261.43 | G129: 5220.07 | H129: 5426.27 | I129: 5467.63 | J129: 5529.37 | K129: 5405.9 | L129: 5302.8 | M129: 2.23672
A130: 121 | B130: LT | C130: 3551.8 | D130: 3568.00 | E130: 3529.00 | F130: 3506.20 | G130: 3467.20 | H130: 3590.80 | I130: 3629.80 | J130: 3652.60 | K130: 3607 | L130: 3545.2 | M130: 13.16218
A131: 122 | B131: LAURUSLABS | C131: 419.85 | D131: 424.12 | E131: 414.23 | F131: 408.62 | G131: 398.73 | H131: 429.73 | I131: 439.62 | J131: 445.23 | K131: 434 | L131: 418.5 | M131: 9.85318
A132: 123 | B132: LICI | C132: 1028.6 | D132: 1046.20 | E132: 1002.50 | F132: 976.40 | G132: 932.70 | H132: 1072.30 | I132: 1116.00 | J132: 1142.10 | K132: 1089.9 | L132: 1020.1 | M132: 37.76212
A133: 124 | B133: LUPIN | C133: 2097.65 | D133: 2105.58 | E133: 2079.62 | F133: 2061.58 | G133: 2035.62 | H133: 2123.62 | I133: 2149.58 | J133: 2167.62 | K133: 2131.55 | L133: 2087.55 | M133: 15.51395
A134: 125 | B134: MRF | C134: 137487.95 | D134: 137669.32 | E134: 136838.63 | F134: 136189.32 | G134: 135358.63 | H134: 138318.63 | I134: 139149.32 | J134: 139798.63 | K134: 138500 | L134: 137020 | M134: 0.04734
A135: 126 | B135: LODHA | C135: 1309.8 | D135: 1314.60 | E135: 1293.20 | F135: 1276.60 | G135: 1255.20 | H135: 1331.20 | I135: 1352.60 | J135: 1369.20 | K135: 1336 | L135: 1298 | M135: 12.56792
A136: 127 | B136: M&MFIN | C136: 290 | D136: 292.90 | E136: 286.00 | F136: 282.00 | G136: 275.10 | H136: 296.90 | I136: 303.80 | J136: 307.80 | K136: 299.8 | L136: 288.9 | M136: 9.41461
A137: 128 | B137: M&M | C137: 2718.05 | D137: 2720.27 | E137: 2701.88 | F137: 2685.72 | G137: 2667.33 | H137: 2736.43 | I137: 2754.82 | J137: 2770.98 | K137: 2738.65 | L137: 2704.1 | M137: 12.92521
A138: 129 | B138: MANKIND | C138: 2175.65 | D138: 2158.72 | E138: 2137.48 | F138: 2099.32 | G138: 2078.08 | H138: 2196.88 | I138: 2218.12 | J138: 2256.28 | K138: 2179.95 | L138: 2120.55 | M138: 9.51426
A139: 130 | B139: MARICO | C139: 660.55 | D139: 657.73 | E139: 649.72 | F139: 638.88 | G139: 630.87 | H139: 668.57 | I139: 676.58 | J139: 687.42 | K139: 665.75 | L139: 646.9 | M139: 45.31168
A140: 131 | B140: MARUTI | C140: 12176.25 | D140: 12212.77 | E140: 12085.48 | F140: 11994.72 | G140: 11867.43 | H140: 12303.53 | I140: 12430.82 | J140: 12521.58 | K140: 12340.05 | L140: 12122 | M140: 4.64483
A141: 132 | B141: MFSL | C141: 1052.55 | D141: 1060.77 | E141: 1037.88 | F141: 1023.22 | G141: 1000.33 | H141: 1075.43 | I141: 1098.32 | J141: 1112.98 | K141: 1083.65 | L141: 1046.1 | M141: 3.83563
A142: 133 | B142: MAXHEALTH | C142: 868.3 | D142: 866.93 | E142: 861.87 | F142: 855.43 | G142: 850.37 | H142: 873.37 | I142: 878.43 | J142: 884.87 | K142: 872 | L142: 860.5 | M142: 8.83102
A143: 134 | B143: MAZDOCK | C143: 4833.6 | D143: 4883.27 | E143: 4766.53 | F143: 4699.47 | G143: 4582.73 | H143: 4950.33 | I143: 5067.07 | J143: 5134.13 | K143: 5000 | L143: 4816.2 | M143: 10.16847
A144: 139 | B144: MSUMI | C144: 69.9 | D144: 70.44 | E144: 69.17 | F144: 68.45 | G144: 67.18 | H144: 71.16 | I144: 72.43 | J144: 73.15 | K144: 71.7 | L144: 69.71 | M144: 39.60844
A145: 140 | B145: MPHASIS | C145: 2696.55 | D145: 2701.15 | E145: 2674.70 | F145: 2652.85 | G145: 2626.40 | H145: 2723.00 | I145: 2749.45 | J145: 2771.30 | K145: 2727.6 | L145: 2679.3 | M145: 2.72177
A146: 141 | B146: MUTHOOTFIN | C146: 1853.1 | D146: 1866.93 | E146: 1828.92 | F146: 1804.73 | G146: 1766.72 | H146: 1891.12 | I146: 1929.13 | J146: 1953.32 | K146: 1904.95 | L146: 1842.75 | M146: 9.50346
A147: 142 | B147: NHPC | C147: 95.12 | D147: 95.85 | E147: 93.91 | F147: 92.70 | G147: 90.76 | H147: 97.06 | I147: 99.00 | J147: 100.21 | K147: 97.79 | L147: 94.64 | M147: 255.38708
A148: 143 | B148: NMDC | C148: 224.46 | D148: 227.51 | E148: 220.06 | F148: 215.67 | G148: 208.22 | H148: 231.90 | I148: 239.35 | J148: 243.74 | K148: 234.95 | L148: 223.11 | M148: 142.57716
A149: 144 | B149: NTPC | C149: 396.2 | D149: 398.57 | E149: 392.63 | F149: 389.07 | G149: 383.13 | H149: 402.13 | I149: 408.07 | J149: 411.63 | K149: 404.5 | L149: 395 | M149: 113.55664
A150: 145 | B150: NAVINFLUOR | C150: 3277.05 | D150: 3335.37 | E150: 3203.83 | F150: 3130.62 | G150: 2999.08 | H150: 3408.58 | I150: 3540.12 | J150: 3613.33 | K150: 3466.9 | L150: 3262.15 | M150: 4.498
A151: 146 | B151: NESTLEIND | C151: 2484.7 | D151: 2483.40 | E151: 2474.80 | F151: 2464.90 | G151: 2456.30 | H151: 2493.30 | I151: 2501.90 | J151: 2511.80 | K151: 2492 | L151: 2473.5 | M151: 3.11846
A152: 147 | B152: OBEROIRLTY | C152: 1745.2 | D152: 1758.03 | E152: 1722.22 | F152: 1699.23 | G152: 1663.42 | H152: 1781.02 | I152: 1816.83 | J152: 1839.82 | K152: 1793.85 | L152: 1735.05 | M152: 7.38068
A153: 148 | B153: ONGC | C153: 335.9 | D153: 337.95 | E153: 330.90 | F153: 325.90 | G153: 318.85 | H153: 342.95 | I153: 350.00 | J153: 355.00 | K153: 345 | L153: 332.95 | M153: 289.43385
A154: 149 | B154: OIL | C154: 687.35 | D154: 684.45 | E154: 676.90 | F154: 666.45 | G154: 658.90 | H154: 694.90 | I154: 702.45 | J154: 712.90 | K154: 692 | L154: 674 | M154: 145.5094
A155: 150 | B155: PAYTM | C155: 506.15 | D155: 511.55 | E155: 498.35 | F155: 490.55 | G155: 477.35 | H155: 519.35 | I155: 532.55 | J155: 540.35 | K155: 524.75 | L155: 503.75 | M155: 45.45613
A156: 151 | B156: POLICYBZR | C156: 1482.65 | D156: 1470.18 | E156: 1450.37 | F156: 1418.08 | G156: 1398.27 | H156: 1502.47 | I156: 1522.28 | J156: 1554.57 | K156: 1490 | L156: 1437.9 | M156: 9.11312
A157: 152 | B157: PIIND | C157: 4373.25 | D157: 4399.12 | E157: 4334.23 | F157: 4295.22 | G157: 4230.33 | H157: 4438.13 | I157: 4503.02 | J157: 4542.03 | K157: 4464 | L157: 4360.1 | M157: 2.62457
A158: 153 | B158: PAGEIND | C158: 41083.05 | D158: 41053.00 | E158: 40578.05 | F158: 40073.05 | G158: 39598.10 | H158: 41558.00 | I158: 42032.95 | J158: 42537.95 | K158: 41527.95 | L158: 40548 | M158: 0.08575
A159: 154 | B159: PATANJALI | C159: 1788.85 | D159: 1788.58 | E159: 1752.27 | F159: 1715.68 | G159: 1679.37 | H159: 1825.17 | I159: 1861.48 | J159: 1898.07 | K159: 1824.9 | L159: 1752 | M159: 7.47826
A160: 155 | B160: PERSISTENT | C160: 4712.55 | D160: 4721.02 | E160: 4662.03 | F160: 4611.52 | G160: 4552.53 | H160: 4771.53 | I160: 4830.52 | J160: 4881.03 | K160: 4780 | L160: 4670.5 | M160: 3.03146
A161: 156 | B161: PETRONET | C161: 368.1 | D161: 370.15 | E161: 365.00 | F161: 361.90 | G161: 356.75 | H161: 373.25 | I161: 378.40 | J161: 381.50 | K161: 375.3 | L161: 367.05 | M161: 27.00343
A162: 157 | B162: PIDILITIND | C162: 3047.1 | D162: 3045.83 | E162: 3023.32 | F162: 2999.53 | G162: 2977.02 | H162: 3069.62 | I162: 3092.13 | J162: 3115.92 | K162: 3068.35 | L162: 3022.05 | M162: 1.81637
A163: 158 | B163: PEL | C163: 985.4 | D163: 989.03 | E163: 968.02 | F163: 950.63 | G163: 929.62 | H163: 1006.42 | I163: 1027.43 | J163: 1044.82 | K163: 1010.05 | L163: 971.65 | M163: 19.99595
A164: 159 | B164: POLYCAB | C164: 6413.8 | D164: 6467.72 | E164: 6327.58 | F164: 6241.37 | G164: 6101.23 | H164: 6553.93 | I164: 6694.07 | J164: 6780.28 | K164: 6607.85 | L164: 6381.5 | M164: 1.98328
A165: 160 | B165: POONAWALLA | C165: 356.15 | D165: 358.53 | E165: 352.32 | F165: 348.48 | G165: 342.27 | H165: 362.37 | I165: 368.58 | J165: 372.42 | K165: 364.75 | L165: 354.7 | M165: 11.97247
A166: 161 | B166: PFC | C166: 482.65 | D166: 487.18 | E166: 476.47 | F166: 470.28 | G166: 459.57 | H166: 493.37 | I166: 504.08 | J166: 510.27 | K166: 497.9 | L166: 481 | M166: 106.69859
A167: 162 | B167: POWERGRID | C167: 336.95 | D167: 338.18 | E167: 333.92 | F167: 330.88 | G167: 326.62 | H167: 341.22 | I167: 345.48 | J167: 348.52 | K167: 342.45 | L167: 335.15 | M167: 104.35954
A168: 163 | B168: PRESTIGE | C168: 1778.05 | D168: 1765.77 | E168: 1738.58 | F168: 1699.12 | G168: 1671.93 | H168: 1805.23 | I168: 1832.42 | J168: 1871.88 | K168: 1792.95 | L168: 1726.3 | M168: 12.27799
A169: 164 | B169: PGHH | C169: 16999.7 | D169: 17052.00 | E169: 16904.00 | F169: 16808.30 | G169: 16660.30 | H169: 17147.70 | I169: 17295.70 | J169: 17391.40 | K169: 17200 | L169: 16956.3 | M169: 0.0389
A170: 165 | B170: PNB | C170: 114.3 | D170: 114.63 | E170: 113.27 | F170: 112.24 | G170: 110.88 | H170: 115.66 | I170: 117.02 | J170: 118.05 | K170: 115.99 | L170: 113.6 | M170: 179.3854
A171: 166 | B171: RECLTD | C171: 568.95 | D171: 573.02 | E171: 563.33 | F171: 557.72 | G171: 548.03 | H171: 578.63 | I171: 588.32 | J171: 593.93 | K171: 582.7 | L171: 567.4 | M171: 76.35406
A172: 167 | B172: RVNL | C172: 569.45 | D172: 578.78 | E172: 555.67 | F172: 541.88 | G172: 518.77 | H172: 592.57 | I172: 615.68 | J172: 629.47 | K172: 601.9 | L172: 565 | M172: 420.07554
A173: 168 | B173: RELIANCE | C173: 2927.25 | D173: 2927.80 | E173: 2915.45 | F173: 2903.65 | G173: 2891.30 | H173: 2939.60 | I173: 2951.95 | J173: 2963.75 | K173: 2940.15 | L173: 2916 | M173: 31.32532
A174: 169 | B174: SBICARD | C174: 691.9 | D174: 696.22 | E174: 684.83 | F174: 677.77 | G174: 666.38 | H174: 703.28 | I174: 714.67 | J174: 721.73 | K174: 707.6 | L174: 689.15 | M174: 12.90799
A175: 170 | B175: SBILIFE | C175: 1682.4 | D175: 1691.92 | E175: 1662.53 | F175: 1642.67 | G175: 1613.28 | H175: 1711.78 | I175: 1741.17 | J175: 1761.03 | K175: 1721.3 | L175: 1672.05 | M175: 10.64268
A176: 171 | B176: SRF | C176: 2521.05 | D176: 2541.82 | E176: 2491.43 | F176: 2461.82 | G176: 2411.43 | H176: 2571.43 | I176: 2621.82 | J176: 2651.43 | K176: 2592.2 | L176: 2512.2 | M176: 3.37336
A177: 172 | B177: MOTHERSON | C177: 180.7 | D177: 182.72 | E177: 175.68 | F177: 170.67 | G177: 163.63 | H177: 187.73 | I177: 194.77 | J177: 199.78 | K177: 189.75 | L177: 177.7 | M177: 316.16438
A178: 173 | B178: SHREECEM | C178: 24205.95 | D178: 24285.08 | E178: 24060.92 | F178: 23915.88 | G178: 23691.72 | H178: 24430.12 | I178: 24654.28 | J178: 24799.32 | K178: 24509.25 | L178: 24140.05 | M178: 0.41826
A179: 174 | B179: SHRIRAMFIN | C179: 2891.35 | D179: 2915.77 | E179: 2836.08 | F179: 2780.82 | G179: 2701.13 | H179: 2971.03 | I179: 3050.72 | J179: 3105.98 | K179: 2995.45 | L179: 2860.5 | M179: 14.49963
A180: 175 | B180: SIEMENS | C180: 6969.1 | D180: 6954.38 | E180: 6864.77 | F180: 6760.43 | G180: 6670.82 | H180: 7058.72 | I180: 7148.33 | J180: 7252.67 | K180: 7044 | L180: 6850.05 | M180: 5.23595
A181: 176 | B181: SONACOMS | C181: 659.5 | D181: 663.93 | E181: 652.67 | F181: 645.83 | G181: 634.57 | H181: 670.77 | I181: 682.03 | J181: 688.87 | K181: 675.2 | L181: 657.1 | M181: 7.21791
A182: 177 | B182: SBIN | C182: 797.55 | D182: 804.20 | E182: 788.40 | F182: 779.25 | G182: 763.45 | H182: 813.35 | I182: 829.15 | J182: 838.30 | K182: 820 | L182: 795.05 | M182: 175.85172
A183: 178 | B183: SAIL | C183: 128.14 | D183: 129.45 | E183: 126.41 | F183: 124.67 | G183: 121.63 | H183: 131.19 | I183: 134.23 | J183: 135.97 | K183: 132.5 | L183: 127.72 | M183: 163.76718
A184: 179 | B184: SUNPHARMA | C184: 1740.1 | D184: 1739.18 | E184: 1726.52 | F184: 1712.93 | G184: 1700.27 | H184: 1752.77 | I184: 1765.43 | J184: 1779.02 | K184: 1751.85 | L184: 1725.6 | M184: 20.76963
A185: 180 | B185: SUNTV | C185: 819.7 | D185: 808.37 | E185: 789.93 | F185: 760.17 | G185: 741.73 | H185: 838.13 | I185: 856.57 | J185: 886.33 | K185: 826.8 | L185: 778.6 | M185: 41.69863
A186: 181 | B186: SYNGENE | C186: 825.25 | D186: 826.28 | E186: 820.57 | F186: 815.88 | G186: 810.17 | H186: 830.97 | I186: 836.68 | J186: 841.37 | K186: 832 | L186: 821.6 | M186: 4.39113
A187: 182 | B187: TVSMOTOR | C187: 2635.8 | D187: 2615.43 | E187: 2575.87 | F187: 2515.93 | G187: 2476.37 | H187: 2675.37 | I187: 2714.93 | J187: 2774.87 | K187: 2655 | L187: 2555.5 | M187: 20.0543
A188: 183 | B188: TATACHEM | C188: 1027.75 | D188: 1034.27 | E188: 1018.53 | F188: 1009.32 | G188: 993.58 | H188: 1043.48 | I188: 1059.22 | J188: 1068.43 | K188: 1050 | L188: 1025.05 | M188: 6.62395
A189: 184 | B189: TATACOMM | C189: 1849.45 | D189: 1858.93 | E189: 1828.42 | F189: 1807.38 | G189: 1776.87 | H189: 1879.97 | I189: 1910.48 | J189: 1931.52 | K189: 1889.45 | L189: 1837.9 | M189: 1.79437
A190: 185 | B190: TCS | C190: 4196.95 | D190: 4204.65 | E190: 4175.30 | F190: 4153.65 | G190: 4124.30 | H190: 4226.30 | I190: 4255.65 | J190: 4277.30 | K190: 4234 | L190: 4183 | M190: 14.95593
A191: 186 | B191: TATACONSUM | C191: 1178.8 | D191: 1176.38 | E191: 1170.02 | F191: 1161.23 | G191: 1154.87 | H191: 1185.17 | I191: 1191.53 | J191: 1200.32 | K191: 1182.75 | L191: 1167.6 | M191: 7.85371
A192: 187 | B192: TATAELXSI | C192: 6791 | D192: 6783.35 | E192: 6732.30 | F192: 6673.60 | G192: 6622.55 | H192: 6842.05 | I192: 6893.10 | J192: 6951.80 | K192: 6834.4 | L192: 6724.65 | M192: 0.60349
A193: 188 | B193: TATAMTRDVR | C193: 723.05 | D193: 727.45 | E193: 717.10 | F193: 711.15 | G193: 700.80 | H193: 733.40 | I193: 743.75 | J193: 749.70 | K193: 737.8 | L193: 721.5 | M193: 32.95293
A194: 189 | B194: TATAMOTORS | C194: 1053.45 | D194: 1059.05 | E194: 1042.60 | F194: 1031.75 | G194: 1015.30 | H194: 1069.90 | I194: 1086.35 | J194: 1097.20 | K194: 1075.5 | L194: 1048.2 | M194: 75.08231
A195: 190 | B195: TATAPOWER | C195: 408.25 | D195: 411.55 | E195: 403.10 | F195: 397.95 | G195: 389.50 | H195: 416.70 | I195: 425.15 | J195: 430.30 | K195: 420 | L195: 406.4 | M195: 136.50935
A196: 191 | B196: TATASTEEL | C196: 148.88 | D196: 150.11 | E196: 147.27 | F196: 145.66 | G196: 142.82 | H196: 151.72 | I196: 154.56 | J196: 156.17 | K196: 152.95 | L196: 148.5 | M196: 293.96493
A197: 192 | B197: TECHM | C197: 1503.4 | D197: 1507.40 | E197: 1491.15 | F197: 1478.90 | G197: 1462.65 | H197: 1519.65 | I197: 1535.90 | J197: 1548.15 | K197: 1523.65 | L197: 1495.15 | M197: 5.80901
A198: 193 | B198: RAMCOCEM | C198: 789.25 | D198: 793.18 | E198: 782.52 | F198: 775.78 | G198: 765.12 | H198: 799.92 | I198: 810.58 | J198: 817.32 | K198: 803.85 | L198: 786.45 | M198: 3.22963
A199: 194 | B199: TITAN | C199: 3383.55 | D199: 3364.57 | E199: 3324.38 | F199: 3265.22 | G199: 3225.03 | H199: 3423.73 | I199: 3463.92 | J199: 3523.08 | K199: 3404.75 | L199: 3305.4 | M199: 13.14371
A200: 195 | B200: TORNTPHARM | C200: 3363.4 | D200: 3352.43 | E200: 3320.97 | F200: 3278.53 | G200: 3247.07 | H200: 3394.87 | I200: 3426.33 | J200: 3468.77 | K200: 3383.9 | L200: 3310 | M200: 4.1307
A201: 196 | B201: TORNTPOWER | C201: 1712.2 | D201: 1730.08 | E201: 1685.27 | F201: 1658.33 | G201: 1613.52 | H201: 1757.02 | I201: 1801.83 | J201: 1828.77 | K201: 1774.9 | L201: 1703.15 | M201: 4.07712
A202: 197 | B202: TRENT | C202: 6381.7 | D202: 6384.90 | E202: 6326.80 | F202: 6271.90 | G202: 6213.80 | H202: 6439.80 | I202: 6497.90 | J202: 6552.80 | K202: 6443 | L202: 6330 | M202: 6.51594
A203: 198 | B203: TIINDIA | C203: 3973.95 | D203: 3981.87 | E203: 3918.23 | F203: 3862.52 | G203: 3798.88 | H203: 4037.58 | I203: 4101.22 | J203: 4156.93 | K203: 4045.5 | L203: 3926.15 | M203: 1.14377
A204: 199 | B204: UPL | C204: 552.05 | D204: 556.32 | E204: 546.53 | F204: 541.02 | G204: 531.23 | H204: 561.83 | I204: 571.62 | J204: 577.13 | K204: 566.1 | L204: 550.8 | M204: 16.66599
A205: 200 | B205: ULTRACEMCO | C205: 11271.2 | D205: 11289.95 | E205: 11215.90 | F205: 11160.60 | G205: 11086.55 | H205: 11345.25 | I205: 11419.30 | J205: 11474.60 | K205: 11364 | L205: 11234.65 | M205: 1.89972
... 30 more rows

Sheet MidCap Intra
L5: Back To Main Page
A6: FOR INTRA DAY TRADING | K6: =Main!B10 -> 2024-08-14
A9: Sr.no | B9: Scrip | C9: CLOSE RATE | D9: Pivot Point | E9: Supports | H9: Resistances
E10: S1 | F10: S2 | G10: S3 | H10: R1 | I10: R2 | J10: R3 | K10: HIGH | L10: LOW | M10: Total Trade Quanity in Lakhs
A11: 1 | B11: 360ONE | C11: 1012.9 | D11: 1026.22 | E11: 992.43 | F11: 971.97 | G11: 938.18 | H11: 1046.68 | I11: 1080.47 | J11: 1100.93 | K11: 1060 | L11: 1005.75 | M11: 5.75666
A12: 2 | B12: 3MINDIA | C12: 37000.95 | D12: 37240.22 | E12: 36561.83 | F12: 36122.72 | G12: 35444.33 | H12: 37679.33 | I12: 38357.72 | J12: 38796.83 | K12: 37918.6 | L12: 36801.1 | M12: 0.02605
A13: 3 | B13: ABB | C13: 7544.8 | D13: 7619.52 | E13: 7450.28 | F13: 7355.77 | G13: 7186.53 | H13: 7714.03 | I13: 7883.27 | J13: 7977.78 | K13: 7788.75 | L13: 7525 | M13: 4.85092
A14: 4 | B14: ACC | C14: 2304.8 | D14: 2323.68 | E14: 2281.17 | F14: 2257.53 | G14: 2215.02 | H14: 2347.32 | I14: 2389.83 | J14: 2413.47 | K14: 2366.2 | L14: 2300.05 | M14: 3.47684
A15: 5 | B15: AIAENG | C15: 4547.2 | D15: 4589.68 | E15: 4399.37 | F15: 4251.53 | G15: 4061.22 | H15: 4737.52 | I15: 4927.83 | J15: 5075.67 | K15: 4780 | L15: 4441.85 | M15: 4.52493
A16: 6 | B16: APLAPOLLO | C16: 1411.25 | D16: 1420.02 | E16: 1395.83 | F16: 1380.42 | G16: 1356.23 | H16: 1435.43 | I16: 1459.62 | J16: 1475.03 | K16: 1444.2 | L16: 1404.6 | M16: 2.17949
A17: 7 | B17: AUBANK | C17: 611.95 | D17: 611.43 | E17: 607.42 | F17: 602.88 | G17: 598.87 | H17: 615.97 | I17: 619.98 | J17: 624.52 | K17: 615.45 | L17: 606.9 | M17: 23.26446
A18: 8 | B18: AARTIIND | C18: 621.15 | D18: 647.63 | E18: 579.27 | F18: 537.38 | G18: 469.02 | H18: 689.52 | I18: 757.88 | J18: 799.77 | K18: 716 | L18: 605.75 | M18: 208.52416
A19: 9 | B19: AAVAS | C19: 1703.25 | D19: 1713.72 | E19: 1679.63 | F19: 1656.02 | G19: 1621.93 | H19: 1737.33 | I19: 1771.42 | J19: 1795.03 | K19: 1747.8 | L19: 1690.1 | M19: 1.8938
A20: 10 | B20: ABBOTINDIA | C20: 27309.85 | D20: 27224.30 | E20: 27004.40 | F20: 26698.95 | G20: 26479.05 | H20: 27529.75 | I20: 27749.65 | J20: 28055.10 | K20: 27444.2 | L20: 26918.85 | M20: 0.1746
A21: 11 | B21: ACE | C21: 1260.85 | D21: 1270.63 | E21: 1242.27 | F21: 1223.68 | G21: 1195.32 | H21: 1289.22 | I21: 1317.58 | J21: 1336.17 | K21: 1299 | L21: 1252.05 | M21: 2.32526
A22: 12 | B22: ADANIENSOL | C22: 1071.25 | D22: 1088.75 | E22: 1047.60 | F22: 1023.95 | G22: 982.80 | H22: 1112.40 | I22: 1153.55 | J22: 1177.20 | K22: 1129.9 | L22: 1065.1 | M22: 58.08191
A23: 13 | B23: ADANIENT | C23: 3092.2 | D23: 3117.35 | E23: 3056.60 | F23: 3021.00 | G23: 2960.25 | H23: 3152.95 | I23: 3213.70 | J23: 3249.30 | K23: 3178.1 | L23: 3081.75 | M23: 21.92588
A24: 14 | B24: ADANIGREEN | C24: 1825.65 | D24: 1827.40 | E24: 1807.40 | F24: 1789.15 | G24: 1769.15 | H24: 1845.65 | I24: 1865.65 | J24: 1883.90 | K24: 1847.4 | L24: 1809.15 | M24: 13.03132
A25: 15 | B25: ADANIPORTS | C25: 1483.45 | D25: 1493.47 | E25: 1469.48 | F25: 1455.52 | G25: 1431.53 | H25: 1507.43 | I25: 1531.42 | J25: 1545.38 | K25: 1517.45 | L25: 1479.5 | M25: 24.85446
A26: 16 | B26: ADANIPOWER | C26: 689.5 | D26: 692.67 | E26: 682.83 | F26: 676.17 | G26: 666.33 | H26: 699.33 | I26: 709.17 | J26: 715.83 | K26: 702.5 | L26: 686 | M26: 147.72732
A27: 17 | B27: ATGL | C27: 851.35 | D27: 854.68 | E27: 841.62 | F27: 831.88 | G27: 818.82 | H27: 864.42 | I27: 877.48 | J27: 887.22 | K27: 867.75 | L27: 844.95 | M27: 50.9854
A28: 18 | B28: AWL | C28: 360.4 | D28: 365.17 | E28: 353.43 | F28: 346.47 | G28: 334.73 | H28: 372.13 | I28: 383.87 | J28: 390.83 | K28: 376.9 | L28: 358.2 | M28: 45.96839
A29: 19 | B29: ABCAPITAL | C29: 207.69 | D29: 209.54 | E29: 204.55 | F29: 201.42 | G29: 196.43 | H29: 212.67 | I29: 217.66 | J29: 220.79 | K29: 214.52 | L29: 206.4 | M29: 40.09584
A30: 20 | B30: ABFRL | C30: 312.7 | D30: 315.70 | E30: 306.40 | F30: 300.10 | G30: 290.80 | H30: 322.00 | I30: 331.30 | J30: 337.60 | K30: 325 | L30: 309.4 | M30: 22.52914
A31: 21 | B31: AEGISLOG | C31: 749.95 | D31: 754.85 | E31: 735.70 | F31: 721.45 | G31: 702.30 | H31: 769.10 | I31: 788.25 | J31: 802.50 | K31: 774 | L31: 740.6 | M31: 1.65599
A32: 22 | B32: AETHER | C32: 902.8 | D32: 904.88 | E32: 874.97 | F32: 847.13 | G32: 817.22 | H32: 932.72 | I32: 962.63 | J32: 990.47 | K32: 934.8 | L32: 877.05 | M32: 1.43738
A33: 23 | B33: AFFLE | C33: 1524.65 | D33: 1537.22 | E33: 1504.48 | F33: 1484.32 | G33: 1451.58 | H33: 1557.38 | I33: 1590.12 | J33: 1610.28 | K33: 1569.95 | L33: 1517.05 | M33: 6.01636
A34: 24 | B34: AJANTPHARM | C34: 3175.35 | D34: 3143.92 | E34: 3098.83 | F34: 3022.32 | G34: 2977.23 | H34: 3220.43 | I34: 3265.52 | J34: 3342.03 | K34: 3189 | L34: 3067.4 | M34: 2.92386
A35: 25 | B35: APLLTD | C35: 1068.15 | D35: 1086.90 | E35: 1043.85 | F35: 1019.55 | G35: 976.50 | H35: 1111.20 | I35: 1154.25 | J35: 1178.55 | K35: 1129.95 | L35: 1062.6 | M35: 3.1267
A36: 26 | B36: ALKEM | C36: 5709.4 | D36: 5725.53 | E36: 5655.87 | F36: 5602.33 | G36: 5532.67 | H36: 5779.07 | I36: 5848.73 | J36: 5902.27 | K36: 5795.2 | L36: 5672 | M36: 3.05322
A37: 27 | B37: ALKYLAMINE | C37: 2021.9 | D37: 2028.17 | E37: 1993.73 | F37: 1965.57 | G37: 1931.13 | H37: 2056.33 | I37: 2090.77 | J37: 2118.93 | K37: 2062.6 | L37: 2000 | M37: 0.33793
A38: 28 | B38: ALLCARGO | C38: 60.53 | D38: 60.85 | E38: 59.98 | F38: 59.44 | G38: 58.57 | H38: 61.39 | I38: 62.26 | J38: 62.80 | K38: 61.71 | L38: 60.3 | M38: 12.21987
A39: 29 | B39: ALOKINDS | C39: 25.07 | D39: 25.37 | E39: 24.68 | F39: 24.30 | G39: 23.61 | H39: 25.75 | I39: 26.44 | J39: 26.82 | K39: 26.05 | L39: 24.98 | M39: 94.09365
A40: 30 | B40: ARE&M | C40: 1565.9 | D40: 1586.65 | E40: 1534.35 | F40: 1502.80 | G40: 1450.50 | H40: 1618.20 | I40: 1670.50 | J40: 1702.05 | K40: 1638.95 | L40: 1555.1 | M40: 8.0409
A41: 31 | B41: AMBER | C41: 4074.05 | D41: 4102.37 | E41: 4016.73 | F41: 3959.42 | G41: 3873.78 | H41: 4159.68 | I41: 4245.32 | J41: 4302.63 | K41: 4188 | L41: 4045.05 | M41: 0.63461
A42: 32 | B42: AMBUJACEM | C42: 624.4 | D42: 628.48 | E42: 618.02 | F42: 611.63 | G42: 601.17 | H42: 634.87 | I42: 645.33 | J42: 651.72 | K42: 638.95 | L42: 622.1 | M42: 13.79099
A43: 33 | B43: ANANDRATHI | C43: 3562.85 | D43: 3598.37 | E43: 3507.48 | F43: 3452.12 | G43: 3361.23 | H43: 3653.73 | I43: 3744.62 | J43: 3799.98 | K43: 3689.25 | L43: 3543 | M43: 0.30834
A44: 34 | B44: ANGELONE | C44: 2093.25 | D44: 2100.65 | E44: 2075.35 | F44: 2057.45 | G44: 2032.15 | H44: 2118.55 | I44: 2143.85 | J44: 2161.75 | K44: 2125.95 | L44: 2082.75 | M44: 5.25966
A45: 35 | B45: ANURAS | C45: 774.85 | D45: 772.78 | E45: 765.07 | F45: 755.28 | G45: 747.57 | H45: 782.57 | I45: 790.28 | J45: 800.07 | K45: 780.5 | L45: 763 | M45: 1.37767
A46: 36 | B46: APARINDS | C46: 8522.15 | D46: 8510.78 | E46: 8404.42 | F46: 8286.68 | G46: 8180.32 | H46: 8628.52 | I46: 8734.88 | J46: 8852.62 | K46: 8617.15 | L46: 8393.05 | M46: 0.9036
A47: 37 | B47: APOLLOHOSP | C47: 6589.4 | D47: 6580.57 | E47: 6519.13 | F47: 6448.87 | G47: 6387.43 | H47: 6650.83 | I47: 6712.27 | J47: 6782.53 | K47: 6642 | L47: 6510.3 | M47: 4.00126
A48: 38 | B48: APOLLOTYRE | C48: 485.4 | D48: 487.98 | E48: 480.22 | F48: 475.03 | G48: 467.27 | H48: 493.17 | I48: 500.93 | J48: 506.12 | K48: 495.75 | L48: 482.8 | M48: 14.43176
A49: 39 | B49: APTUS | C49: 305.35 | D49: 307.00 | E49: 303.35 | F49: 301.35 | G49: 297.70 | H49: 309.00 | I49: 312.65 | J49: 314.65 | K49: 310.65 | L49: 305 | M49: 2.94834
A50: 40 | B50: ACI | C50: 709.95 | D50: 718.28 | E50: 696.67 | F50: 683.38 | G50: 661.77 | H50: 731.57 | I50: 753.18 | J50: 766.47 | K50: 739.9 | L50: 705 | M50: 5.23481
A51: 41 | B51: ASAHIINDIA | C51: 616.4 | D51: 622.85 | E51: 609.15 | F51: 601.90 | G51: 588.20 | H51: 630.10 | I51: 643.80 | J51: 651.05 | K51: 636.55 | L51: 615.6 | M51: 0.41201
A52: 42 | B52: ASHOKLEY | C52: 251.7 | D52: 252.67 | E52: 250.08 | F52: 248.47 | G52: 245.88 | H52: 254.28 | I52: 256.87 | J52: 258.48 | K52: 255.25 | L52: 251.05 | M52: 81.15854
A53: 43 | B53: ASIANPAINT | C53: 3023.55 | D53: 3032.12 | E53: 3004.43 | F53: 2985.32 | G53: 2957.63 | H53: 3051.23 | I53: 3078.92 | J53: 3098.03 | K53: 3059.8 | L53: 3013 | M53: 5.0226
A54: 44 | B54: ASTERDM | C54: 390 | D54: 387.82 | E54: 383.23 | F54: 376.47 | G54: 371.88 | H54: 394.58 | I54: 399.17 | J54: 405.93 | K54: 392.4 | L54: 381.05 | M54: 19.78049
A55: 45 | B55: ASTRAZEN | C55: 6595.25 | D55: 6772.22 | E55: 6348.03 | F55: 6100.82 | G55: 5676.63 | H55: 7019.43 | I55: 7443.62 | J55: 7690.83 | K55: 7196.4 | L55: 6525 | M55: 0.40888
A56: 46 | B56: ASTRAL | C56: 1910.35 | D56: 1924.28 | E56: 1889.57 | F56: 1868.78 | G56: 1834.07 | H56: 1945.07 | I56: 1979.78 | J56: 2000.57 | K56: 1959 | L56: 1903.5 | M56: 6.0177
A57: 47 | B57: ATUL | C57: 7635 | D57: 7731.83 | E57: 7513.67 | F57: 7392.33 | G57: 7174.17 | H57: 7853.17 | I57: 8071.33 | J57: 8192.67 | K57: 7950 | L57: 7610.5 | M57: 0.78193
A58: 48 | B58: AUROPHARMA | C58: 1505.8 | D58: 1500.27 | E58: 1467.33 | F58: 1428.87 | G58: 1395.93 | H58: 1538.73 | I58: 1571.67 | J58: 1610.13 | K58: 1533.2 | L58: 1461.8 | M58: 38.67134
A59: 49 | B59: AVANTIFEED | C59: 696.35 | D59: 710.55 | E59: 678.85 | F59: 661.35 | G59: 629.65 | H59: 728.05 | I59: 759.75 | J59: 777.25 | K59: 742.25 | L59: 693.05 | M59: 22.64896
A60: 50 | B60: DMART | C60: 4929.5 | D60: 4961.00 | E60: 4874.00 | F60: 4818.50 | G60: 4731.50 | H60: 5016.50 | I60: 5103.50 | J60: 5159.00 | K60: 5048 | L60: 4905.5 | M60: 1.38438
A61: 51 | B61: AXISBANK | C61: 1159.6 | D61: 1164.87 | E61: 1150.13 | F61: 1140.67 | G61: 1125.93 | H61: 1174.33 | I61: 1189.07 | J61: 1198.53 | K61: 1179.6 | L61: 1155.4 | M61: 61.80463
A62: 52 | B62: BEML | C62: 3836.85 | D62: 3912.95 | E62: 3723.90 | F62: 3610.95 | G62: 3421.90 | H62: 4025.90 | I62: 4214.95 | J62: 4327.90 | K62: 4102 | L62: 3800 | M62: 4.64853
A63: 53 | B63: BLS | C63: 370.95 | D63: 374.23 | E63: 366.62 | F63: 362.28 | G63: 354.67 | H63: 378.57 | I63: 386.18 | J63: 390.52 | K63: 381.85 | L63: 369.9 | M63: 16.5451
A64: 54 | B64: BSE | C64: 2592.05 | D64: 2584.62 | E64: 2551.43 | F64: 2510.82 | G64: 2477.63 | H64: 2625.23 | I64: 2658.42 | J64: 2699.03 | K64: 2617.8 | L64: 2544 | M64: 6.23188
A65: 55 | B65: BAJAJ-AUTO | C65: 9671.6 | D65: 9703.82 | E65: 9617.78 | F65: 9563.97 | G65: 9477.93 | H65: 9757.63 | I65: 9843.67 | J65: 9897.48 | K65: 9789.85 | L65: 9650 | M65: 1.61706
A66: 56 | B66: BAJFINANCE | C66: 6465.05 | D66: 6520.73 | E66: 6396.52 | F66: 6327.98 | G66: 6203.77 | H66: 6589.27 | I66: 6713.48 | J66: 6782.02 | K66: 6644.95 | L66: 6452.2 | M66: 10.72327
A67: 57 | B67: BAJAJFINSV | C67: 1543.35 | D67: 1549.80 | E67: 1530.60 | F67: 1517.85 | G67: 1498.65 | H67: 1562.55 | I67: 1581.75 | J67: 1594.50 | K67: 1569 | L67: 1537.05 | M67: 18.17066
A68: 58 | B68: BAJAJHLDNG | C68: 9148.9 | D68: 9239.30 | E68: 9030.60 | F68: 8912.30 | G68: 8703.60 | H68: 9357.60 | I68: 9566.30 | J68: 9684.60 | K68: 9448 | L68: 9121 | M68: 0.38083
A69: 59 | B69: BALAMINES | C69: 2123.75 | D69: 2143.92 | E69: 2085.83 | F69: 2047.92 | G69: 1989.83 | H69: 2181.83 | I69: 2239.92 | J69: 2277.83 | K69: 2202 | L69: 2106 | M69: 0.87722
A70: 60 | B70: BALKRISIND | C70: 2780.8 | D70: 2802.87 | E70: 2738.93 | F70: 2697.07 | G70: 2633.13 | H70: 2844.73 | I70: 2908.67 | J70: 2950.53 | K70: 2866.8 | L70: 2761 | M70: 3.89574
A71: 61 | B71: BALRAMCHIN | C71: 511.4 | D71: 509.97 | E71: 496.93 | F71: 482.47 | G71: 469.43 | H71: 524.43 | I71: 537.47 | J71: 551.93 | K71: 523 | L71: 495.5 | M71: 94.03901
A72: 62 | B72: BANDHANBNK | C72: 192.6 | D72: 193.91 | E72: 190.01 | F72: 187.41 | G72: 183.51 | H72: 196.51 | I72: 200.41 | J72: 203.01 | K72: 197.82 | L72: 191.32 | M72: 149.75254
A73: 63 | B73: BANKBARODA | C73: 241.75 | D73: 243.10 | E73: 239.65 | F73: 237.55 | G73: 234.10 | H73: 245.20 | I73: 248.65 | J73: 250.75 | K73: 246.55 | L73: 241 | M73: 105.27254
A74: 64 | B74: BANKINDIA | C74: 115.73 | D74: 116.50 | E74: 114.24 | F74: 112.76 | G74: 110.50 | H74: 117.98 | I74: 120.24 | J74: 121.72 | K74: 118.75 | L74: 115.01 | M74: 89.49764
A75: 65 | B75: MAHABANK | C75: 60.13 | D75: 60.59 | E75: 59.54 | F75: 58.94 | G75: 57.89 | H75: 61.19 | I75: 62.24 | J75: 62.84 | K75: 61.65 | L75: 60 | M75: 102.13321
A76: 66 | B76: BATAINDIA | C76: 1402.8 | D76: 1409.25 | E76: 1393.55 | F76: 1384.30 | G76: 1368.60 | H76: 1418.50 | I76: 1434.20 | J76: 1443.45 | K76: 1424.95 | L76: 1400 | M76: 3.54487
A77: 67 | B77: BAYERCROP | C77: 6214.05 | D77: 6289.22 | E77: 6122.43 | F77: 6030.82 | G77: 5864.03 | H77: 6380.83 | I77: 6547.62 | J77: 6639.23 | K77: 6456 | L77: 6197.6 | M77: 0.2256
A78: 68 | B78: BERGEPAINT | C78: 534.85 | D78: 530.85 | E78: 525.00 | F78: 515.15 | G78: 509.30 | H78: 540.70 | I78: 546.55 | J78: 556.40 | K78: 536.7 | L78: 521 | M78: 18.06393
A79: 69 | B79: BDL | C79: 1335.65 | D79: 1338.62 | E79: 1319.28 | F79: 1302.92 | G79: 1283.58 | H79: 1354.98 | I79: 1374.32 | J79: 1390.68 | K79: 1357.95 | L79: 1322.25 | M79: 12.15844
A80: 70 | B80: BEL | C80: 296.15 | D80: 298.07 | E80: 293.48 | F80: 290.82 | G80: 286.23 | H80: 300.73 | I80: 305.32 | J80: 307.98 | K80: 302.65 | L80: 295.4 | M80: 147.46085
A81: 71 | B81: BHARATFORG | C81: 1581.05 | D81: 1587.43 | E81: 1569.87 | F81: 1558.68 | G81: 1541.12 | H81: 1598.62 | I81: 1616.18 | J81: 1627.37 | K81: 1605 | L81: 1576.25 | M81: 4.79156
A82: 72 | B82: BHEL | C82: 289.95 | D82: 293.43 | E82: 285.52 | F82: 281.08 | G82: 273.17 | H82: 297.87 | I82: 305.78 | J82: 310.22 | K82: 301.35 | L82: 289 | M82: 114.61814
A83: 73 | B83: BPCL | C83: 321.7 | D83: 325.15 | E83: 317.55 | F83: 313.40 | G83: 305.80 | H83: 329.30 | I83: 336.90 | J83: 341.05 | K83: 332.75 | L83: 321 | M83: 97.57429
A84: 74 | B84: BHARTIARTL | C84: 1459.7 | D84: 1462.82 | E84: 1447.23 | F84: 1434.77 | G84: 1419.18 | H84: 1475.28 | I84: 1490.87 | J84: 1503.33 | K84: 1478.4 | L84: 1450.35 | M84: 44.95208
A85: 75 | B85: BIKAJI | C85: 849.7 | D85: 854.23 | E85: 833.47 | F85: 817.23 | G85: 796.47 | H85: 870.47 | I85: 891.23 | J85: 907.47 | K85: 875 | L85: 838 | M85: 12.40704
A86: 76 | B86: BIOCON | C86: 337.1 | D86: 337.72 | E86: 333.43 | F86: 329.77 | G86: 325.48 | H86: 341.38 | I86: 345.67 | J86: 349.33 | K86: 342 | L86: 334.05 | M86: 33.6038
A87: 77 | B87: BIRLACORPN | C87: 1231.4 | D87: 1255.15 | E87: 1196.30 | F87: 1161.20 | G87: 1102.35 | H87: 1290.25 | I87: 1349.10 | J87: 1384.20 | K87: 1314 | L87: 1220.05 | M87: 3.70652
A88: 78 | B88: BSOFT | C88: 565.65 | D88: 572.27 | E88: 554.63 | F88: 543.62 | G88: 525.98 | H88: 583.28 | I88: 600.92 | J88: 611.93 | K88: 589.9 | L88: 561.25 | M88: 29.78182
A89: 79 | B89: BLUEDART | C89: 7980.95 | D89: 8048.35 | E89: 7896.70 | F89: 7812.45 | G89: 7660.80 | H89: 8132.60 | I89: 8284.25 | J89: 8368.50 | K89: 8200 | L89: 7964.1 | M89: 0.04255
A90: 80 | B90: BLUESTARCO | C90: 1713.7 | D90: 1691.10 | E90: 1653.20 | F90: 1592.70 | G90: 1554.80 | H90: 1751.60 | I90: 1789.50 | J90: 1850.00 | K90: 1729 | L90: 1630.6 | M90: 13.43852
A91: 81 | B91: BBTC | C91: 2242.55 | D91: 2280.53 | E91: 2173.37 | F91: 2104.18 | G91: 1997.02 | H91: 2349.72 | I91: 2456.88 | J91: 2526.07 | K91: 2387.7 | L91: 2211.35 | M91: 1.65602
A92: 82 | B92: BORORENEW | C92: 497.05 | D92: 500.30 | E92: 490.85 | F92: 484.65 | G92: 475.20 | H92: 506.50 | I92: 515.95 | J92: 522.15 | K92: 509.75 | L92: 494.1 | M92: 5.02083
A93: 83 | B93: BOSCHLTD | C93: 31593.85 | D93: 31614.48 | E93: 31348.97 | F93: 31104.08 | G93: 30838.57 | H93: 31859.37 | I93: 32124.88 | J93: 32369.77 | K93: 31880 | L93: 31369.6 | M93: 0.1681
A94: 84 | B94: BRIGADE | C94: 1120.8 | D94: 1122.20 | E94: 1104.40 | F94: 1088.00 | G94: 1070.20 | H94: 1138.60 | I94: 1156.40 | J94: 1172.80 | K94: 1140 | L94: 1105.8 | M94: 6.068
A95: 85 | B95: BRITANNIA | C95: 5666.5 | D95: 5666.17 | E95: 5617.38 | F95: 5568.27 | G95: 5519.48 | H95: 5715.28 | I95: 5764.07 | J95: 5813.18 | K95: 5714.95 | L95: 5617.05 | M95: 2.36505
A96: 86 | B96: MAPMYINDIA | C96: 2195.9 | D96: 2232.83 | E96: 2147.02 | F96: 2098.13 | G96: 2012.32 | H96: 2281.72 | I96: 2367.53 | J96: 2416.42 | K96: 2318.65 | L96: 2183.95 | M96: 1.45282
A97: 87 | B97: CCL | C97: 660.15 | D97: 659.97 | E97: 647.93 | F97: 635.72 | G97: 623.68 | H97: 672.18 | I97: 684.22 | J97: 696.43 | K97: 672 | L97: 647.75 | M97: 1.94582
A98: 88 | B98: CESC | C98: 175.77 | D98: 176.62 | E98: 172.45 | F98: 169.12 | G98: 164.95 | H98: 179.95 | I98: 184.12 | J98: 187.45 | K98: 180.8 | L98: 173.3 | M98: 36.23633
A99: 89 | B99: CGPOWER | C99: 692.9 | D99: 697.18 | E99: 681.47 | F99: 670.03 | G99: 654.32 | H99: 708.62 | I99: 724.33 | J99: 735.77 | K99: 712.9 | L99: 685.75 | M99: 11.24143
A100: 90 | B100: CIEINDIA | C100: 531.5 | D100: 534.83 | E100: 522.22 | F100: 512.93 | G100: 500.32 | H100: 544.12 | I100: 556.73 | J100: 566.02 | K100: 547.45 | L100: 525.55 | M100: 2.91529
A101: 91 | B101: CRISIL | C101: 4537.4 | D101: 4531.98 | E101: 4468.97 | F101: 4400.53 | G101: 4337.52 | H101: 4600.42 | I101: 4663.43 | J101: 4731.87 | K101: 4595 | L101: 4463.55 | M101: 0.76356
A102: 92 | B102: CSBBANK | C102: 323.95 | D102: 323.23 | E102: 320.77 | F102: 317.58 | G102: 315.12 | H102: 326.42 | I102: 328.88 | J102: 332.07 | K102: 325.7 | L102: 320.05 | M102: 3.33589
A103: 93 | B103: CAMPUS | C103: 285.5 | D103: 285.38 | E103: 278.77 | F103: 272.03 | G103: 265.42 | H103: 292.12 | I103: 298.73 | J103: 305.47 | K103: 292 | L103: 278.65 | M103: 16.48781
A104: 94 | B104: CANFINHOME | C104: 802.85 | D104: 807.02 | E104: 795.83 | F104: 788.82 | G104: 777.63 | H104: 814.03 | I104: 825.22 | J104: 832.23 | K104: 818.2 | L104: 800 | M104: 4.728
A105: 95 | B105: CANBK | C105: 106.69 | D105: 107.69 | E105: 105.25 | F105: 103.80 | G105: 101.36 | H105: 109.14 | I105: 111.58 | J105: 113.03 | K105: 110.14 | L105: 106.25 | M105: 199.54825
A106: 96 | B106: CAPLIPOINT | C106: 1572.15 | D106: 1569.45 | E106: 1544.90 | F106: 1517.65 | G106: 1493.10 | H106: 1596.70 | I106: 1621.25 | J106: 1648.50 | K106: 1594 | L106: 1542.2 | M106: 1.18567
A107: 97 | B107: CGCL | C107: 201.65 | D107: 203.02 | E107: 199.63 | F107: 197.62 | G107: 194.23 | H107: 205.03 | I107: 208.42 | J107: 210.43 | K107: 206.4 | L107: 201 | M107: 1.13733
A108: 98 | B108: CARBORUNIV | C108: 1544.65 | D108: 1554.72 | E108: 1517.43 | F108: 1490.22 | G108: 1452.93 | H108: 1581.93 | I108: 1619.22 | J108: 1646.43 | K108: 1592 | L108: 1527.5 | M108: 1.0066
A109: 99 | B109: CASTROLIND | C109: 250.3 | D109: 252.58 | E109: 246.77 | F109: 243.23 | G109: 237.42 | H109: 256.12 | I109: 261.93 | J109: 265.47 | K109: 258.4 | L109: 249.05 | M109: 26.85964
A110: 100 | B110: CEATLTD | C110: 2616.6 | D110: 2650.40 | E110: 2571.20 | F110: 2525.80 | G110: 2446.60 | H110: 2695.80 | I110: 2775.00 | J110: 2820.40 | K110: 2729.6 | L110: 2605 | M110: 2.29773
A111: 101 | B111: CELLO | C111: 882.15 | D111: 892.17 | E111: 866.98 | F111: 851.82 | G111: 826.63 | H111: 907.33 | I111: 932.52 | J111: 947.68 | K111: 917.35 | L111: 877 | M111: 16.32262
A112: 102 | B112: CENTRALBK | C112: 58.42 | D112: 58.76 | E112: 57.86 | F112: 57.31 | G112: 56.41 | H112: 59.31 | I112: 60.21 | J112: 60.76 | K112: 59.65 | L112: 58.2 | M112: 45.01534
A113: 103 | B113: CDSL | C113: 2528.25 | D113: 2547.32 | E113: 2500.93 | F113: 2473.62 | G113: 2427.23 | H113: 2574.63 | I113: 2621.02 | J113: 2648.33 | K113: 2593.7 | L113: 2520 | M113: 9.81571
A114: 104 | B114: CENTURYPLY | C114: 730.15 | D114: 736.42 | E114: 718.68 | F114: 707.22 | G114: 689.48 | H114: 747.88 | I114: 765.62 | J114: 777.08 | K114: 754.15 | L114: 724.95 | M114: 6.35067
A115: 105 | B115: CENTURYTEX | C115: 2200.95 | D115: 2208.70 | E115: 2183.60 | F115: 2166.25 | G115: 2141.15 | H115: 2226.05 | I115: 2251.15 | J115: 2268.50 | K115: 2233.8 | L115: 2191.35 | M115: 1.24207
A116: 106 | B116: CERA | C116: 9880 | D116: 10012.30 | E116: 9724.60 | F116: 9569.20 | G116: 9281.50 | H116: 10167.70 | I116: 10455.40 | J116: 10610.80 | K116: 10300 | L116: 9856.9 | M116: 0.95865
A117: 107 | B117: CHALET | C117: 772.35 | D117: 779.93 | E117: 762.42 | F117: 752.48 | G117: 734.97 | H117: 789.87 | I117: 807.38 | J117: 817.32 | K117: 797.45 | L117: 770 | M117: 0.64068
A118: 108 | B118: CHAMBLFERT | C118: 489.9 | D118: 502.47 | E118: 474.43 | F118: 458.97 | G118: 430.93 | H118: 517.93 | I118: 545.97 | J118: 561.43 | K118: 530.5 | L118: 487 | M118: 50.56816
A119: 109 | B119: CHEMPLASTS | C119: 502.7 | D119: 505.35 | E119: 497.35 | F119: 492.00 | G119: 484.00 | H119: 510.70 | I119: 518.70 | J119: 524.05 | K119: 513.35 | L119: 500 | M119: 6.79468
A120: 110 | B120: CHENNPETRO | C120: 895.1 | D120: 903.63 | E120: 882.47 | F120: 869.83 | G120: 848.67 | H120: 916.27 | I120: 937.43 | J120: 950.07 | K120: 924.8 | L120: 891 | M120: 7.87946
A121: 111 | B121: CHOLAHLDNG | C121: 1504.15 | D121: 1518.72 | E121: 1474.18 | F121: 1444.22 | G121: 1399.68 | H121: 1548.68 | I121: 1593.22 | J121: 1623.18 | K121: 1563.25 | L121: 1488.75 | M121: 4.16101
A122: 112 | B122: CHOLAFIN | C122: 1314.9 | D122: 1327.78 | E122: 1289.62 | F122: 1264.33 | G122: 1226.17 | H122: 1353.07 | I122: 1391.23 | J122: 1416.52 | K122: 1365.95 | L122: 1302.5 | M122: 31.86664
A123: 113 | B123: CIPLA | C123: 1583.45 | D123: 1590.05 | E123: 1573.40 | F123: 1563.35 | G123: 1546.70 | H123: 1600.10 | I123: 1616.75 | J123: 1626.80 | K123: 1606.7 | L123: 1580 | M123: 22.81463
A124: 114 | B124: CUB | C124: 161.78 | D124: 162.72 | E124: 160.12 | F124: 158.46 | G124: 155.86 | H124: 164.38 | I124: 166.98 | J124: 168.64 | K124: 165.32 | L124: 161.06 | M124: 10.77205
A125: 115 | B125: CLEAN | C125: 1593.5 | D125: 1609.33 | E125: 1568.67 | F125: 1543.83 | G125: 1503.17 | H125: 1634.17 | I125: 1674.83 | J125: 1699.67 | K125: 1650 | L125: 1584.5 | M125: 2.91385
A126: 116 | B126: COALINDIA | C126: 521.75 | D126: 523.88 | E126: 517.87 | F126: 513.98 | G126: 507.97 | H126: 527.77 | I126: 533.78 | J126: 537.67 | K126: 529.9 | L126: 520 | M126: 52.01294
A127: 117 | B127: COCHINSHIP | C127: 2204.15 | D127: 2248.33 | E127: 2153.82 | F127: 2103.48 | G127: 2008.97 | H127: 2298.67 | I127: 2393.18 | J127: 2443.52 | K127: 2342.85 | L127: 2198 | M127: 24.81721
A128: 118 | B128: COFORGE | C128: 5847.75 | D128: 5870.03 | E128: 5792.27 | F128: 5736.78 | G128: 5659.02 | H128: 5925.52 | I128: 6003.28 | J128: 6058.77 | K128: 5947.8 | L128: 5814.55 | M128: 1.69097
A129: 119 | B129: COLPAL | C129: 3457.35 | D129: 3464.15 | E129: 3438.90 | F129: 3420.45 | G129: 3395.20 | H129: 3482.60 | I129: 3507.85 | J129: 3526.30 | K129: 3489.4 | L129: 3445.7 | M129: 2.57752
A130: 120 | B130: CAMS | C130: 4123.85 | D130: 4177.62 | E130: 4026.23 | F130: 3928.62 | G130: 3777.23 | H130: 4275.23 | I130: 4426.62 | J130: 4524.23 | K130: 4329 | L130: 4080 | M130: 3.2988
A131: 121 | B131: CONCORDBIO | C131: 1557.6 | D131: 1535.75 | E131: 1494.55 | F131: 1431.50 | G131: 1390.30 | H131: 1598.80 | I131: 1640.00 | J131: 1703.05 | K131: 1576.95 | L131: 1472.7 | M131: 0.84487
A132: 122 | B132: CONCOR | C132: 956.75 | D132: 965.57 | E132: 945.18 | F132: 933.62 | G132: 913.23 | H132: 977.13 | I132: 997.52 | J132: 1009.08 | K132: 985.95 | L132: 954 | M132: 17.67025
A133: 123 | B133: COROMANDEL | C133: 1716.9 | D133: 1720.57 | E133: 1701.68 | F133: 1686.47 | G133: 1667.58 | H133: 1735.78 | I133: 1754.67 | J133: 1769.88 | K133: 1739.45 | L133: 1705.35 | M133: 2.84601
A134: 124 | B134: CRAFTSMAN | C134: 5365.6 | D134: 5406.35 | E134: 5292.75 | F134: 5219.90 | G134: 5106.30 | H134: 5479.20 | I134: 5592.80 | J134: 5665.65 | K134: 5519.95 | L134: 5333.5 | M134: 0.22921
A135: 125 | B135: CREDITACC | C135: 1202.95 | D135: 1217.42 | E135: 1180.83 | F135: 1158.72 | G135: 1122.13 | H135: 1239.53 | I135: 1276.12 | J135: 1298.23 | K135: 1254 | L135: 1195.3 | M135: 3.7302
A136: 126 | B136: CROMPTON | C136: 436.25 | D136: 435.80 | E136: 428.45 | F136: 420.65 | G136: 413.30 | H136: 443.60 | I136: 450.95 | J136: 458.75 | K136: 443.15 | L136: 428 | M136: 27.55107
A137: 127 | B137: CUMMINSIND | C137: 3705.2 | D137: 3706.70 | E137: 3658.85 | F137: 3612.50 | G137: 3564.65 | H137: 3753.05 | I137: 3800.90 | J137: 3847.25 | K137: 3754.55 | L137: 3660.35 | M137: 4.17701
A138: 128 | B138: CYIENT | C138: 1669.15 | D138: 1665.88 | E138: 1654.77 | F138: 1640.38 | G138: 1629.27 | H138: 1680.27 | I138: 1691.38 | J138: 1705.77 | K138: 1677 | L138: 1651.5 | M138: 2.1519
A139: 129 | B139: DCMSHRIRAM | C139: 1115.4 | D139: 1119.28 | E139: 1100.32 | F139: 1085.23 | G139: 1066.27 | H139: 1134.37 | I139: 1153.33 | J139: 1168.42 | K139: 1138.25 | L139: 1104.2 | M139: 0.5252
A140: 130 | B140: DLF | C140: 813.85 | D140: 820.47 | E140: 803.43 | F140: 793.02 | G140: 775.98 | H140: 830.88 | I140: 847.92 | J140: 858.33 | K140: 837.5 | L140: 810.05 | M140: 14.33125
A141: 131 | B141: DOMS | C141: 2257.75 | D141: 2343.00 | E141: 2141.00 | F141: 2024.25 | G141: 1822.25 | H141: 2459.75 | I141: 2661.75 | J141: 2778.50 | K141: 2545 | L141: 2226.25 | M141: 3.76659
A142: 132 | B142: DABUR | C142: 605.85 | D142: 610.93 | E142: 597.62 | F142: 589.38 | G142: 576.07 | H142: 619.17 | I142: 632.48 | J142: 640.72 | K142: 624.25 | L142: 602.7 | M142: 26.91122
A143: 133 | B143: DALBHARAT | C143: 1735.25 | D143: 1733.80 | E143: 1720.65 | F143: 1706.05 | G143: 1692.90 | H143: 1748.40 | I143: 1761.55 | J143: 1776.15 | K143: 1746.95 | L143: 1719.2 | M143: 3.26808
A144: 134 | B144: DATAPATTNS | C144: 2996.85 | D144: 2996.18 | E144: 2895.47 | F144: 2794.08 | G144: 2693.37 | H144: 3097.57 | I144: 3198.28 | J144: 3299.67 | K144: 3096.9 | L144: 2894.8 | M144: 8.178
A145: 135 | B145: DEEPAKFERT | C145: 953.6 | D145: 974.20 | E145: 929.40 | F145: 905.20 | G145: 860.40 | H145: 998.40 | I145: 1043.20 | J145: 1067.40 | K145: 1019 | L145: 950 | M145: 12.54708
A146: 136 | B146: DEEPAKNTR | C146: 2847.8 | D146: 2901.13 | E146: 2786.67 | F146: 2725.53 | G146: 2611.07 | H146: 2962.27 | I146: 3076.73 | J146: 3137.87 | K146: 3015.6 | L146: 2840 | M146: 6.82293
A147: 137 | B147: DELHIVERY | C147: 408.1 | D147: 407.20 | E147: 403.00 | F147: 397.90 | G147: 393.70 | H147: 412.30 | I147: 416.50 | J147: 421.60 | K147: 411.4 | L147: 402.1 | M147: 19.16788
A148: 138 | B148: DEVYANI | C148: 167.68 | D148: 169.23 | E148: 165.47 | F148: 163.25 | G148: 159.49 | H148: 171.45 | I148: 175.21 | J148: 177.43 | K148: 173 | L148: 167.02 | M148: 6.51473
A149: 139 | B149: DIVISLAB | C149: 4861.8 | D149: 4861.60 | E149: 4803.25 | F149: 4744.70 | G149: 4686.35 | H149: 4920.15 | I149: 4978.50 | J149: 5037.05 | K149: 4919.95 | L149: 4803.05 | M149: 2.03334
A150: 140 | B150: DIXON | C150: 11986.15 | D150: 11938.65 | E150: 11785.30 | F150: 11584.45 | G150: 11431.10 | H150: 12139.50 | I150: 12292.85 | J150: 12493.70 | K150: 12092 | L150: 11737.8 | M150: 7.32893
A151: 141 | B151: LALPATHLAB | C151: 3256.6 | D151: 3252.40 | E151: 3198.40 | F151: 3140.20 | G151: 3086.20 | H151: 3310.60 | I151: 3364.60 | J151: 3422.80 | K151: 3306.4 | L151: 3194.2 | M151: 2.15201
A152: 142 | B152: DRREDDY | C152: 6948.4 | D152: 6920.63 | E152: 6879.02 | F152: 6809.63 | G152: 6768.02 | H152: 6990.02 | I152: 7031.63 | J152: 7101.02 | K152: 6962.25 | L152: 6851.25 | M152: 2.43465
A153: 143 | B153: EIDPARRY | C153: 776.2 | D153: 788.07 | E153: 762.13 | F153: 748.07 | G153: 722.13 | H153: 802.13 | I153: 828.07 | J153: 842.13 | K153: 814 | L153: 774 | M153: 6.03562
A154: 144 | B154: EIHOTEL | C154: 375.45 | D154: 380.52 | E154: 368.03 | F154: 360.62 | G154: 348.13 | H154: 387.93 | I154: 400.42 | J154: 407.83 | K154: 393 | L154: 373.1 | M154: 7.47483
A155: 145 | B155: EPL | C155: 217.74 | D155: 221.19 | E155: 213.60 | F155: 209.46 | G155: 201.87 | H155: 225.33 | I155: 232.92 | J155: 237.06 | K155: 228.78 | L155: 217.05 | M155: 10.80124
A156: 146 | B156: EASEMYTRIP | C156: 39.67 | D156: 39.87 | E156: 39.19 | F156: 38.70 | G156: 38.02 | H156: 40.36 | I156: 41.04 | J156: 41.53 | K156: 40.56 | L156: 39.39 | M156: 503.68154
A157: 147 | B157: EICHERMOT | C157: 4802.25 | D157: 4809.08 | E157: 4783.27 | F157: 4764.28 | G157: 4738.47 | H157: 4828.07 | I157: 4853.88 | J157: 4872.87 | K157: 4834.9 | L157: 4790.1 | M157: 1.94849
A158: 148 | B158: ELECON | C158: 598.15 | D158: 601.83 | E158: 590.02 | F158: 581.88 | G158: 570.07 | H158: 609.97 | I158: 621.78 | J158: 629.92 | K158: 613.65 | L158: 593.7 | M158: 3.45571
A159: 149 | B159: ELGIEQUIP | C159: 611.65 | D159: 615.02 | E159: 605.08 | F159: 598.52 | G159: 588.58 | H159: 621.58 | I159: 631.52 | J159: 638.08 | K159: 624.95 | L159: 608.45 | M159: 1.10513
A160: 150 | B160: EMAMILTD | C160: 816.9 | D160: 821.40 | E160: 800.80 | F160: 784.70 | G160: 764.10 | H160: 837.50 | I160: 858.10 | J160: 874.20 | K160: 842 | L160: 805.3 | M160: 7.52959
A161: 151 | B161: ENDURANCE | C161: 2554.1 | D161: 2552.48 | E161: 2515.57 | F161: 2477.03 | G161: 2440.12 | H161: 2591.02 | I161: 2627.93 | J161: 2666.47 | K161: 2589.4 | L161: 2513.95 | M161: 0.75535
A162: 152 | B162: ENGINERSIN | C162: 219.45 | D162: 222.58 | E162: 214.87 | F162: 210.28 | G162: 202.57 | H162: 227.17 | I162: 234.88 | J162: 239.47 | K162: 230.3 | L162: 218 | M162: 39.01654
A163: 153 | B163: EQUITASBNK | C163: 75.15 | D163: 76.05 | E163: 74.10 | F163: 73.05 | G163: 71.10 | H163: 77.10 | I163: 79.05 | J163: 80.10 | K163: 78 | L163: 75 | M163: 61.73061
A164: 154 | B164: ERIS | C164: 1200.05 | D164: 1196.87 | E164: 1176.48 | F164: 1152.92 | G164: 1132.53 | H164: 1220.43 | I164: 1240.82 | J164: 1264.38 | K164: 1217.25 | L164: 1173.3 | M164: 10.26892
A165: 155 | B165: ESCORTS | C165: 3704.1 | D165: 3722.08 | E165: 3675.67 | F165: 3647.23 | G165: 3600.82 | H165: 3750.52 | I165: 3796.93 | J165: 3825.37 | K165: 3768.5 | L165: 3693.65 | M165: 1.79475
A166: 156 | B166: EXIDEIND | C166: 492.5 | D166: 496.97 | E166: 486.48 | F166: 480.47 | G166: 469.98 | H166: 502.98 | I166: 513.47 | J166: 519.48 | K166: 507.45 | L166: 490.95 | M166: 37.05316
A167: 157 | B167: FDC | C167: 469.55 | D167: 476.20 | E167: 458.45 | F167: 447.35 | G167: 429.60 | H167: 487.30 | I167: 505.05 | J167: 516.15 | K167: 493.95 | L167: 465.1 | M167: 2.83129
A168: 158 | B168: NYKAA | C168: 187.26 | D168: 187.61 | E168: 182.42 | F168: 177.58 | G168: 172.39 | H168: 192.45 | I168: 197.64 | J168: 202.48 | K168: 192.8 | L168: 182.77 | M168: 85.58006
A169: 159 | B169: FEDERALBNK | C169: 202.2 | D169: 203.45 | E169: 200.32 | F169: 198.43 | G169: 195.30 | H169: 205.34 | I169: 208.47 | J169: 210.36 | K169: 206.59 | L169: 201.57 | M169: 126.10913
A170: 160 | B170: FACT | C170: 960.95 | D170: 961.75 | E170: 919.50 | F170: 878.05 | G170: 835.80 | H170: 1003.20 | I170: 1045.45 | J170: 1086.90 | K170: 1004 | L170: 920.3 | M170: 10.612
A171: 161 | B171: FINEORG | C171: 5271.35 | D171: 5313.95 | E171: 5203.55 | F171: 5135.75 | G171: 5025.35 | H171: 5381.75 | I171: 5492.15 | J171: 5559.95 | K171: 5424.35 | L171: 5246.15 | M171: 0.23514
A172: 162 | B172: FINCABLES | C172: 1437.9 | D172: 1444.35 | E172: 1421.70 | F172: 1405.50 | G172: 1382.85 | H172: 1460.55 | I172: 1483.20 | J172: 1499.40 | K172: 1467 | L172: 1428.15 | M172: 0.8404
A173: 163 | B173: FINPIPE | C173: 283.1 | D173: 285.65 | E173: 279.70 | F173: 276.30 | G173: 270.35 | H173: 289.05 | I173: 295.00 | J173: 298.40 | K173: 291.6 | L173: 282.25 | M173: 3.81037
A174: 164 | B174: FSL | C174: 277 | D174: 281.68 | E174: 270.42 | F174: 263.83 | G174: 252.57 | H174: 288.27 | I174: 299.53 | J174: 306.12 | K174: 292.95 | L174: 275.1 | M174: 35.11245
A175: 165 | B175: FIVESTAR | C175: 696.8 | D175: 695.92 | E175: 689.88 | F175: 682.97 | G175: 676.93 | H175: 702.83 | I175: 708.87 | J175: 715.78 | K175: 701.95 | L175: 689 | M175: 5.24114
A176: 166 | B176: FORTIS | C176: 517.1 | D176: 517.30 | E176: 499.80 | F176: 482.50 | G176: 465.00 | H176: 534.60 | I176: 552.10 | J176: 569.40 | K176: 534.8 | L176: 500 | M176: 50.74475
A177: 167 | B177: GAIL | C177: 227.16 | D177: 229.12 | E177: 224.14 | F177: 221.12 | G177: 216.14 | H177: 232.14 | I177: 237.12 | J177: 240.14 | K177: 234.1 | L177: 226.1 | M177: 125.65171
A178: 168 | B178: GMMPFAUDLR | C178: 1294 | D178: 1303.37 | E178: 1277.73 | F178: 1261.47 | G178: 1235.83 | H178: 1319.63 | I178: 1345.27 | J178: 1361.53 | K178: 1329 | L178: 1287.1 | M178: 1.08375
A179: 169 | B179: GMRINFRA | C179: 94.81 | D179: 95.90 | E179: 93.31 | F179: 91.82 | G179: 89.23 | H179: 97.39 | I179: 99.98 | J179: 101.47 | K179: 98.48 | L179: 94.4 | M179: 141.08542
A180: 170 | B180: GRSE | C180: 1951.3 | D180: 1975.45 | E180: 1916.30 | F180: 1881.30 | G180: 1822.15 | H180: 2010.45 | I180: 2069.60 | J180: 2104.60 | K180: 2034.6 | L180: 1940.45 | M180: 7.99969
A181: 171 | B181: GICRE | C181: 388.35 | D181: 392.17 | E181: 381.83 | F181: 375.32 | G181: 364.98 | H181: 398.68 | I181: 409.02 | J181: 415.53 | K181: 402.5 | L181: 385.65 | M181: 8.29943
A182: 172 | B182: GILLETTE | C182: 7681.3 | D182: 7745.95 | E182: 7592.90 | F182: 7504.50 | G182: 7351.45 | H182: 7834.35 | I182: 7987.40 | J182: 8075.80 | K182: 7899 | L182: 7657.55 | M182: 0.1018
A183: 173 | B183: GLAND | C183: 1969.4 | D183: 2000.63 | E183: 1931.27 | F183: 1893.13 | G183: 1823.77 | H183: 2038.77 | I183: 2108.13 | J183: 2146.27 | K183: 2070 | L183: 1962.5 | M183: 1.95503
A184: 174 | B184: GLAXO | C184: 2826.05 | D184: 2858.23 | E184: 2783.97 | F184: 2741.88 | G184: 2667.62 | H184: 2900.32 | I184: 2974.58 | J184: 3016.67 | K184: 2932.5 | L184: 2816.15 | M184: 0.90516
A185: 175 | B185: GLS | C185: 985.05 | D185: 997.58 | E185: 958.12 | F185: 931.18 | G185: 891.72 | H185: 1024.52 | I185: 1063.98 | J185: 1090.92 | K185: 1037.05 | L185: 970.65 | M185: 4.90138
A186: 176 | B186: GLENMARK | C186: 1478.05 | D186: 1486.52 | E186: 1453.03 | F186: 1428.02 | G186: 1394.53 | H186: 1511.53 | I186: 1545.02 | J186: 1570.03 | K186: 1520 | L186: 1461.5 | M186: 12.4062
A187: 177 | B187: MEDANTA | C187: 1084.95 | D187: 1086.72 | E187: 1063.48 | F187: 1042.02 | G187: 1018.78 | H187: 1108.18 | I187: 1131.42 | J187: 1152.88 | K187: 1109.95 | L187: 1065.25 | M187: 4.44335
A188: 178 | B188: GPIL | C188: 1011.8 | D188: 1027.28 | E188: 994.02 | F188: 976.23 | G188: 942.97 | H188: 1045.07 | I188: 1078.33 | J188: 1096.12 | K188: 1060.55 | L188: 1009.5 | M188: 4.27106
A189: 179 | B189: GODFRYPHLP | C189: 4391.35 | D189: 4424.80 | E189: 4338.80 | F189: 4286.25 | G189: 4200.25 | H189: 4477.35 | I189: 4563.35 | J189: 4615.90 | K189: 4510.8 | L189: 4372.25 | M189: 0.53043
A190: 180 | B190: GODREJCP | C190: 1388.5 | D190: 1390.98 | E190: 1380.02 | F190: 1371.53 | G190: 1360.57 | H190: 1399.47 | I190: 1410.43 | J190: 1418.92 | K190: 1401.95 | L190: 1382.5 | M190: 6.12043
A191: 181 | B191: GODREJIND | C191: 888.65 | D191: 903.48 | E191: 867.17 | F191: 845.68 | G191: 809.37 | H191: 924.97 | I191: 961.28 | J191: 982.77 | K191: 939.8 | L191: 882 | M191: 14.38927
A192: 182 | B192: GODREJPROP | C192: 2900 | D192: 2917.23 | E192: 2874.47 | F192: 2848.93 | G192: 2806.17 | H192: 2942.77 | I192: 2985.53 | J192: 3011.07 | K192: 2960 | L192: 2891.7 | M192: 2.79671
A193: 183 | B193: GRANULES | C193: 676.45 | D193: 679.52 | E193: 669.13 | F193: 661.82 | G193: 651.43 | H193: 686.83 | I193: 697.22 | J193: 704.53 | K193: 689.9 | L193: 672.2 | M193: 12.26435
A194: 184 | B194: GRAPHITE | C194: 530.05 | D194: 528.13 | E194: 499.97 | F194: 469.88 | G194: 441.72 | H194: 558.22 | I194: 586.38 | J194: 616.47 | K194: 556.3 | L194: 498.05 | M194: 16.94327
A195: 185 | B195: GRASIM | C195: 2519.25 | D195: 2536.93 | E195: 2494.47 | F195: 2469.68 | G195: 2427.22 | H195: 2561.72 | I195: 2604.18 | J195: 2628.97 | K195: 2579.4 | L195: 2512.15 | M195: 7.84848
A196: 186 | B196: GESHIP | C196: 1369.6 | D196: 1367.53 | E196: 1333.07 | F196: 1296.53 | G196: 1262.07 | H196: 1404.07 | I196: 1438.53 | J196: 1475.07 | K196: 1402 | L196: 1331 | M196: 14.19271
A197: 187 | B197: GRINDWELL | C197: 2400.65 | D197: 2411.57 | E197: 2379.13 | F197: 2357.62 | G197: 2325.18 | H197: 2433.08 | I197: 2465.52 | J197: 2487.03 | K197: 2444 | L197: 2390.05 | M197: 0.40386
A198: 188 | B198: GAEL | C198: 129.1 | D198: 130.17 | E198: 127.23 | F198: 125.37 | G198: 122.43 | H198: 132.03 | I198: 134.97 | J198: 136.83 | K198: 133.1 | L198: 128.3 | M198: 7.69248
A199: 189 | B199: FLUOROCHEM | C199: 3330.4 | D199: 3365.83 | E199: 3275.67 | F199: 3220.93 | G199: 3130.77 | H199: 3420.57 | I199: 3510.73 | J199: 3565.47 | K199: 3456 | L199: 3311.1 | M199: 2.42051
A200: 190 | B200: GUJGASLTD | C200: 595.75 | D200: 604.78 | E200: 584.62 | F200: 573.48 | G200: 553.32 | H200: 615.92 | I200: 636.08 | J200: 647.22 | K200: 624.95 | L200: 593.65 | M200: 6.60439
A201: 191 | B201: GMDCLTD | C201: 362.35 | D201: 365.95 | E201: 357.95 | F201: 353.55 | G201: 345.55 | H201: 370.35 | I201: 378.35 | J201: 382.75 | K201: 373.95 | L201: 361.55 | M201: 8.21927
A202: 192 | B202: GNFC | C202: 658.1 | D202: 663.37 | E202: 647.78 | F202: 637.47 | G202: 621.88 | H202: 673.68 | I202: 689.27 | J202: 699.58 | K202: 678.95 | L202: 653.05 | M202: 25.12667
A203: 193 | B203: GPPL | C203: 237.93 | D203: 239.87 | E203: 229.05 | F203: 220.17 | G203: 209.35 | H203: 248.75 | I203: 259.57 | J203: 268.45 | K203: 250.69 | L203: 230.99 | M203: 273.95036
A204: 194 | B204: GSFC | C204: 223.4 | D204: 225.08 | E204: 220.37 | F204: 217.34 | G204: 212.63 | H204: 228.11 | I204: 232.82 | J204: 235.85 | K204: 229.79 | L204: 222.05 | M204: 18.13588
A205: 195 | B205: GSPL | C205: 321.1 | D205: 322.18 | E205: 315.87 | F205: 310.63 | G205: 304.32 | H205: 327.42 | I205: 333.73 | J205: 338.97 | K205: 328.5 | L205: 316.95 | M205: 7.73635
A206: 196 | B206: HEG | C206: 2169.75 | D206: 2162.23 | E206: 2126.47 | F206: 2083.18 | G206: 2047.42 | H206: 2205.52 | I206: 2241.28 | J206: 2284.57 | K206: 2198 | L206: 2118.95 | M206: 3.63773
... 320 more rows

Sheet Bulk Deals
E6: Back To Main Page
A7: Subject : | B7: BULK DEAL | D7: =Main!B10 -> 2024-08-14
A9: Date | B9: Scrip code | C9: Scrip Name | D9: Client Name | E9: Buy / Sell | F9: Quantity Traded | G9: Trade Price / Wt.Avg.trade price | H9: Exchange
A10: 2024-08-13 | B10: 539661 | C10: ACEMEN | D10: GUTTIKONDA VARA LAKSHMI | E10: BUY | F10: 21,632 | G10: 63.43 | H10: BSE
A11: 2024-08-13 | B11: 544224 | C11: AFCOM | D11: ROHAN GUPTA | E11: BUY | F11: 168,000 | G11: 237.5 | H11: BSE
A12: 2024-08-13 | B12: 544224 | C12: AFCOM | D12: MULTIPLIER SHARE & STOCK ADVISORS PRIVATE LIMITED | E12: BUY | F12: 26,400 | G12: 215.55 | H12: BSE
A13: 2024-08-13 | B13: 544224 | C13: AFCOM | D13: MULTIPLIER SHARE & STOCK ADVISORS PRIVATE LIMITED | E13: SELL | F13: 540,000 | G13: 237.5 | H13: BSE
A14: 2024-08-13 | B14: 544224 | C14: AFCOM | D14: ISHAAN TRADEFIN LLP | E14: SELL | F14: 264,000 | G14: 237.5 | H14: BSE
A15: 2024-08-13 | B15: 544224 | C15: AFCOM | D15: ISHAAN TRADEFIN LLP | E15: BUY | F15: 62,400 | G15: 235.94 | H15: BSE
A16: 2024-08-13 | B16: 544224 | C16: AFCOM | D16: VICTUS ENTERPRISE LLP | E16: BUY | F16: 151,200 | G16: 237.5 | H16: BSE
A17: 2024-08-13 | B17: 544224 | C17: AFCOM | D17: STOCK VERTEX VENTURES | E17: SELL | F17: 151,200 | G17: 231.4 | H17: BSE
A18: 2024-08-13 | B18: 544224 | C18: AFCOM | D18: MANSI SHARE & STOCK ADVISORS PRIVATE LIMITED | E18: SELL | F18: 300,000 | G18: 236.87 | H18: BSE
A19: 2024-08-13 | B19: 538351 | C19: AFEL | D19: SHAILESH KANJIBHAI DHAMELIYA | E19: SELL | F19: 79,886 | G19: 18.97 | H19: BSE
A20: 2024-08-13 | B20: 531300 | C20: AMITINT | D20: VIKASA GLOBAL FUND PCC - EUBILIA CAPITAL PARTNERS FUND I | E20: BUY | F20: 107,000 | G20: 3.89 | H20: BSE
A21: 2024-08-13 | B21: 531300 | C21: AMITINT | D21: NEXPACT LIMITED | E21: BUY | F21: 440,000 | G21: 3.89 | H21: BSE
A22: 2024-08-13 | B22: 531300 | C22: AMITINT | D22: NIRAV KANUBHAI PANDYA | E22: SELL | F22: 600,000 | G22: 3.93 | H22: BSE
A23: 2024-08-13 | B23: 531300 | C23: AMITINT | D23: KAVITA MAYANK VARIA | E23: SELL | F23: 124,299 | G23: 3.89 | H23: BSE
A24: 2024-08-13 | B24: 542176 | C24: ARYAN | D24: MAHENDRA GIRDHARILAL WADHWANI | E24: BUY | F24: 47,600 | G24: 16.87 | H24: BSE
A25: 2024-08-13 | B25: 542176 | C25: ARYAN | D25: SANTHOSH D SURANA | E25: BUY | F25: 52,775 | G25: 15.23 | H25: BSE
A26: 2024-08-13 | B26: 542176 | C26: ARYAN | D26: JAIN GRANITES AND PROJECTS INDIA LIMITED | E26: SELL | F26: 208,000 | G26: 15.92 | H26: BSE
A27: 2024-08-13 | B27: 539662 | C27: BFLAFL | D27: SOMAAGRAWAL | E27: BUY | F27: 70,000 | G27: 21.49 | H27: BSE
A28: 2024-08-13 | B28: 539662 | C28: BFLAFL | D28: PANKAJBAFNA | E28: SELL | F28: 100,000 | G28: 23.22 | H28: BSE
A29: 2024-08-13 | B29: 539662 | C29: BFLAFL | D29: ARADHANA PANDEY | E29: BUY | F29: 300,000 | G29: 22.89 | H29: BSE
A30: 2024-08-13 | B30: 531099 | C30: CHECKPOINT | D30: DIVYA GUPTA | E30: SELL | F30: 33,744 | G30: 7.72 | H30: BSE
A31: 2024-08-13 | B31: 540023 | C31: COLORCHIPS | D31: R S SUDHISH | E31: BUY | F31: 1,968,101 | G31: 14.9 | H31: BSE
A32: 2024-08-13 | B32: 540023 | C32: COLORCHIPS | D32: SUSIRA HOLDINGS PRIVATE LIMITED | E32: BUY | F32: 400,000 | G32: 16.05 | H32: BSE
A33: 2024-08-13 | B33: 540023 | C33: COLORCHIPS | D33: RAVIKAANTH PORTFOLIO SERVICES PRIVATE LIMITED | E33: SELL | F33: 2,420,471 | G33: 15.1 | H33: BSE
A34: 2024-08-13 | B34: 534691 | C34: COMCL | D34: PANKAJBAFNA | E34: SELL | F34: 100,000 | G34: 34.7 | H34: BSE
A35: 2024-08-13 | B35: 531216 | C35: COMFINTE | D35: LUHARUKA EXPORTS PVT LTD | E35: SELL | F35: 2,754,239 | G35: 14.47 | H35: BSE
A36: 2024-08-13 | B36: 544220 | C36: CTLLAB | D36: MULTIPLIER SHARE & STOCK ADVISORS PRIVATE LIMITED | E36: SELL | F36: 14,400 | G36: 93.07 | H36: BSE
A37: 2024-08-13 | B37: 531035 | C37: ERAAYA | D37: VISHAL JAI KUMAR GARG | E37: SELL | F37: 100,000 | G37: 800.26 | H37: BSE
A38: 2024-08-13 | B38: 531035 | C38: ERAAYA | D38: SNEHA GARG | E38: SELL | F38: 105,000 | G38: 800 | H38: BSE
A39: 2024-08-13 | B39: 531035 | C39: ERAAYA | D39: VIKASA GLOBAL FUND PCC - EUBILIA CAPITAL PARTNERS FUND I | E39: BUY | F39: 175,000 | G39: 800 | H39: BSE
A40: 2024-08-13 | B40: 538708 | C40: ETIL | D40: SUMANCHEPURI | E40: BUY | F40: 1 | G40: 9.89 | H40: BSE
A41: 2024-08-13 | B41: 538708 | C41: ETIL | D41: SUMANCHEPURI | E41: SELL | F41: 103,845 | G41: 10.03 | H41: BSE
A42: 2024-08-13 | B42: 544199 | C42: GEMENVIRO | D42: ISHAAN TRADEFIN LLP | E42: SELL | F42: 124,800 | G42: 224.41 | H42: BSE
A43: 2024-08-13 | B43: 544199 | C43: GEMENVIRO | D43: ISHAAN TRADEFIN LLP | E43: BUY | F43: 81,600 | G43: 219.14 | H43: BSE
A44: 2024-08-13 | B44: 531913 | C44: GOPAIST | D44: JIGAR MUKESHBHAI SHAH | E44: BUY | F44: 25,000 | G44: 8.64 | H44: BSE
A45: 2024-08-13 | B45: 530663 | C45: GOYALASS | D45: PRATHIPA PAIDI | E45: SELL | F45: 235,000 | G45: 1.86 | H45: BSE
A46: 2024-08-13 | B46: 513337 | C46: GUJTLRM | D46: MULTIPLIER SHARE & STOCK ADVISORS PRIVATE LIMITED | E46: SELL | F46: 695,264 | G46: 11.3 | H46: BSE
A47: 2024-08-13 | B47: 537709 | C47: HANSUGAR | D47: MULTIPLIER SHARE & STOCK ADVISORS PRIVATE LIMITED | E47: SELL | F47: 108,519 | G47: 7.87 | H47: BSE
A48: 2024-08-13 | B48: 539449 | C48: IGCIL | D48: KOOLAMADATHIL ABDULNAZAR | E48: SELL | F48: 25,000 | G48: 32.61 | H48: BSE
A49: 2024-08-13 | B49: 530201 | C49: KALLAM | D49: ASHWINI NIRAJ SINGH | E49: BUY | F49: 270,000 | G49: 7.77 | H49: BSE
A50: 2024-08-13 | B50: 530201 | C50: KALLAM | D50: ASHWINI NIRAJ SINGH | E50: SELL | F50: 270,000 | G50: 9.7 | H50: BSE
A51: 2024-08-13 | B51: 530201 | C51: KALLAM | D51: JYOTHI KAILASH KABRA | E51: BUY | F51: 300,000 | G51: 9.62 | H51: BSE
A52: 2024-08-13 | B52: 530201 | C52: KALLAM | D52: JYOTHI KAILASH KABRA | E52: SELL | F52: 300,000 | G52: 8.72 | H52: BSE
A53: 2024-08-13 | B53: 535730 | C53: KHOOBSURAT | D53: RAMESHHARAN | E53: SELL | F53: 2,500,000 | G53: 1.21 | H53: BSE
A54: 2024-08-13 | B54: 544221 | C54: KIZI | D54: BEELINE BROKING LIMITED | E54: SELL | F54: 42,000 | G54: 23.64 | H54: BSE
A55: 2024-08-13 | B55: 540730 | C55: MEHAI | D55: F3 ADVISORS PRIVATE LIMITED | E55: SELL | F55: 114,154 | G55: 47.6 | H55: BSE
A56: 2024-08-13 | B56: 540730 | C56: MEHAI | D56: GREEN PEAKS ENTERPRISES LLP | E56: SELL | F56: 127,216 | G56: 47.79 | H56: BSE
A57: 2024-08-13 | B57: 538895 | C57: MIHIKA | D57: BLISSFULBOUNTY AGRI PRIVATE LIMITED | E57: SELL | F57: 63,756 | G57: 21.54 | H57: BSE
A58: 2024-08-13 | B58: 535910 | C58: MMLF | D58: SAJJAN KUMAR PATWARI | E58: SELL | F58: 61,039 | G58: 181.27 | H58: BSE
A59: 2024-08-13 | B59: 531395 | C59: PADAMCO | D59: REKHA GUPTA . | E59: SELL | F59: 25,000 | G59: 59 | H59: BSE
A60: 2024-08-13 | B60: 531395 | C60: PADAMCO | D60: RANJAN NAVIN GALA | E60: BUY | F60: 29,202 | G60: 58.96 | H60: BSE
A61: 2024-08-13 | B61: 531255 | C61: PARAGONF | D61: KIT COMMERCIAL PRIVATE LIMITED | E61: SELL | F61: 50,000 | G61: 91 | H61: BSE
A62: 2024-08-13 | B62: 531255 | C62: PARAGONF | D62: NAMAN BARTER PRIVATE LIMITED | E62: SELL | F62: 50,000 | G62: 91 | H62: BSE
A63: 2024-08-13 | B63: 531255 | C63: PARAGONF | D63: KOTVAK LOGISTICS LLP | E63: SELL | F63: 3,022 | G63: 91.5 | H63: BSE
A64: 2024-08-13 | B64: 531255 | C64: PARAGONF | D64: KOTVAK LOGISTICS LLP | E64: BUY | F64: 45,000 | G64: 91 | H64: BSE
A65: 2024-08-13 | B65: 531255 | C65: PARAGONF | D65: MANI SOFTWARE TECHNOLOGIES PVT LTD | E65: BUY | F65: 40,000 | G65: 91 | H65: BSE
A66: 2024-08-13 | B66: 536659 | C66: PVVINFRA | D66: SABRIYA FISHERIES LLP | E66: SELL | F66: 184,286 | G66: 16.14 | H66: BSE
A67: 2024-08-13 | B67: 536659 | C67: PVVINFRA | D67: GKML SOFTWARE TECHNOLOGIES PRIVATE LIMITED | E67: SELL | F67: 372,757 | G67: 16.15 | H67: BSE
A68: 2024-08-13 | B68: 536659 | C68: PVVINFRA | D68: APPLE EQUIFIN PVT LTD | E68: SELL | F68: 347,169 | G68: 16.15 | H68: BSE
A69: 2024-08-13 | B69: 536659 | C69: PVVINFRA | D69: MONIKA SEKHRI | E69: BUY | F69: 221,280 | G69: 16.18 | H69: BSE
A70: 2024-08-13 | B70: 539760 | C70: RELICAB | D70: SK GROWTH FUND PRIVATE LIMITED | E70: SELL | F70: 125,000 | G70: 138.21 | H70: BSE
A71: 2024-08-13 | B71: 539760 | C71: RELICAB | D71: EMRALD COMMERCIAL LIMITED | E71: SELL | F71: 75,000 | G71: 138.79 | H71: BSE
A72: 2024-08-13 | B72: 539760 | C72: RELICAB | D72: SANJAY KUMAR PATWARI | E72: BUY | F72: 160,321 | G72: 137 | H72: BSE
A73: 2024-08-13 | B73: 539760 | C73: RELICAB | D73: S K PATWARI HUF | E73: BUY | F73: 150,000 | G73: 138 | H73: BSE
A74: 2024-08-13 | B74: 539760 | C74: RELICAB | D74: SANJAY POPATLAL JAIN | E74: SELL | F74: 187,649 | G74: 138.01 | H74: BSE
A75: 2024-08-13 | B75: 539760 | C75: RELICAB | D75: MANSI SHARE & STOCK ADVISORS PRIVATE LIMITED | E75: SELL | F75: 102,301 | G75: 137.17 | H75: BSE
A76: 2024-08-13 | B76: 539760 | C76: RELICAB | D76: MANSI SHARE & STOCK ADVISORS PRIVATE LIMITED | E76: BUY | F76: 147,925 | G76: 138.1 | H76: BSE
A77: 2024-08-13 | B77: 543256 | C77: RFLL | D77: JOSEPH VINCENT CARDOZ | E77: BUY | F77: 76,950 | G77: 19.46 | H77: BSE
A78: 2024-08-13 | B78: 543256 | C78: RFLL | D78: KIRAN MITTAL | E78: SELL | F78: 126,599 | G78: 19.42 | H78: BSE
A79: 2024-08-13 | B79: 539574 | C79: SCL | D79: SHUBHAM ASHOKBHAI PATEL | E79: SELL | F79: 5,676,501 | G79: 2.75 | H79: BSE
A80: 2024-08-13 | B80: 539574 | C80: SCL | D80: SHUBHAM ASHOKBHAI PATEL | E80: BUY | F80: 4,790,848 | G80: 2.57 | H80: BSE
A81: 2024-08-13 | B81: 531944 | C81: SERVOTEACH | D81: SHAKUNTLA GUPTA | E81: BUY | F81: 30,000 | G81: 25.97 | H81: BSE
A82: 2024-08-13 | B82: 531944 | C82: SERVOTEACH | D82: VIVEK KANDA | E82: SELL | F82: 57,125 | G82: 25.95 | H82: BSE
A83: 2024-08-13 | B83: 543391 | C83: SGFRL | D83: NOPEA CAPITAL SERVICES PRIVATE LIMITED | E83: SELL | F83: 306,000 | G83: 148.97 | H83: BSE
A84: 2024-08-13 | B84: 540259 | C84: SHANGAR | D84: NOBLE POLYMERS LIMITED NOBLE | E84: SELL | F84: 98,208 | G84: 8.73 | H84: BSE
A85: 2024-08-13 | B85: 540259 | C85: SHANGAR | D85: NISHIL SHAH | E85: BUY | F85: 77,260 | G85: 8.71 | H85: BSE
A86: 2024-08-13 | B86: 534708 | C86: SHANTIGURU | D86: MONA LAROIA | E86: BUY | F86: 402,000 | G86: 31.57 | H86: BSE
A87: 2024-08-13 | B87: 534708 | C87: SHANTIGURU | D87: ANITA BAGMAR | E87: SELL | F87: 177,000 | G87: 31.85 | H87: BSE
A88: 2024-08-13 | B88: 540072 | C88: SHIVAEXPO | D88: ABHINAV UPADHYAY | E88: SELL | F88: 140,000 | G88: 14 | H88: BSE
A89: 2024-08-13 | B89: 540072 | C89: SHIVAEXPO | D89: IRA CHATTERJI | E89: BUY | F89: 80,000 | G89: 14 | H89: BSE
A90: 2024-08-13 | B90: 544171 | C90: STAL | D90: SB OPPORTUNITIES FUND I | E90: SELL | F90: 65,600 | G90: 184.11 | H90: BSE
A91: 2024-08-13 | B91: 540492 | C91: STARLENT | D91: SETU SECURITIES PVT. LTD. | E91: BUY | F91: 312,907 | G91: 132.04 | H91: BSE
A92: 2024-08-13 | B92: 540492 | C92: STARLENT | D92: SETU SECURITIES PVT. LTD. | E92: SELL | F92: 235,533 | G92: 131.5 | H92: BSE
A93: 2024-08-13 | B93: 540492 | C93: STARLENT | D93: VIKRAMBHAI GOKALBHAI CHAUDHARI | E93: SELL | F93: 541,340 | G93: 146.3 | H93: BSE
A94: 2024-08-13 | B94: 540492 | C94: STARLENT | D94: DHRUV GANJI | E94: SELL | F94: 809,647 | G94: 140.89 | H94: BSE
A95: 2024-08-13 | B95: 540492 | C95: STARLENT | D95: VIKRAMBHAI GOKALBHAI CHAUDHARI | E95: BUY | F95: 541,340 | G95: 140.47 | H95: BSE
A96: 2024-08-13 | B96: 540492 | C96: STARLENT | D96: DHRUV GANJI | E96: BUY | F96: 945,420 | G96: 139.87 | H96: BSE
A97: 2024-08-13 | B97: 543274 | C97: SUUMAYA | D97: DHARMENDRA B PATEL | E97: SELL | F97: 126,000 | G97: 3.91 | H97: BSE
A98: 2024-08-13 | B98: 538496 | C98: TARINI | D98: MULTIPLIER SHARE & STOCK ADVISORS PRIVATE LIMITED | E98: BUY | F98: 156,000 | G98: 33.84 | H98: BSE
A99: 2024-08-13 | B99: 538496 | C99: TARINI | D99: SHARIQAHMEDKHAN | E99: SELL | F99: 99,000 | G99: 33.84 | H99: BSE
A100: 2024-08-13 | B100: 543754 | C100: TRANSVOY | D100: SAMEER GUPTA | E100: SELL | F100: 14,400 | G100: 184 | H100: BSE
A101: 2024-08-13 | B101: 539040 | C101: TTIL | D101: ROHITKUMAR MAFATLAL PATEL | E101: BUY | F101: 170,000 | G101: 29.47 | H101: BSE
A102: 2024-08-13 | B102: 539040 | C102: TTIL | D102: VISHNUBHAI CHHAGANLAL PATEL | E102: BUY | F102: 170,000 | G102: 29.47 | H102: BSE
A103: 2024-08-13 | B103: 544227 | C103: UNIECOM | D103: IRAGE BROKING SERVICES LLP | E103: BUY | F103: 725,694 | G103: 228.26 | H103: BSE
A104: 2024-08-13 | B104: 544227 | C104: UNIECOM | D104: IRAGE BROKING SERVICES LLP | E104: SELL | F104: 442,705 | G104: 235.39 | H104: BSE
A105: 2024-08-13 | B105: 539291 | C105: VASUDHAGAM | D105: JIGAR MUKESHBHAI SHAH | E105: BUY | F105: 121,700 | G105: 21.01 | H105: BSE
A106: 2024-08-13 | B106: 538732 | C106: VGCL | D106: SIDDHARTHA BHAIYA | E106: SELL | F106: 133,969 | G106: 78.84 | H106: BSE
A107: 2024-08-13 | B107: 530057 | C107: VIVANZA | D107: TANYA ESTATES PRIVATE LIMITED . | E107: SELL | F107: 206,927 | G107: 4.27 | H107: BSE
A108: 2024-08-13 | B108: 544219 | C108: VVIPIL | D108: YUGA STOCKS AND COMMODITIES PRIVATE LIMITED . | E108: BUY | F108: 132,000 | G108: 293.62 | H108: BSE
A109: 2024-08-13 | B109: 544219 | C109: VVIPIL | D109: YUGA STOCKS AND COMMODITIES PRIVATE LIMITED . | E109: SELL | F109: 183,600 | G109: 280.73 | H109: BSE
A110: 2024-08-13 | B110: AARTIIND | C110: Aarti Industries Ltd. | D110: GRAVITON RESEARCH CAPITAL LLP | E110: BUY | F110: 1,938,900 | G110: 632.95 | H110: NSE
A111: 2024-08-13 | B111: AMJUMBO | C111: A and M Jumbo Bags Ltd | D111: MANDALIYA UDAY KANAIYALAL | E111: BUY | F111: 664,000 | G111: 20.9 | H111: NSE
A112: 2024-08-13 | B112: ANNAPURNA | C112: Annapurna Swadisht Ltd | D112: KANODIA STOCK BROKING PVT.LTD. | E112: BUY | F112: 125,000 | G112: 390.85 | H112: NSE
A113: 2024-08-13 | B113: BALRAMCHIN | C113: Balrampur Chini Mills | D113: GRAVITON RESEARCH CAPITAL LLP | E113: BUY | F113: 1,188,914 | G113: 513 | H113: NSE
A114: 2024-08-13 | B114: COFFEEDAY | C114: Coffee Day Enterprise Ltd | D114: GRAVITON RESEARCH CAPITAL LLP | E114: BUY | F114: 1,370,426 | G114: 35.69 | H114: NSE
A115: 2024-08-13 | B115: ESSENTIA | C115: Integra Essentia Limited | D115: EPITOME TRADING AND INVESTMENTS | E115: BUY | F115: 7,744,741 | G115: 4.83 | H115: NSE
A116: 2024-08-13 | B116: FIRSTCRY | C116: Brainbees Solutions Ltd | D116: NOMURA INDIA INVESTMENT FUND MOTHER FUND A/C (NOMURA) (MF INDIA) | E116: BUY | F116: 4,847,432 | G116: 681.03 | H116: NSE
A117: 2024-08-13 | B117: FIRSTCRY | C117: Brainbees Solutions Ltd | D117: TNTBC AS THE TRUSTEE OF NOMURA INDIA STOCK MOTHER FUND (NOMURA) NISMF | E117: BUY | F117: 3,225,660 | G117: 681.03 | H117: NSE
A118: 2024-08-13 | B118: FOCUS | C118: Focus Lightg | D118: LOHIA SECURITIES LTD. | E118: BUY | F118: 386,423 | G118: 88.93 | H118: NSE
A119: 2024-08-13 | B119: GOLDIAM | C119: Goldiam International Lim | D119: HRTI PRIVATE LIMITED | E119: BUY | F119: 538,990 | G119: 225.87 | H119: NSE
A120: 2024-08-13 | B120: GOLDIAM | C120: Goldiam International Lim | D120: QE SECURITIES LLP | E120: BUY | F120: 578,627 | G120: 225.02 | H120: NSE
A121: 2024-08-13 | B121: GPPL | C121: Gujarat Pipavav Port Ltd | D121: GRAVITON RESEARCH CAPITAL LLP | E121: BUY | F121: 2,505,092 | G121: 244.57 | H121: NSE
A122: 2024-08-13 | B122: HERANBA | C122: Heranba Industries Ltd | D122: GRAVITON RESEARCH CAPITAL LLP | E122: BUY | F122: 277,159 | G122: 465.49 | H122: NSE
A123: 2024-08-13 | B123: HINDOILEXP | C123: Hind. Oil Exploration | D123: GRAVITON RESEARCH CAPITAL LLP | E123: BUY | F123: 852,474 | G123: 256.83 | H123: NSE
A124: 2024-08-13 | B124: INOXWIND | C124: Inox Wind Limited | D124: GRAVITON RESEARCH CAPITAL LLP | E124: BUY | F124: 7,339,530 | G124: 225.61 | H124: NSE
A125: 2024-08-13 | B125: KHAICHEM | C125: Khaitan Chem & Fert Ltd | D125: GRAVITON RESEARCH CAPITAL LLP | E125: BUY | F125: 865,288 | G125: 89.79 | H125: NSE
A126: 2024-08-13 | B126: KHAICHEM | C126: Khaitan Chem & Fert Ltd | D126: QE SECURITIES LLP | E126: BUY | F126: 458,096 | G126: 89.89 | H126: NSE
A127: 2024-08-13 | B127: KHAICHEM | C127: Khaitan Chem & Fert Ltd | D127: HRTI PRIVATE LIMITED | E127: BUY | F127: 574,809 | G127: 89.13 | H127: NSE
A128: 2024-08-13 | B128: KHAICHEM | C128: Khaitan Chem & Fert Ltd | D128: AAKRAYA RESEARCH LLP | E128: BUY | F128: 579,330 | G128: 90.39 | H128: NSE
A129: 2024-08-13 | B129: KOPRAN | C129: Kopran Ltd. | D129: GRAVITON RESEARCH CAPITAL LLP | E129: BUY | F129: 274,909 | G129: 280.64 | H129: NSE
A130: 2024-08-13 | B130: KSHITIJPOL | C130: Kshitij Polyline Limited | D130: RAMESH LAL | E130: BUY | F130: 500,000 | G130: 6.89 | H130: NSE
A131: 2024-08-13 | B131: KTL | C131: Kalahridhaan Trendz Ltd | D131: LIESHA CORPORATION PRIVATE LIMITED . | E131: BUY | F131: 213,000 | G131: 62.6 | H131: NSE
A132: 2024-08-13 | B132: KTL | C132: Kalahridhaan Trendz Ltd | D132: PURE BROKING PVT LTD | E132: BUY | F132: 114,000 | G132: 62.6 | H132: NSE
A133: 2024-08-13 | B133: KTL | C133: Kalahridhaan Trendz Ltd | D133: VIKRAMBHAI GOKALBHAI CHAUDHARI | E133: BUY | F133: 543,000 | G133: 62.4 | H133: NSE
A134: 2024-08-13 | B134: LOTUSEYE | C134: Lotus Eye Hosp & Inst Ltd | D134: . VRAMATH FINANCIAL SERVICES PVT LTD | E134: BUY | F134: 201,590 | G134: 74.11 | H134: NSE
A135: 2024-08-13 | B135: LOTUSEYE | C135: Lotus Eye Hosp & Inst Ltd | D135: NK SECURITIES RESEARCH PRIVATE LIMITED | E135: BUY | F135: 126,566 | G135: 76.46 | H135: NSE
A136: 2024-08-13 | B136: MACOBSTECH | C136: Macobs Technologies Ltd | D136: NISHANT KUMAR GHOSH | E136: BUY | F136: 70,400 | G136: 106.39 | H136: NSE
A137: 2024-08-13 | B137: MADHAV | C137: Madhav Marbles and Granit | D137: MITTAL RIMPY | E137: BUY | F137: 86,172 | G137: 53.84 | H137: NSE
A138: 2024-08-13 | B138: MHHL | C138: Mohini Health&Hygiene Ltd | D138: ARIHANT FUTURE & COMMODITIES LTD | E138: BUY | F138: 357,000 | G138: 57.18 | H138: NSE
A139: 2024-08-13 | B139: OLECTRA | C139: Olectra Greentech Limited | D139: GRAVITON RESEARCH CAPITAL LLP | E139: BUY | F139: 595,361 | G139: 1695.96 | H139: NSE
A140: 2024-08-13 | B140: ONEPOINT | C140: One Point One Sol Ltd | D140: SRESTHA FINVEST LIMITED | E140: BUY | F140: 348,405 | G140: 67.57 | H140: NSE
A141: 2024-08-13 | B141: PLATIND | C141: Platinum Industries Ltd | D141: HRTI PRIVATE LIMITED | E141: BUY | F141: 323,732 | G141: 365.52 | H141: NSE
A142: 2024-08-13 | B142: PLATIND | C142: Platinum Industries Ltd | D142: GRAVITON RESEARCH CAPITAL LLP | E142: BUY | F142: 345,642 | G142: 366.94 | H142: NSE
A143: 2024-08-13 | B143: RTNINDIA | C143: RattanIndia Ent Limited | D143: HRTI PRIVATE LIMITED | E143: BUY | F143: 8,902,799 | G143: 86.79 | H143: NSE
A144: 2024-08-13 | B144: RTNINDIA | C144: RattanIndia Ent Limited | D144: GRAVITON RESEARCH CAPITAL LLP | E144: BUY | F144: 10,388,303 | G144: 86.97 | H144: NSE
A145: 2024-08-13 | B145: SABAR | C145: Sabar Flex India Limited | D145: HI GROWTH CORPORATE SERVICES PVT LTD | E145: BUY | F145: 45,000 | G145: 22.84 | H145: NSE
A146: 2024-08-13 | B146: SAKUMA | C146: Sakuma Exports Limited | D146: HRTI PRIVATE LIMITED | E146: BUY | F146: 1,585,621 | G146: 9.84 | H146: NSE
A147: 2024-08-13 | B147: SALZERELEC | C147: Salzer Electronics Ltd. | D147: GRAVITON RESEARCH CAPITAL LLP | E147: BUY | F147: 148,584 | G147: 1009.44 | H147: NSE
A148: 2024-08-13 | B148: SHAH | C148: Shah Metacorp Limited | D148: MULTIPLIER SHARE & STOCK ADVISORS PRIVATE LIMITED | E148: BUY | F148: 2,306,309 | G148: 5.41 | H148: NSE
A149: 2024-08-13 | B149: SPRL | C149: SP Refractories Limited | D149: SPEXTRA MULTIBIZ PRIVATE LIMITED | E149: BUY | F149: 23,200 | G149: 256.14 | H149: NSE
A150: 2024-08-13 | B150: SRPL | C150: Shree Ram Proteins Ltd. | D150: HARBIR SINGH CHADHA | E150: BUY | F150: 1,889,100 | G150: 1.11 | H150: NSE
A151: 2024-08-13 | B151: STOVEKRAFT | C151: Stove Kraft Limited | D151: GRAVITON RESEARCH CAPITAL LLP | E151: BUY | F151: 256,964 | G151: 722.01 | H151: NSE
A152: 2024-08-13 | B152: SUNDRMFAST | C152: Sundram Fasteners Ltd | D152: SBI MUTUAL FUND | E152: BUY | F152: 1,300,304 | G152: 1318 | H152: NSE
A153: 2024-08-13 | B153: TBZ | C153: Trib Bhimji Zaveri Ltd | D153: HRTI PRIVATE LIMITED | E153: BUY | F153: 236,095 | G153: 169.12 | H153: NSE
A154: 2024-08-13 | B154: TEMBO | C154: Tembo Global Ind Ltd | D154: NK SECURITIES RESEARCH PRIVATE LIMITED | E154: BUY | F154: 73,405 | G154: 245.34 | H154: NSE
A155: 2024-08-13 | B155: TROM | C155: Trom Industries Limited | D155: MANSI SHARE AND STOCK ADVISORS PVT LTD | E155: BUY | F155: 30,000 | G155: 255.25 | H155: NSE
A156: 2024-08-13 | B156: TRUST | C156: Trust Fintech Limited | D156: VINOD KUMAR | E156: BUY | F156: 124,800 | G156: 200.24 | H156: NSE
A157: 2024-08-13 | B157: UMA | C157: Uma Converter Limited | D157: MITTAL RIMPY | E157: BUY | F157: 140,000 | G157: 38.08 | H157: NSE
A158: 2024-08-13 | B158: UNIECOM | C158: Unicommerce Esolutions L | D158: NK SECURITIES RESEARCH PRIVATE LIMITED | E158: BUY | F158: 1,797,416 | G158: 229.16 | H158: NSE
A159: 2024-08-13 | B159: UNIECOM | C159: Unicommerce Esolutions L | D159: TOPGAIN FINANCE PRIVATE LIMITED | E159: BUY | F159: 625,000 | G159: 234.32 | H159: NSE
A160: 2024-08-13 | B160: UNIECOM | C160: Unicommerce Esolutions L | D160: EPITOME TRADING AND INVESTMENTS | E160: BUY | F160: 754,250 | G160: 234.96 | H160: NSE
A161: 2024-08-13 | B161: UNIECOM | C161: Unicommerce Esolutions L | D161: AAKRAYA RESEARCH LLP | E161: BUY | F161: 800,969 | G161: 228.31 | H161: NSE
A162: 2024-08-13 | B162: UNIECOM | C162: Unicommerce Esolutions L | D162: GOLDMINE STOCKS PRIVATE LIMITED | E162: BUY | F162: 583,799 | G162: 226.28 | H162: NSE
A163: 2024-08-13 | B163: UNIECOM | C163: Unicommerce Esolutions L | D163: IRAGE BROKING SERVICES LLP | E163: BUY | F163: 642,919 | G163: 233.86 | H163: NSE
A164: 2024-08-13 | B164: UNIECOM | C164: Unicommerce Esolutions L | D164: GRT STRATEGIC VENTURES LLP | E164: BUY | F164: 790,175 | G164: 226.52 | H164: NSE
A165: 2024-08-13 | B165: URBAN | C165: Urban Enviro Waste Mgmt L | D165: MANSI SHARE AND STOCK ADVISORS PVT LTD | E165: BUY | F165: 34,000 | G165: 523.8 | H165: NSE
A166: 2024-08-13 | B166: URBAN | C166: Urban Enviro Waste Mgmt L | D166: GLOBALWORTH SECURITIES LIMITED | E166: BUY | F166: 24,000 | G166: 523.69 | H166: NSE
A167: 2024-08-13 | B167: URBAN | C167: Urban Enviro Waste Mgmt L | D167: SAROJDEVI S KABRA | E167: BUY | F167: 48,400 | G167: 521.08 | H167: NSE
A168: 2024-08-13 | B168: UTSSAV | C168: Utssav CZ Gold Jewels Ltd | D168: CHOICE EQUITY BROKING PRIVATE LIMITED | E168: BUY | F168: 1,200 | G168: 137.35 | H168: NSE
A169: 2024-08-13 | B169: UTSSAV | C169: Utssav CZ Gold Jewels Ltd | D169: MULTIPLIER SHARE & STOCK ADVISORS PRIVATE LIMITED | E169: BUY | F169: 31,200 | G169: 140.35 | H169: NSE
A170: 2024-08-13 | B170: UTSSAV | C170: Utssav CZ Gold Jewels Ltd | D170: MOUNTAIN VENTURES | E170: BUY | F170: 142,800 | G170: 140.35 | H170: NSE
A171: 2024-08-13 | B171: VIJIFIN | C171: Viji Finance Limited | D171: PREBIEN HANOEMAN | E171: BUY | F171: 818,159 | G171: 2.07 | H171: NSE
A172: 2024-08-13 | B172: VLEGOV | C172: VL E Gov and IT Sol Ltd | D172: KABEELON SALES CORP | E172: BUY | F172: 827,308 | G172: 107.28 | H172: NSE
A173: 2024-08-13 | B173: AARTIIND | C173: Aarti Industries Ltd. | D173: GRAVITON RESEARCH CAPITAL LLP | E173: SELL | F173: 1,938,900 | G173: 633.15 | H173: NSE
A174: 2024-08-13 | B174: AMJUMBO | C174: A and M Jumbo Bags Ltd | D174: HANSABEN BHARATKUMAR PATEL | E174: SELL | F174: 248,000 | G174: 20.97 | H174: NSE
A175: 2024-08-13 | B175: AMJUMBO | C175: A and M Jumbo Bags Ltd | D175: PURAV BHARATBHAI PATEL | E175: SELL | F175: 408,000 | G175: 20.94 | H175: NSE
A176: 2024-08-13 | B176: AMJUMBO | C176: A and M Jumbo Bags Ltd | D176: SEJAL PURAVKUMAR PATEL | E176: SELL | F176: 56,000 | G176: 20.9 | H176: NSE
A177: 2024-08-13 | B177: ANNAPURNA | C177: Annapurna Swadisht Ltd | D177: KANODIA STOCK BROKING PVT.LTD. | E177: SELL | F177: 125,000 | G177: 390.05 | H177: NSE
A178: 2024-08-13 | B178: BALRAMCHIN | C178: Balrampur Chini Mills | D178: GRAVITON RESEARCH CAPITAL LLP | E178: SELL | F178: 1,222,514 | G178: 512.78 | H178: NSE
A179: 2024-08-13 | B179: COFFEEDAY | C179: Coffee Day Enterprise Ltd | D179: GRAVITON RESEARCH CAPITAL LLP | E179: SELL | F179: 1,370,426 | G179: 35.66 | H179: NSE
A180: 2024-08-13 | B180: DIAMONDYD | C180: Prataap Snacks Limited | D180: RAJESH KUMAR MEHTA | E180: SELL | F180: 339,000 | G180: 793.53 | H180: NSE
A181: 2024-08-13 | B181: ESSENTIA | C181: Integra Essentia Limited | D181: EPITOME TRADING AND INVESTMENTS | E181: SELL | F181: 6,744,741 | G181: 4.82 | H181: NSE
A182: 2024-08-13 | B182: FOCUS | C182: Focus Lightg | D182: LOHIA SECURITIES LTD. | E182: SELL | F182: 386,294 | G182: 89.77 | H182: NSE
A183: 2024-08-13 | B183: GOLDIAM | C183: Goldiam International Lim | D183: HRTI PRIVATE LIMITED | E183: SELL | F183: 495,783 | G183: 224.27 | H183: NSE
A184: 2024-08-13 | B184: GOLDIAM | C184: Goldiam International Lim | D184: QE SECURITIES LLP | E184: SELL | F184: 612,885 | G184: 225.98 | H184: NSE
A185: 2024-08-13 | B185: GPPL | C185: Gujarat Pipavav Port Ltd | D185: GRAVITON RESEARCH CAPITAL LLP | E185: SELL | F185: 2,505,092 | G185: 244.63 | H185: NSE
A186: 2024-08-13 | B186: HERANBA | C186: Heranba Industries Ltd | D186: GRAVITON RESEARCH CAPITAL LLP | E186: SELL | F186: 275,784 | G186: 466.38 | H186: NSE
A187: 2024-08-13 | B187: HINDOILEXP | C187: Hind. Oil Exploration | D187: GRAVITON RESEARCH CAPITAL LLP | E187: SELL | F187: 852,474 | G187: 256.88 | H187: NSE
A188: 2024-08-13 | B188: INOXWIND | C188: Inox Wind Limited | D188: GRAVITON RESEARCH CAPITAL LLP | E188: SELL | F188: 7,339,530 | G188: 225.76 | H188: NSE
A189: 2024-08-13 | B189: ISHAN | C189: Ishan International Ltd | D189: MAHADEV MANUBHAI MAKVANA | E189: SELL | F189: 2,160,000 | G189: 2.3 | H189: NSE
A190: 2024-08-13 | B190: KANDARP | C190: Kandarp Dg Smart Bpo Ltd | D190: RAJESH SUBHASH JANGAM | E190: SELL | F190: 104,000 | G190: 39.36 | H190: NSE
A191: 2024-08-13 | B191: KHAICHEM | C191: Khaitan Chem & Fert Ltd | D191: GRAVITON RESEARCH CAPITAL LLP | E191: SELL | F191: 865,288 | G191: 89.89 | H191: NSE
A192: 2024-08-13 | B192: KHAICHEM | C192: Khaitan Chem & Fert Ltd | D192: AAKRAYA RESEARCH LLP | E192: SELL | F192: 579,330 | G192: 90.46 | H192: NSE
A193: 2024-08-13 | B193: KHAICHEM | C193: Khaitan Chem & Fert Ltd | D193: HRTI PRIVATE LIMITED | E193: SELL | F193: 567,056 | G193: 88.99 | H193: NSE
A194: 2024-08-13 | B194: KHAICHEM | C194: Khaitan Chem & Fert Ltd | D194: QE SECURITIES LLP | E194: SELL | F194: 507,245 | G194: 89.92 | H194: NSE
A195: 2024-08-13 | B195: KOPRAN | C195: Kopran Ltd. | D195: GRAVITON RESEARCH CAPITAL LLP | E195: SELL | F195: 274,909 | G195: 280.88 | H195: NSE
A196: 2024-08-13 | B196: KSHITIJPOL | C196: Kshitij Polyline Limited | D196: RAMESH LAL | E196: SELL | F196: 100 | G196: 6.93 | H196: NSE
A197: 2024-08-13 | B197: KSHITIJPOL | C197: Kshitij Polyline Limited | D197: SUNRISE GILTS & SECURITIES PVT LTD | E197: SELL | F197: 462,568 | G197: 6.9 | H197: NSE
A198: 2024-08-13 | B198: KTL | C198: Kalahridhaan Trendz Ltd | D198: PURE BROKING PVT LTD | E198: SELL | F198: 105,000 | G198: 62.45 | H198: NSE
A199: 2024-08-13 | B199: KTL | C199: Kalahridhaan Trendz Ltd | D199: LIESHA CORPORATION PRIVATE LIMITED . | E199: SELL | F199: 201,000 | G199: 62.55 | H199: NSE
A200: 2024-08-13 | B200: KTL | C200: Kalahridhaan Trendz Ltd | D200: VIKRAMBHAI GOKALBHAI CHAUDHARI | E200: SELL | F200: 564,000 | G200: 62.6 | H200: NSE
A201: 2024-08-13 | B201: LOTUSEYE | C201: Lotus Eye Hosp & Inst Ltd | D201: NK SECURITIES RESEARCH PRIVATE LIMITED | E201: SELL | F201: 126,566 | G201: 76.57 | H201: NSE
A202: 2024-08-13 | B202: LOTUSEYE | C202: Lotus Eye Hosp & Inst Ltd | D202: . VRAMATH FINANCIAL SERVICES PVT LTD | E202: SELL | F202: 201,590 | G202: 77.11 | H202: NSE
A203: 2024-08-13 | B203: MACOBSTECH | C203: Macobs Technologies Ltd | D203: MONIKA GARG | E203: SELL | F203: 65,600 | G203: 106.31 | H203: NSE
A204: 2024-08-13 | B204: MADHAV | C204: Madhav Marbles and Granit | D204: MITTAL RIMPY | E204: SELL | F204: 73,555 | G204: 53.45 | H204: NSE
A205: 2024-08-13 | B205: MAHICKRA | C205: Mahickra Chemical Limited | D205: GANDHI ASHISHKUMAR CHAMPAKLAL | E205: SELL | F205: 49,500 | G205: 100.4 | H205: NSE
A206: 2024-08-13 | B206: MHHL | C206: Mohini Health&Hygiene Ltd | D206: ARPIT JAIN HUF | E206: SELL | F206: 357,000 | G206: 57.18 | H206: NSE
... 32 more rows

Sheet Call Tracker (Equity & F&O)
M5: Back To Main Page
A6: Retail Research Technical Calls & Fundamental Performance Report for the month of July-2024
M7: =Main!B10 -> 2024-08-14
B8: Positional Call
A9: Sr.no | B9: Date | D9: Company | E9: Rec | F9: Rec Price | G9: Stop Loss*** | H9: Call Closed At | I9: Target | J9: Remark | K9: Profit / Loss per Share | L9: All charges | M9: Net Gain / Loss % | N9: Status | O9: Closed Date | P9: Market Closing Price | Q9: Second Buying Date
A10: 1 | B10: 2024-06-25 | D10: HAPPSTMNDS | E10: Accu | F10: 830 | G10: 795 | H10: 780 | I10: 900-950 | J10: Loss of Rs.50/- | K10: =H10-F10 -> -50 | L10: =(F10*-0.3)/100 -> -2.49 | M10: =(K10+L10)/F10 -> -6.32% | N10: Unsuccessful | O10: 2024-08-05 | R10: H
A11: 2 | B11: 2024-06-27 | D11: BAJAJ-AUTO | E11: Accu | F11: 9325 | G11: 8900 | H11: 9825 | I11: 10000-10400 | J11: Profit of Rs.500/- | K11: =H11-F11 -> 500 | L11: =(F11*-0.3)/100 -> -27.98 | M11: =(K11+L11)/F11 -> 5.06% | N11: Successful | O11: 2024-08-01 | R11: H
A12: 3 | B12: 2024-07-01 | D12: RELIANCE | E12: Accu | F12: 3075 | G12: 2940 | H12: 2900 | I12: 3300-3500 | J12: Loss of Rs.175/- | K12: -175 | L12: -9.23 | M12: -5.99% | N12: Unsuccessful | O12: 2024-08-05 | R12: H
A13: 4 | B13: 2024-07-19 | D13: BAJAJFINSV | E13: Accu | F13: 1617 | G13: 1560 | H13: 1555 | I13: 1720-1800 | J13: Loss of Rs.62/- | K13: =H13-F13 -> -62 | L13: =(F13*-0.3)/100 -> -4.85 | M13: =(K13+L13)/F13 -> -4.13% | N13: Unsuccessful | O13: 2024-08-08 | R13: H
A14: 5 | B14: 2024-07-25 | D14: NESTLEIND | E14: Accu | F14: 2390-2470 | G14: 2330 | I14: 2650-2800 | J14: Open | P14: =VLOOKUP(D14,'MidCap Intra'!$B$11:$C$571,2,0) -> 2484.70 | R14: H
A15: 6 | B15: 2024-07-26 | D15: LTF | E15: Accu | F15: 173.5 | G15: 164 | H15: 163.5 | I15: 195-205 | J15: Loss of Rs.10/- | K15: =H15-F15 -> -10 | L15: =(F15*-0.3)/100 -> -0.52 | M15: =(K15+L15)/F15 -> -6.06% | N15: Unsuccessful | O15: 2024-08-13 | R15: H
A16: 7 | B16: 2024-07-26 | D16: RKFORGE | E16: Accu | F16: 840 | G16: 790 | H16: 882 | I16: 900-950 | J16: Profit of Rs.42/- | K16: =H16-F16 -> 42 | L16: =(F16*-0.3)/100 -> -2.52 | M16: =(K16+L16)/F16 -> 4.70% | N16: Successful | O16: 2024-08-02 | R16: H
A17: 8 | B17: 2024-07-29 | D17: CARBORUNIV | E17: Accu | F17: 1710 | G17: 1645 | H17: 1605 | I17: 1840-1940 | J17: Loss of Rs.105/- | K17: -105 | L17: -5.13 | M17: -6.44% | N17: Unsuccessful | O17: 2024-08-05 | R17: H
A18: 9 | B18: 2024-07-30 | D18: LTTS | E18: Accu | F18: 5040-5170 | G18: 4800 | I18: 5540-5900 | J18: Open | P18: =VLOOKUP(D18,'MidCap Intra'!$B$11:$C$571,2,0) -> 4823.45 | R18: K
A19: 10 | B19: 2024-07-30 | D19: VBL | E19: Accu | F19: 1565 | G19: 1495 | H19: 1490 | I19: 1700-1800 | J19: Loss of Rs.75/- | K19: =H19-F19 -> -75 | L19: =(F19*-0.3)/100 -> -4.70 | M19: =(K19+L19)/F19 -> -5.09% | N19: Unsuccessful | O19: 2024-08-06 | R19: H
A20: 11 | B20: 2024-07-30 | D20: IOC | E20: Accu | F20: 177.5 | G20: 167 | H20: 167 | I20: 195-210 | J20: Loss of Rs.10.5/- | K20: =H20-F20 -> -10.5 | L20: =(F20*-0.3)/100 -> -0.53 | M20: =(K20+L20)/F20 -> -6.22% | N20: Unsuccessful | O20: 2024-08-06 | R20: H
A21: 12 | B21: 2024-08-01 | D21: TRENT | E21: Accu | F21: 5700 | G21: 5400 | H21: 5375 | I21: 6200-6500 | J21: Loss of Rs.325/- | K21: =H21-F21 -> -325 | L21: =(F21*-0.3)/100 -> -17.10 | M21: =(K21+L21)/F21 -> -6.00% | N21: Unsuccessful | O21: 2024-08-05
A22: 13 | B22: 2024-08-06 | D22: TATAMOTORS | E22: Accu | F22: 1029 | G22: 948 | H22: 1078 | I22: 1120-1200 | J22: Profit of Rs.49/- | K22: 49 | L22: -3.09 | M22: 4.46% | N22: Successful | O22: 2024-08-12
A23: 14 | B23: 2024-08-06 | D23: LT | E23: Accu | F23: 3495-3595 | G23: 3440 | I23: 3750-3900 | J23: Open | P23: =VLOOKUP(D23,'MidCap Intra'!$B$11:$C$571,2,0) -> 3551.80
A24: 15 | B24: 2024-08-06 | D24: NIACL | E24: Accu | F24: 259 | G24: 246 | H24: 271.5 | I24: 284-300 | J24: Profit of Rs.12.5/- | K24: =H24-F24 -> 12.5 | L24: =(F24*-0.3)/100 -> -0.78 | M24: =(K24+L24)/F24 -> 4.53% | N24: Successful | O24: 2024-08-08
A25: 16 | B25: 2024-08-06 | D25: BEL | E25: Accu | F25: 280-292 | G25: 268 | I25: 320-340 | J25: Open | P25: =VLOOKUP(D25,'MidCap Intra'!$B$11:$C$571,2,0) -> 296.15
A26: 17 | B26: 2024-08-08 | D26: BHARTIARTL | E26: Accu | F26: 1426-1456 | G26: 1390 | I26: 1530-1600 | J26: Open | P26: =VLOOKUP(D26,'MidCap Intra'!$B$11:$C$571,2,0) -> 1459.70
A27: 18 | B27: 2024-08-08 | D27: ASHOKLEY | E27: Accu | F27: 241.5-247.5 | G27: 232 | I27: 262-277 | J27: Open | P27: =VLOOKUP(D27,'MidCap Intra'!$B$11:$C$571,2,0) -> 251.70
A28: 19 | B28: 2024-08-08 | D28: POONAWALLA | E28: Accu | F28: 358-368 | G28: 345 | I28: 400-430 | J28: Open | P28: =VLOOKUP(D28,'MidCap Intra'!$B$11:$C$571,2,0) -> 356.15
A29: 20 | B29: 2024-08-09 | D29: ASTRAL | E29: Accu | F29: 2010 | G29: 1930 | H29: 1915 | I29: 2200-2350 | J29: Loss of Rs.95/- | K29: =H29-F29 -> -95 | L29: =(F29*-0.3)/100 -> -6.03 | M29: =(K29+L29)/F29 -> -5.03% | N29: Unsuccessful | O29: 2024-08-13
A30: 21 | B30: 2024-08-12 | D30: HINDUNILVR | E30: Accu | F30: 2650-2730 | G30: 2540 | I30: 3000-3290 | J30: Open | P30: =VLOOKUP(D30,'MidCap Intra'!$B$11:$C$571,2,0) -> 2741.40
A31: 22 | B31: 2024-08-12 | D31: SIEMENS | E31: Accu | F31: 6710-6890 | G31: 6490 | I31: 7350-7750 | J31: Open | P31: =VLOOKUP(D31,'MidCap Intra'!$B$11:$C$571,2,0) -> 6969.10
A36: CLBS = Closing Basis ***
A37: Dividend adjusted <> | F37: Reinitiated $
A38: Part book {} | D38: s | F38: Revised stoploss #
A42: Master Trade High Risk
A43: Sr.no | B43: Date | D43: Company | E43: Rec | F43: Rec Price | G43: Stop Loss | H43: Call Closed At | I43: Target | J43: Remark | K43: Profit / Loss per share | L43: All charges | M43: Gain / Loss per Lot | N43: Lot | O43: Status | P43: Closed Date
A48: Master Trade Medium Risk
A49: Sr.no | B49: Date | D49: Company | E49: Rec | F49: Rec Price | G49: Stop Loss | H49: Call Closed At | I49: Target | J49: Remark | K49: Profit/ Loss per lot | L49: All charges | M49: Gain / Loss per Lot | N49: Lot | O49: Status | P49: Closed Date
A50: 1 | B50: 2024-08-09 | D50: BANKNIFTY 50800 CE 14 AUG | E50: Accu | F50: 285 | G50: 180 | H50: 202.5 | I50: 280-290 | J50: Loss of Rs.82.5/- | K50: =H50-F50 -> -82.5 | L50: 50.00 | M50: =(K50*N50)-L50 -> -1287.5 | N50: 15 | O50: Unsuccessful | P50: 2024-08-09
A51: 2 | B51: 2024-08-13 | D51: BANKNIFTY 50200 PE 14 AUG | E51: Accu | F51: 175 | G51: 100 | H51: 265 | I51: 280 | J51: Profit of Rs.90/- | K51: =H51-F51 -> 90 | L51: 50.00 | M51: =(K51*N51)-L51 -> 1300.0 | N51: 15 | O51: Successful | P51: 2024-08-13
A53: Techno -Funda (positional)
A54: Sr.no | B54: Date | D54: Company | E54: Rec | F54: Rec Price | G54: Stop Loss*** | H54: Call Closed At | I54: Target | J54: Remark | K54: Profit / Loss per Share/Lot | L54: All charges | M54: Net Gain / Loss % | N54: Status | O54: Closed Date | P54: Market Closing Price | Q54: Second Buying Date
A55: 1 | B55: 2024-03-05 | D55: TRIDENT | E55: Accu <> | F55: 38.94 | G55: 34.64 | I55: 47.64-51.64 | J55: Open | P55: =VLOOKUP(D55,'MidCap Intra'!$B$11:$C$571,2,0) -> 37.09 | R55: H
A56: 2 | B56: 2024-07-25 | D56: SCHAEFFLER | E56: Accu | F56: 3825-4025 | G56: 3600 | I56: 4500-5000 | J56: Open | P56: =VLOOKUP(D56,'MidCap Intra'!$B$11:$C$571,2,0) -> 4013.70 | R56: H
A57: 3 | B57: 2024-08-13 | D57: THERMAX | E57: Accu | F57: 4195-4325 | G57: 3970 | I57: 4800-5000 | J57: Open | P57: =VLOOKUP(D57,'MidCap Intra'!$B$11:$C$571,2,0) -> 4314.00
A60: CLBS = Closing Basis *** | F60: Reinitiated $
A61: Dividend adjusted <> | F61: Revised stoploss # | H61: .................
B70: Investment Idea
A71: Sr.no | B71: Date | D71: Company | E71: Rec | F71: Rec Price | G71: Point of Review | H71: Close Rate | I71: Target | J71: Remark | K71: Profit / Loss per Share | L71: Gain / Loss % | M71: Status | N71: Closed Date
A72: 1 | B72: 2013-11-01 | D72: L&T Finance Holding | E72: Accu | F72: 82.00 | G72: - | H72: 100 | I72: 100.00 | J72: Target Achieved | K72: =H72-F72 -> 18.00 | L72: =K72/F72 -> 21.95% | M72: Successful | N72: 2016-10-14
A73: 2 | B73: 2014-06-04 | D73: Finolex Inds | E73: Buy | F73: 257.00 | G73: - | H73: 300 | I73: 300.00 | J73: Target Achieved | K73: 43.00 | L73: 16.73% | M73: Successful | N73: 2014-07-02
A74: 3 | B74: 2014-07-08 | D74: JK Cement | E74: Buy | F74: 393.00 | G74: - | H74: 468 | I74: 468.00 | J74: Target Achieved | K74: 75.00 | L74: 19.08% | M74: Successful | N74: 2014-08-12
A75: 4 | B75: 2014-08-06 | D75: Finolex Cables | E75: Buy | F75: 205.00 | G75: - | H75: 275 | I75: 250.00 | J75: Target Achieved | K75: 70.00 | L75: 34.15% | M75: Successful | N75: 2014-11-19
A76: 5 | B76: 2014-09-04 | D76: Exide Inds | E76: Buy | F76: 162.00 | G76: - | H76: 190 | I76: 190.00 | J76: Target Achieved | K76: 28.00 | L76: 17.28% | M76: Successful | N76: 2015-01-02
A77: 6 | B77: 2014-09-04 | D77: Deepak Nitrite | E77: Buy | F77: 75.00 | G77: - | H77: 91.5 | I77: 95-100 | J77: Profit of Rs.16.50/- | K77: 16.50 | L77: 22.00% | M77: Successful | N77: 2014-11-11
A78: 7 | B78: 2014-10-01 | D78: Mercks | E78: Buy | F78: 850.00 | G78: - | H78: 982.5 | I78: 1050.00 | J78: Profit of Rs.132.50/- | K78: 132.50 | L78: 15.59% | M78: Successful | N78: 2015-02-04
A79: 8 | B79: 2014-10-01 | D79: Grindwell Norton | E79: Buy | F79: 475.00 | G79: - | H79: 515 | I79: 600.00 | J79: Profit of Rs.40/- | K79: 40.00 | L79: 8.42% | M79: Successful | N79: 2014-10-27
A80: 9 | B80: 2014-10-01 | D80: Snowman Logistics | E80: Buy | F80: 86.00 | G80: - | H80: 99 | I80: 140.00 | J80: Profit of Rs.13.00/- | K80: 13.00 | L80: 15.12% | M80: Successful | N80: 2014-10-27
A81: 10 | B81: 2014-10-14 | D81: Birla Corp | E81: Buy | F81: 496.60 | G81: - | H81: 621 | I81: 580.00 | J81: Target Achieved | K81: 124.40 | L81: 25.05% | M81: Successful | N81: 2016-08-23
A82: 11 | B82: 2014-10-14 | D82: Ultratech Cem | E82: Buy | F82: 2481.90 | G82: - | H82: 2840 | I82: 2870.00 | J82: Profit of Rs.358.10/- | K82: 358.10 | L82: 14.43% | M82: Successful | N82: 2015-01-13
A83: 12 | B83: 2014-10-16 | D83: Sintex Inds | E83: Buy | F83: 84.50 | G83: - | H83: 93 | I83: 110.00 | J83: Profit of Rs.8.50/- | K83: 8.50 | L83: 10.06% | M83: Successful | N83: 2014-10-27
A84: 13 | B84: 2014-10-16 | D84: HSIL | E84: Buy | F84: 401.00 | G84: - | H84: 428 | I84: 450.00 | J84: Profit of Rs.27.00/- | K84: 27.00 | L84: 6.73% | M84: Successful | N84: 2015-01-16
A85: 14 | B85: 2014-10-16 | D85: Eveready Inds | E85: Buy | F85: 101.00 | G85: - | H85: 112 | I85: 120.00 | J85: Profit of Rs.11.00/- | K85: 11.00 | L85: 10.89% | M85: Successful | N85: 2014-10-27
A86: 15 | B86: 2014-11-11 | D86: Pennar Inds | E86: Buy | F86: 59.00 | G86: - | H86: 76 | I86: 76.00 | J86: Target Achieved | K86: 17.00 | L86: 28.81% | M86: Successful | N86: 2017-10-24
A87: 16 | B87: 2014-11-11 | D87: Snowman Logistics | E87: Buy | F87: 99.00 | G87: - | H87: 120 | I87: 120.00 | J87: Profit of Rs.21/- | K87: 21.00 | L87: 21.21% | M87: Successful | N87: 2014-11-17
A88: 17 | B88: 2014-11-13 | D88: Dharamsi Morarji Chem | E88: Buy | F88: 22.00 | G88: - | H88: 33.55 | I88: 32.00 | J88: Profit of Rs 11.55/- | K88: 11.55 | L88: 52.50% | M88: Successful | N88: 2015-07-03
A89: 18 | B89: 2014-12-03 | D89: Tatachem | E89: Buy | F89: 440.00 | G89: - | H89: 520 | I89: 520.00 | J89: Profit of Rs 80.00/- | K89: 80.00 | L89: 18.18% | M89: Successful | N89: 2015-07-23
A90: 19 | B90: 2014-12-03 | D90: Advanta | E90: Buy | F90: 360.00 | G90: - | H90: 427 | I90: 425.00 | J90: Profit of Rs.67.00/- | K90: 67.00 | L90: 18.61% | M90: Successful | N90: 2015-02-23
A91: 20 | B91: 2015-01-08 | D91: GDL | E91: Buy | F91: 360.00 | G91: - | H91: 455 | I91: 420.00 | J91: Profit of Rs.95.00/- | K91: 95.00 | L91: 26.39% | M91: Successful | N91: 2015-01-20
A92: 21 | B92: 2015-01-08 | D92: NRB Bearing | E92: Buy | F92: 130.00 | H92: 175.5 | I92: 165.00 | J92: Profit of Rs 45.50/- | K92: 45.50 | L92: 35.00% | M92: Successful | N92: 2017-12-19
A93: 22 | B93: 2015-02-05 | D93: GSFC | E93: Accu | F93: 98.00 | H93: 120 | I93: 120.00 | J93: Target Achieved | K93: 22.00 | L93: 22.45% | M93: Successful | N93: 2017-01-18
A94: 23 | B94: 2015-02-05 | D94: Sundrmfast | E94: Accu | F94: 196.00 | H94: 262 | I94: 255.00 | J94: Target Achieved | K94: 66.00 | L94: 33.67% | M94: Successful | N94: 2016-08-17
A95: 24 | B95: 2015-03-04 | D95: GPPL | E95: Accu | F95: 235 | H95: 77.00 | I95: 280-285 | J95: Loss of Rs.158/- | K95: -158.00 | L95: -67.23% | M95: Unsuccessful | N95: 2019-02-26
A96: 25 | B96: 2015-03-04 | D96: ORIENTCEM | E96: Accu | F96: 185.00 | H96: 224 | I96: 220-225 | J96: Target Achieved | K96: 39.00 | L96: 21.08% | M96: Successful | N96: 2016-10-04
A97: 26 | B97: 2015-03-27 | D97: PFS | E97: Accu | F97: 49.5 | H97: 15.85 | I97: 67.00 | J97: Loss of Rs.33.65/- | K97: -33.65 | L97: -68% | M97: Unsuccessful | N97: 2019-06-11
A98: 27 | B98: 2015-03-30 | D98: Walchandnagar Ind Ltd | E98: Accu | F98: 183.50 | H98: 219 | I98: 218.00 | J98: Profit of Rs.35.50/- | K98: 35.50 | L98: 19.35% | M98: Successful | N98: 2015-04-09
A99: 28 | B99: 2015-04-20 | D99: Kalpataru Power Transmission Ltd | E99: Accu | F99: =(227+237)/2 -> 232.00 | H99: 298 | I99: 298.00 | J99: Target Achieved | K99: 66.00 | L99: 28.45% | M99: Successful | N99: 2017-03-29
A100: 29 | B100: 2015-05-04 | D100: Mastek Ltd | E100: Buy | F100: 385.00 | H100: =212.5+331 -> 543.5 | I100: 510.00 | J100: Profit of Rs 158.50/- | K100: 158.50 | L100: 41.17% | M100: Successful | N100: 2015-08-19
A101: 30 | B101: 2015-05-04 | D101: Suprajit Eng | E101: Buy | F101: 115.50 | H101: 146 | I101: 142.00 | J101: Profit of Rs 30.50/- | K101: 30.50 | L101: 26.41% | M101: Successful | N101: 2015-07-17
A102: 31 | B102: 2015-05-27 | D102: TCI | E102: Buy | F102: 237.50 | H102: 279.5 | I102: 278.00 | J102: Target Achieved | K102: 42.00 | L102: 17.68% | M102: Successful | N102: 2015-08-06
A103: 32 | B103: 2015-06-19 | D103: HSIL | E103: Accu | F103: 340.00 | H103: 448 | I103: 448.00 | J103: Target Achieved | K103: 108.00 | L103: 31.76% | M103: Successful | N103: 2017-10-10
A104: 33 | B104: 2015-07-06 | D104: Capital First | E104: Accu | F104: 390.00 | H104: 460 | I104: 460.00 | J104: Target Achieved | K104: =H104-F104 -> 70.00 | L104: =K104/F104 -> 17.95% | M104: Successful | N104: 2016-04-18
A105: 34 | B105: 2015-07-10 | D105: Dolphin OffShore | E105: Accu | F105: 122.5 | H105: 61.00 | I105: 172.00 | J105: Loss of Rs.61.50/- | K105: -61.50 | L105: -50.20% | M105: Unsuccessful | N105: 2018-08-21
A106: 35 | B106: 2015-08-03 | D106: Allcargo logistics | E106: Accu | F106: 297.50 | H106: 350 | I106: 360.00 | J106: Profit of Rs 52.50/- | K106: 52.50 | L106: 17.65% | M106: Successful | N106: 2015-08-16
A107: 36 | B107: 2015-08-03 | D107: Camline Fine | E107: Accu | F107: 115.50 | H107: 149 | I107: 140.00 | J107: Profit of Rs 33.50/- | K107: 33.50 | L107: 29.00% | M107: Successful | N107: 2017-01-05
A108: 37 | B108: 2015-09-04 | D108: TCI | E108: Accu | F108: 226.00 | H108: 292 | I108: 292.00 | J108: Target Achieved | K108: 66.00 | L108: 29.20% | M108: Successful | N108: 2015-10-09
A109: 38 | B109: 2015-09-07 | D109: Kalpataru Power Transmission Ltd | E109: Accu | F109: 232.50 | H109: 312.5 | I109: 310.00 | J109: Target Achieved | K109: 80.00 | L109: 34.41% | M109: Successful | N109: 2017-03-29
A110: 39 | B110: 2015-09-21 | D110: LLOYD ELECTRIC & ENG LTD | E110: Accu | F110: 196.50 | H110: 238 | I110: 238.00 | J110: Target Achieved | K110: 41.50 | L110: 21.12% | M110: Successful | N110: 2015-10-14
A111: 40 | B111: 2015-09-24 | D111: L&T Finance Holding | E111: Accu | F111: 65.00 | H111: 82 | I111: 82.00 | J111: Target Achieved | K111: 17.00 | L111: 26.15% | M111: Successful | N111: 2016-07-27
A112: 41 | B112: 2015-10-14 | D112: KEC International ltd | E112: Accu | F112: 144.00 | H112: 182.5 | I112: 181.00 | J112: Target Achieved | K112: 38.50 | L112: 26.74% | M112: Successful | N112: 2017-03-23
A113: 42 | B113: 2015-10-14 | D113: Gruh Finance | E113: Accu | F113: 264.00 | H113: 311 | I113: 311.00 | J113: Target Achieved | K113: 47.00 | L113: 17.80% | M113: Successful | N113: 2016-08-22
A114: 43 | B114: 2015-11-10 | D114: Pidilitind | E114: Buy | F114: 549.50 | H114: 630 | I114: 630.00 | J114: Target Achieved | K114: 80.50 | L114: 14.65% | M114: Successful | N114: 2016-02-19
A115: 44 | B115: 2015-12-04 | D115: Zensar Technology | E115: Accu | F115: 1027.50 | H115: 1315 | I115: 1250.00 | J115: Target Achieved | K115: 287.50 | L115: 27.98% | M115: Successful | N115: 2018-05-24
A116: 45 | B116: 2015-12-29 | D116: Vinati Organics Ltd | E116: Accu | F116: 465.00 | H116: 540 | I116: 540.00 | J116: Target Achieved | K116: 75.00 | L116: 16.13% | M116: Successful | N116: 2016-06-09
A117: 46 | B117: 2016-01-11 | D117: GSFC | E117: Buy | F117: 81.00 | H117: 110 | I117: 110.00 | J117: Target Achieved | K117: 29.00 | L117: 35.80% | M117: Successful | N117: 2017-01-10
A118: 47 | B118: 2016-01-13 | D118: SSWL | E118: Buy | F118: 417.50 | H118: 547 | I118: 535.00 | J118: Target Achieved | K118: 129.50 | L118: 31.02% | M118: Successful | N118: 2016-07-27
A119: 48 | B119: 2016-02-08 | D119: Persistent System Ltd | E119: Accu | F119: 650.00 | H119: 800 | I119: 800.00 | J119: Target Achieved | K119: 150.00 | L119: 23.08% | M119: Successful | N119: 2018-02-23
A120: 49 | B120: 2016-03-04 | D120: UPL | E120: Accu | F120: 437.50 | H120: 504.5 | I120: 522.00 | J120: Profit of Rs.67/- | K120: 67.00 | L120: 15.31% | M120: Successful | N120: 2016-04-20
A121: 50 | B121: 2016-03-09 | D121: Ashoka Buildcon Ltd | E121: Accu | F121: 189.50 | H121: 218 | I121: 218.00 | J121: Target Achieved | K121: 28.50 | L121: 15.04% | M121: Successful | N121: 2017-10-26
A122: 51 | B122: 2016-04-11 | D122: PTC INDIA FIN SERV LTD | E122: Accu | F122: 36.5 | H122: 15.85 | I122: 60.00 | J122: Loss of Rs.20.65/- | K122: -20.65 | L122: -56.58% | M122: Unsuccessful | N122: 2019-06-11
A123: 52 | B123: 2016-04-12 | D123: CAMLINFINE $ | E123: Accu | F123: 93.00 | H123: 149 | I123: 140.00 | J123: Profit of Rs 56/- | K123: 56.00 | L123: 60.22% | M123: Successful | N123: 2017-01-05
A124: 53 | B124: 2016-04-12 | D124: Greaves Cotton Ltd. | E124: Accu | F124: 130.00 | H124: 150 | I124: 150-155 | J124: Target Achieved | K124: 20.00 | L124: 15.38% | M124: Successful | N124: 2016-07-13
A125: 54 | B125: 2016-04-13 | D125: DHFL | E125: Accu | F125: 196.00 | H125: 299 | I125: 299.00 | J125: Target Achieved | K125: 103.00 | L125: 52.55% | M125: Successful | N125: 2016-09-07
A126: 55 | B126: 2016-04-13 | D126: Magma | E126: Accu | F126: 88.00 | H126: 103 | I126: 103.00 | J126: Target Achieved | K126: 15.00 | L126: 17.05% | M126: Successful | N126: 2016-06-09
A127: 56 | B127: 2016-05-02 | D127: KEC International ltd $ | E127: Accu | F127: 127.50 | H127: 148 | I127: 148-150 | J127: Target Achieved | K127: =H127-F127 -> 20.50 | L127: =K127/F127 -> 16.08% | M127: Successful | N127: 2016-07-13
A128: 57 | B128: 2016-05-03 | D128: Mindtree | E128: Accu | F128: 675.00 | H128: 815 | I128: 790-800 | J128: Target Achieved | K128: =H128-F128 -> 140.00 | L128: =K128/F128 -> 20.74% | M128: Successful | N128: 2018-02-23
A129: 58 | B129: 2016-06-01 | D129: Atulauto | E129: Accu | F129: 500 | H129: 232.50 | I129: 565-570 | J129: Loss of Rs.267.50 /- | K129: =H129-F129 -> -267.50 | L129: =K129/F129 -> -53.50% | M129: Unsuccessful | N129: 2019-09-27
A130: 59 | B130: 2016-06-06 | D130: TRITURBINE | E130: Accu | F130: 110.00 | H130: 126.5 | I130: 125.00 | J130: Profit of Rs.16.50/- | K130: =H130-F130 -> 16.50 | L130: =K130/F130 -> 15.00% | M130: Successful | N130: 2016-07-01
A131: 60 | B131: 2016-06-17 | D131: Pennar Industries Ltd | E131: Accu | F131: 44.00 | H131: 69.5 | I131: 69.50 | J131: Profit of Rs.25.50/- | K131: =H131-F131 -> 25.50 | L131: =K131/F131 -> 57.95% | M131: Successful | N131: 2017-08-30
A132: 61 | B132: 2016-06-28 | D132: EVEREADY | E132: Accu | F132: 262.50 | H132: 340 | I132: 333.00 | J132: Profit of Rs.77.50/- | K132: 77.50 | L132: 29.52% | M132: Successful | N132: 2017-10-09
A133: 62 | B133: 2016-06-28 | D133: FIEMIND | E133: Accu | F133: 840.00 | H133: 1230 | I133: 1230.00 | J133: Target Achieved | K133: 390.00 | L133: 46.43% | M133: Successful | N133: 2016-10-06
A134: 63 | B134: 2016-07-05 | D134: Bajaj Corp Ltd | E134: Accu | F134: 395 | H134: =(468.5+342.5)/2 -> 405.50 | I134: 510.00 | J134: Profit of Rs.10.50/- | K134: =H134-F134 -> 10.50 | L134: =K134/F134 -> 3% | M134: Neutral | N134: 2019-05-21
A135: 64 | B135: 2016-08-02 | D135: GPPL $ | E135: Buy | F135: =169.5-12.8 -> 156.7 | H135: 77.00 | I135: 198-200 | J135: Loss of Rs.79.7/- | K135: -79.70 | L135: -50.86% | M135: Unsuccessful | N135: 2019-02-26
A136: 65 | B136: 2016-08-04 | D136: WONDERLA HOLIDAYS LTD | E136: Accu | F136: 400 | H136: 305.00 | I136: 475.00 | J136: Loss of Rs.95/- | K136: -95.00 | L136: -23.75% | M136: Unsuccessful | N136: 2019-05-21
A137: 66 | B137: 2016-08-11 | D137: CAMLINFINE | E137: Accu | F137: 86.50 | H137: 130 | I137: 130.00 | J137: Profit of Rs.43.50/- | K137: 43.50 | L137: 50.29% | M137: Successful | N137: 2017-12-22
A138: 67 | B138: 2016-08-18 | D138: GRANULES | E138: Accu | F138: 133.5 | H138: 126.50 | I138: 178.00 | J138: Exit | K138: -7.00 | L138: -5.24% | M138: Unsuccessful | N138: 2016-09-02
A139: 68 | B139: 2016-08-31 | D139: VA TECH WABAG | E139: Accu | F139: 560.00 | H139: 725 | I139: 725.00 | J139: Target Achieved | K139: 165.00 | L139: 29.46% | M139: Successful | N139: 2016-03-27
A140: 69 | B140: 2016-09-01 | D140: SKIPPER LIMITED | E140: Accu | F140: 160.50 | H140: 210 | I140: 210.00 | J140: Target Achieved | K140: 49.50 | L140: 30.84% | M140: Successful | N140: 2017-05-16
A141: 70 | B141: 2016-10-03 | D141: IFBIND | E141: Accu | F141: 430.00 | H141: 596 | I141: 575.00 | J141: Profit of Rs.166/- | K141: 166.00 | L141: 38.60% | M141: Successful | N141: 2017-02-03
A142: 71 | B142: 2016-10-14 | D142: ASIANTILES | E142: Accu | F142: 280.00 | H142: 345 | I142: 345.00 | J142: Target Achieved | K142: =H142-F142 -> 65.00 | L142: =K142/F142 -> 23.21% | M142: Successful | N142: 2017-03-20
A143: 72 | B143: 2016-10-14 | D143: DEEPIND | E143: Accu | F143: 245.00 | H143: 325.5 | I143: 330.00 | J143: Profit of Rs.80.5/- | K143: 80.50 | L143: =K143/F143 -> 32.86% | M143: Successful | N143: 2017-02-03
A144: 73 | B144: 2016-10-17 | D144: DCBBANK | E144: Accu | F144: 125.00 | H144: 160 | I144: 160.00 | J144: Target Achieved | K144: 35.00 | L144: 28.00% | M144: Successful | N144: 2017-03-09
A145: 74 | B145: 2016-10-17 | D145: ORIENTREF | E145: Accu | F145: 114.00 | H145: 145 | I145: 145.00 | J145: Target Achieved | K145: 31.00 | L145: =K145/F145 -> 27.19% | M145: Successful | N145: 2017-05-04
A146: 75 | B146: 2016-10-17 | D146: GANECOS | E146: Accu | F146: 212.00 | H146: 280 | I146: 276.00 | J146: Profit of Rs.68/- | K146: 68.00 | L146: =K146/F146 -> 32.08% | M146: Successful | N146: 2017-05-03
A147: 76 | B147: 2016-11-04 | D147: NBCC | E147: Accu | F147: 155.00 | H147: 210 | I147: 210.00 | J147: Profit of Rs.55/- | K147: 55.00 | L147: =K147/F147 -> 35.48% | M147: Successful | N147: 2017-07-28
A148: 77 | B148: 2016-12-06 | D148: PRECAM | E148: Accu | F148: 150.5 | H148: 72.50 | I148: 174.00 | J148: Loss of Rs.78/- | K148: -78.00 | L148: -51.83% | M148: Unsuccessful | N148: 2018-08-21
A149: 78 | B149: 2016-12-08 | D149: INFRATEL | E149: Accu | F149: 380.00 | H149: 478 | I149: 468.00 | J149: Target Achieved | K149: =H149-F149 -> 98.00 | L149: =K149/F149 -> 25.79% | M149: Successful | N149: 2017-10-17
A150: 79 | B150: 2016-12-30 | D150: GODREJPROP | E150: Accu | F150: 305.00 | H150: 375 | I150: 375.00 | J150: Target Achieved | K150: =H150-F150 -> 70.00 | L150: =K150/F150 -> 22.95% | M150: Successful | N150: 2017-02-02
A151: 80 | B151: 2017-01-04 | D151: DEEPAKNTR | E151: Accu | F151: 99.50 | H151: 158 | I151: 158.00 | J151: Target Achieved | K151: =H151-F151 -> 58.50 | L151: =K151/F151 -> 58.79% | M151: Successful | N151: 2017-06-12
A152: 81 | B152: 2017-01-04 | D152: DEEPAKNTR | E152: Accu | F152: 99.50 | H152: 158 | I152: 158.00 | J152: Target Achieved | K152: 58.50 | L152: 58.79% | M152: Successful | N152: 2017-06-12
A153: 82 | B153: 2017-02-20 | D153: RECLTD | E153: Accu | F153: 140.50 | H153: 220 | I153: 220.00 | J153: Target Achieved | K153: =H153-F153 -> 79.50 | L153: =K153/F153 -> 56.58% | M153: Successful | N153: 2017-05-09
A154: 83 | B154: 2017-02-20 | D154: SUBROS | E154: Accu | F154: 202.50 | H154: 234 | I154: 234.00 | J154: Target Achieved | K154: 31.50 | L154: 15.56% | M154: Successful | N154: 2017-04-11
A155: 84 | B155: 2017-03-24 | D155: VRLLOG | E155: Accu | F155: 300.50 | H155: 417.5 | I155: 420.00 | J155: Profit of Rs.117/- | K155: =H155-F155 -> 117.00 | L155: =K155/F155 -> 38.94% | M155: Successful | N155: 2017-12-01
A156: 85 | B156: 2017-03-24 | D156: FIEMIND | E156: Accu | F156: 850.00 | H156: 1042.5 | I156: 1023.00 | J156: Profit of Rs 192.50/- | K156: 192.50 | L156: 22.65% | M156: Successful | N156: 2017-04-05
A157: 86 | B157: 2017-04-05 | D157: RATNAMANI | E157: Accu | F157: 785.00 | H157: 930 | I157: 920.00 | J157: Profit of Rs.145/- | K157: =H157-F157 -> 145.00 | L157: =K157/F157 -> 18.47% | M157: Successful | N157: 2017-08-29
A158: 87 | B158: 2017-04-06 | D158: ZEEMEDIA | E158: Accu | F158: 40 | H158: 13.10 | I158: 60.00 | J158: Loss of Rs.26.9/- | K158: -26.90 | L158: -67.25% | M158: Unsuccessful | N158: 2018-02-07
A159: 88 | B159: 2017-04-12 | D159: DABUR | E159: Accu | F159: 289.50 | H159: 354 | I159: 360.00 | J159: Profit of Rs.64.5/- | K159: =H159-F159 -> 64.50 | L159: =K159/F159 -> 22.28% | M159: Successful | N159: 2017-11-01
A160: 89 | B160: 2017-04-20 | D160: KPRMILL | E160: Accu | F160: 700.00 | H160: 840 | I160: 840.00 | J160: Profit of Rs.140/- | K160: 140.00 | L160: 20.00% | M160: Successful | N160: 2017-06-07
A161: 90 | B161: 2017-06-01 | D161: ESSELPACK | E161: Accu | F161: 130.00 | H161: 144.25 | I161: 170.00 | J161: Profit of Rs.14.25/- | K161: 14.25 | L161: 10.96% | M161: Successful | N161: 2019-07-29
A162: 91 | B162: 2017-06-15 | D162: KEI | E162: Accu | F162: 214.50 | H162: 262 | I162: 262.00 | J162: Profit of Rs.47.5/- | K162: 47.50 | L162: 22.14% | M162: Successful | N162: 2017-08-30
A163: 92 | B163: 2017-07-17 | D163: MAYURUNIQ | E163: Accu | F163: 370.00 | H163: 447.5 | I163: 450.00 | J163: Target Achieved | K163: 77.50 | L163: 20.95% | M163: Successful | N163: 2017-10-27
A164: 93 | B164: 2017-07-27 | D164: RAMCOCEM | E164: Accu | F164: 657.50 | H164: 825 | I164: 820.00 | J164: Target Achieved | K164: 167.50 | L164: 25.48% | M164: Successful | N164: 2017-12-21
A165: 94 | B165: 2017-08-17 | D165: FINPIPE | E165: Accu | F165: 605.00 | H165: 750 | I165: 750.00 | J165: Profit of Rs.145/- | K165: 145.00 | L165: 23.97% | M165: Successful | N165: 2017-10-19
A166: 95 | B166: 2017-09-01 | D166: SHK | E166: Accu | F166: 255 | H166: 217.25 | I166: 320.00 | J166: Loss of Rs.37.75/- | K166: -37.75 | L166: -15% | M166: Unsuccessful | N166: 2019-07-15
A167: 96 | B167: 2017-09-19 | D167: SKIPPER | E167: Accu | F167: 215.00 | H167: 258 | I167: 258.00 | J167: Target Achieved | K167: 43.00 | L167: 20.00% | M167: Successful | N167: 2017-11-01
A168: 97 | B168: 2017-09-19 | D168: SKIPPER | E168: Accu | F168: 215.00 | H168: 258 | I168: 258.00 | J168: Target Achieved | K168: 43.00 | L168: 20.00% | M168: Successful | N168: 2017-11-01
A169: 98 | B169: 2017-09-20 | D169: CAMLINFINE$ | E169: Accu | F169: 75.00 | H169: 90 | I169: 90.00 | J169: Profit of Rs.15.00/- | K169: =H169-F169 -> 15.00 | L169: =K169/F169 -> 20.00% | M169: Successful | N169: 2017-10-11
A170: 99 | B170: 2017-10-03 | D170: GNA | E170: Accu | F170: 315.00 | H170: 392 | I170: 384.00 | J170: Profit of Rs.77/- | K170: 77.00 | L170: 24.44% | M170: Successful | N170: 2017-10-09
A171: 100 | B171: 2017-10-05 | D171: NOCIL | E171: Accu | F171: 145.00 | H171: 179 | I171: 180.00 | J171: Profit of Rs.34/- | K171: 34.00 | L171: 23.45% | M171: Successful | N171: 2017-10-17
A172: 101 | B172: 2017-10-06 | D172: CENTURYPLY | E172: Accu | F172: 256.00 | H172: 323 | I172: 320.00 | J172: Target Achieved | K172: 67.00 | L172: 26.17% | M172: Successful | N172: 2017-11-28
A173: 102 | B173: 2017-10-09 | D173: EIHOTEL | E173: Accu | F173: 137.50 | H173: 184 | I173: 183.00 | J173: Profit of Rs.46.5/- | K173: 46.50 | L173: 33.82% | M173: Successful | N173: 2018-01-08
A174: 103 | B174: 2017-10-10 | D174: NRBBEARING | E174: Accu | F174: 125.50 | H174: 158 | I174: 155.00 | J174: Profit of Rs.32.5/- | K174: 32.50 | L174: 25.90% | M174: Successful | N174: 2017-11-28
A175: 104 | B175: 2017-10-10 | D175: BOROSIL | E175: Accu | F175: 895.00 | H175: 1122.5 | I175: 1078.00 | J175: Profit of Rs.227.5/- | K175: 227.50 | L175: 25.42% | M175: Successful | N175: 2018-01-17
A176: 105 | B176: 2017-10-12 | D176: CYIENT | E176: Accu | F176: 525.00 | H176: 629 | I176: 629.00 | J176: Target Achieved | K176: 104.00 | L176: 19.81% | M176: Successful | N176: 2018-01-19
A177: 106 | B177: 2017-11-07 | D177: HATSUN | E177: Accu | F177: 740.00 | H177: 892.5 | I177: 900.00 | J177: Profit of Rs.152.5/- | K177: =H177-F177 -> 152.50 | L177: =K177/F177 -> 20.61% | M177: Successful | N177: 2017-11-13
A178: 107 | B178: 2017-12-04 | D178: SANGHIIND | E178: Accu | F178: 118.50 | H178: 143.5 | I178: 145.00 | J178: Profit of Rs.25/- | K178: =H178-F178 -> 25.00 | L178: =K178/F178 -> 21.10% | M178: Successful | N178: 2017-12-28
A179: 108 | B179: 2017-12-21 | D179: KAJARIACER | E179: Accu | F179: 715 | H179: 500.00 | I179: 872.00 | J179: Loss of Rs.215/- | K179: =H179-F179 -> -215.00 | L179: =K179/F179 -> -30.07% | M179: Unsuccessful | N179: 2019-07-24
A180: 109 | B180: 2017-12-29 | D180: GNA | E180: Accu | F180: 435.00 | H180: 542.5 | I180: 539.00 | J180: Target Achieved | K180: 107.50 | L180: 24.71% | M180: Successful | N180: 2018-04-16
A181: 110 | B181: 2017-12-29 | D181: ZENSARTECH | E181: Accu | F181: 885.00 | H181: 1090 | I181: 1084.00 | J181: Target Achieved | K181: 205.00 | L181: 23.16% | M181: Successful | N181: 2018-04-23
A182: 111 | B182: 2018-04-02 | D182: EVERESTIND | E182: Accu | F182: 478.50 | H182: 442 | I182: 613.00 | J182: Loss of Rs.36.50 /- | K182: =H182-F182 -> -36.50 | L182: =K182/F182 -> -7.63% | M182: Unsuccessful | N182: 2019-10-24
A183: 112 | B183: 2018-04-04 | D183: GPPL$ | E183: Accu | F183: =141.5-7.3 -> 134.2 | H183: 77.00 | I183: 180.00 | J183: Loss of Rs.57.2/- | K183: =H183-F183 -> -57.20 | L183: =K183/F183 -> -42.62% | M183: Unsuccessful | N183: 2019-02-26
A184: 113 | B184: 2018-04-19 | D184: MANPASAND | E184: Accu | F184: 430 | H184: 220.00 | I184: 537.00 | J184: Loss of Rs.210/- | K184: =H184-F184 -> -210.00 | L184: =K184/F184 -> -48.84% | M184: Unsuccessful | N184: 2018-06-01
A185: 114 | B185: 2018-04-30 | D185: HEIDELBERG | E185: Accu | F185: 153.5 | H185: 196 | I185: 196.00 | J185: Profit of Rs.42.50/- | K185: =H185-F185 -> 42.50 | L185: =K185/F185 -> 27.69% | M185: Successful | N185: 2019-05-20
A186: 115 | B186: 2018-07-25 | D186: ZEEMEDIA | E186: Accu | F186: 27.5 | H186: 13.10 | I186: 60.00 | J186: Loss of Rs.14.40/- | K186: -14.40 | L186: -52.36% | M186: Unsuccessful | N186: 2018-02-07
A187: 116 | B187: 2018-08-06 | D187: GABRIEL | E187: Accu | F187: 148.5 | H187: 102 | I187: 182.00 | J187: Loss of Rs.46.50/- | K187: =H187-F187 -> -46.50 | L187: =K187/F187 -> -31.31% | M187: Unsuccessful | N187: 2019-07-15
A188: 117 | B188: 2018-08-23 | D188: INDIANHUME | E188: Accu | F188: 285 | H188: 355 | I188: 364.00 | J188: Profit of Rs.70/- | K188: 70.00 | L188: 24.56% | M188: Successful | N188: 2018-12-21
A189: 118 | B189: 2018-08-29 | D189: GRINDWELL | E189: Accu | F189: 525 | H189: 585 | I189: 635.00 | J189: Profit of Rs.60- | K189: =H189-F189 -> 60.00 | L189: =K189/F189 -> 11.43% | M189: Successful | N189: 2019-07-16
A190: 119 | B190: 2018-10-22 | D190: FINPIPE | E190: Accu | F190: 475 | H190: 574 | I190: 570.00 | J190: Target Achieved | K190: 99.00 | L190: 20.84% | M190: Successful | N190: 2018-10-30
A191: 120 | B191: 2018-10-24 | D191: GULFOILLUB | E191: Accu | F191: 707.5 | H191: 872 | I191: 872.00 | J191: Target Achieved | K191: 164.50 | L191: 23.25% | M191: Successful | N191: 2019-01-17
A192: 121 | B192: 2018-10-25 | D192: DBCORP | E192: Accu | F192: 162 | H192: 204 | I192: 209.00 | J192: Profit of Rs.42/- | K192: 42.00 | L192: 25.93% | M192: Successful | N192: 2019-03-15
A193: 122 | B193: 2018-10-26 | D193: RITES | E193: Accu | F193: 240 | H193: 297 | I193: 297.00 | J193: Target Achieved | K193: 57.00 | L193: 23.75% | M193: Successful | N193: 2018-11-13
A194: 123 | B194: 2018-12-05 | D194: BRIGADE | E194: Accu | F194: 202.5 | H194: 255 | I194: 252.00 | J194: Target Achieved | K194: 52.50 | L194: 25.93% | M194: Successful | N194: 2019-03-18
A195: 124 | B195: 2018-12-31 | D195: JKCEMENT | E195: Accu | F195: 710 | H195: 866 | I195: 866.00 | J195: Target Achieved | K195: 156.00 | L195: 21.97% | M195: Successful | N195: 2019-03-29
A196: 125 | B196: 2019-02-26 | D196: MARICO | E196: Accu | F196: 337.25 | H196: 398.5 | I196: 411.00 | J196: Profit of Rs.61.25/- | K196: 61.25 | L196: 18.16% | M196: Successful | N196: 2019-10-22
A197: 126 | B197: 2019-04-04 | D197: ITDCEM | E197: Accu | F197: 130 | H197: 65 | I197: 158.00 | J197: Loss of Rs.65 /- | K197: -65.00 | L197: -50.00% | M197: Unsuccessful | N197: 2019-09-18
A198: 127 | B198: 2017-10-09 | D198: RECLTD | E198: Accu | F198: 141.5 | H198: 183.5 | I198: 210.00 | J198: Profit of Rs.42/- | K198: 42.00 | L198: 29.68% | M198: Successful | N198: 2017-11-03
A199: 128 | B199: 2017-12-05 | D199: ALLCARGO | E199: Accu | F199: 172.00 | H199: 155.25 | I199: 230.00 | J199: Loss of Rs.16.75/- | K199: -16.75 | L199: -9.74% | M199: Unsuccessful | N199: 2019-11-18
A200: 129 | B200: 2018-10-25 | D200: GODREJCP | E200: Accu | F200: 698.5 | H200: 890 | I200: 890.00 | J200: Profit of Rs.191.50/- | K200: 191.50 | L200: 27.42% | M200: Successful | N200: 2021-05-12
A201: 130 | B201: 2017-05-22 | D201: GREAVESCOT | E201: Accu | F201: 127.6 | H201: 138 | I201: 190.00 | J201: Profit of Rs.10.40 | K201: 10.40 | L201: 8.15% | M201: Successful | N201: 2019-11-05
A202: 131 | B202: 2018-02-27 | D202: MOLDTKPAC | E202: Accu | F202: 317 | H202: 382.5 | I202: 398.00 | J202: Profit of Rs.65.5 | K202: 65.50 | L202: 20.66% | M202: Successful | N202: 2021-02-11
A203: 132 | B203: 2018-03-05 | D203: LICHSGFIN | E203: Accu | F203: =510-14.4 -> 495.60 | H203: 350 | I203: 672.00 | J203: Loss of Rs.145.60/- | K203: -145.60 | L203: -29.38% | M203: Unsuccessful | N203: 2020-02-26
A204: 133 | B204: 2018-05-17 | D204: PHILIPCARB | E204: Accu | F204: 230.30 | H204: 102.5 | I204: 348.00 | J204: Loss of Rs.127.80/- | K204: -127.80 | L204: -55.49% | M204: Unsuccessful | N204: 2020-03-06
A205: 134 | B205: 2018-06-07 | D205: KEC | E205: Accu | F205: =342.5-5.1 -> 337.4 | H205: 412.5 | I205: 439.00 | J205: Profit of Rs.75.10 | K205: 75.10 | L205: 22.26% | M205: Successful | N205: 2021-02-03
A206: 135 | B206: 2018-07-04 | D206: ASHOKLEY | E206: Accu | F206: =127.5-5.53 -> 121.97 | H206: 122.50 | I206: 170.00 | J206: Profit of Rs.0.53/- | K206: 0.53 | L206: 0% | M206: Neutral | N206: 2021-08-23 | R206: V
A207: 136 | B207: 2018-07-13 | D207: FCONSUMER | E207: Accu | F207: 46.50 | H207: 17 | I207: 59.00 | J207: Loss of Rs.29.50/- | K207: -29.50 | L207: -63.44% | M207: Unsuccessful | N207: 2020-02-26 | R207: V
A208: 137 | B208: 2018-10-23 | D208: JKPAPER | E208: Accu | F208: 156.5 | H208: 207.5 | I208: 191.00 | J208: Target Achieved | K208: 51.00 | L208: 32.59% | M208: Successful | N208: 2021-06-22 | R208: V
A209: 138 | B209: 2018-12-05 | D209: CCL | E209: Accu | F209: 259.5 | H209: 320 | I209: 320.00 | J209: Target Achieved | K209: 60.50 | L209: 23.31% | M209: Successful | N209: 2021-05-07 | R209: K
A210: 139 | B210: 2018-12-05 | D210: VARROC | E210: Accu | F210: 715 | H210: 445 | I210: 840.00 | J210: Loss of Rs.270/- | K210: -270.00 | L210: -37.76% | M210: Unsuccessful | N210: 2019-12-01 | R210: K
A211: 140 | B211: 2019-01-04 | D211: MGL | E211: Accu | F211: 875 | H211: 1165 | I211: 1185.00 | J211: Profit of Rs.290/- | K211: 290.00 | L211: 33.14% | M211: Successful | N211: 2020-01-17 | R211: K
A212: 141 | B212: 2019-04-04 | D212: COCHINSHIP | E212: Accu | F212: =387-14.63 -> 372.37 | H212: 490 | I212: 490.00 | J212: Target Achieved | K212: 117.63 | L212: 31.59% | M212: Successful | N212: 2020-01-20 | R212: V
A213: 142 | B213: 2019-04-23 | D213: MAHINDCIE | E213: Buy | F213: 220 | H213: 127.5 | I213: 284.00 | J213: Loss of Rs.92.50/- | K213: -92.50 | L213: -42.05% | M213: Unsuccessful | N213: 2020-03-06 | R213: K
A214: 143 | B214: 2019-06-06 | D214: RADICO | E214: Buy | F214: 332.8 | H214: 405 | I214: 419.00 | J214: Profit of Rs.72.20/- | K214: 72.20 | L214: 21.69% | M214: Successful | N214: 2020-01-30 | R214: K
A215: 144 | B215: 2019-06-25 | D215: M&MFIN | E215: Accu | F215: 386 | H215: 395.00 | I215: 452.00 | J215: Profit of Rs.9/- | K215: 9.00 | L215: 2% | M215: Neutral | N215: 2020-02-07 | R215: V
A216: 145 | B216: 2019-08-30 | D216: INDHOTEL | E216: Accu | F216: 137.5 | H216: 138.50 | I216: 190.00 | J216: Profit of Rs.1/- | K216: 1.00 | L216: 1% | M216: Neutral | N216: 2021-08-24 | R216: V
A217: 146 | B217: 2019-09-23 | D217: KNRCON | E217: Accu | F217: 235 | H217: 295 | I217: 296.00 | J217: Profit of Rs.60/- | K217: 60.00 | L217: 25.53% | M217: Successful | N217: 2020-01-14 | R217: K
A218: 147 | B218: 2019-10-14 | D218: KEC$ | E218: Accu | F218: 277.5 | H218: 333 | I218: 333.00 | J218: Profit of Rs.55.50/- | K218: 55.50 | L218: 20.00% | M218: Successful | N218: 2020-01-16 | R218: V
A219: 148 | B219: 2019-10-14 | D219: MGL$ | E219: Accu | F219: 930 | H219: 1165 | I219: 1200.00 | J219: Profit of Rs.235/- | K219: 235.00 | L219: 25.27% | M219: Successful | N219: 2020-01-17 | R219: V
A220: 149 | B220: 2019-10-15 | D220: JKPAPER$ | E220: Accu | F220: 111.00 | H220: 141 | I220: 141.00 | J220: Profit of Rs.30/- | K220: 30.00 | L220: 27.03% | M220: Successful | N220: 2021-05-12 | R220: V
A221: 150 | B221: 2019-10-15 | D221: RADICO$ | E221: Accu | F221: 296.00 | H221: 370 | I221: 370.00 | J221: Target Achieved | K221: =H221-F221 -> 74.00 | L221: =K221/F221 -> 25.00% | M221: Successful | N221: 2020-01-23 | R221: V
A222: 151 | B222: 2019-10-16 | D222: MOLDTKPAC$ | E222: Accu | F222: 300.00 | H222: 382.5 | I222: 344.00 | J222: Profit of Rs.82.5/- | K222: 82.50 | L222: 27.50% | M222: Successful | N222: 2021-02-11 | R222: V
A223: 152 | B223: 2020-01-02 | D223: PSPPROJECT | E223: Accu | F223: 495.00 | H223: 595 | I223: 590.00 | J223: Profit of Rs.100/- | K223: 100.00 | L223: 20.20% | M223: Successful | N223: 2022-01-28 | R223: V
A224: 153 | B224: 2020-05-15 | D224: BEL | E224: Accu | F224: 67.50 | H224: 86 | I224: 86.00 | J224: Profit of Rs.18.50/- | K224: 18.50 | L224: 27.41% | M224: Successful | N224: 2020-06-26 | R224: V
A225: 154 | B225: 2020-07-23 | D225: RITES | E225: Accu | F225: 231.00 | H225: 281 | I225: 281.00 | J225: Target Achieved | K225: 50.00 | L225: 21.65% | M225: Successful | N225: 2021-06-11 | R225: V
A226: 155 | B226: 2020-09-18 | D226: IEX | E226: Accu | F226: 206 | H226: 248 | I226: 248.00 | J226: Target Achieved | K226: 42.00 | L226: 20.39% | M226: Successful | N226: 2021-01-18 | R226: K
... 71 more rows
